Workbook

Sheet Emission factors (hidden)
A1: Global Warming Potential and Conversion Factors
B3: Gas | C3: CO2-e
B4: CH4 | C4: 28
B5: N2O | C5: 265

Sheet Data for graphs (hidden)
A1: Data for pie chart summary page | D1: Column graph chart | E1: Baseline | F1: Example baseline farm | G1: Typical averages (baseline farm) | H1: Typical averages (example baseline farm) | J1: Whole farm strategy column graph | L1: Baseline farm | M1: Strategy farm | P1: Baseline farm | Q1: Strategy farm | T1: Column graph chart | U1: Current 2025 methodology | V1: 1990 methodology | W1: 2015 methodology | X1: 2022 methodology | AB1: Column graphs | AC1: Strategy farm | AD1: Increased milk production | AE1: Feed additive | AF1: Extended lactation | AG1: Extended longevity | AH1: Replacing Sup with a source of fat | AI1: Supp with dietary fats | AJ1: Improve diet DMD by management | AK1: Improve diet DMD by supplementation | AL1: N inhibitor applied to fertiliser | AM1: N Inhibitor applied to feed/animal
A2: Enteric methane | B2: ='Your Farm'!K129 -> 2025.61281 | D2: Enteric methane | E2: ='Your Farm'!K129/E10 -> 0.5722686915 | F2: 0.5447310757 | G2: =X23 -> 0.5811588779 | H2: 0.5442689808 | J2: Methane | K2: Enteric fermentation | L2: ='Your Farm'!K129*1000*'Your Farm'!$Q$288/'Your Farm'!$R$229 -> 0.5447310757 | M2: ='Strategy Farm'!K133*1000*'Strategy Farm'!$P$335/'Strategy Farm'!$Q$276 -> 0.5447310757 | O2: Enteric methane | P2: =L2 -> 0.5447310757 | Q2: =M2 -> 0.5447310757 | T2: Enteric methane | U2: ='Your Farm'!L129 -> 0.5675609554 | V2: ='1990 Methodology Comparison'!L114 -> 0.5248373105 | W2: ='2015 Methodology Comparison'!$L$113 -> 0.5489774592 | X2: ='2022 Methodology Comparison'!L120 -> 0.5605360983
A3: Waste methane | B3: ='Your Farm'!K130 -> 308.7357266 | D3: Waste methane | E3: ='Your Farm'!K130/E10 -> 0.08722288358 | F3: 0.08302571135 | G3: 0.08466710573 | H3: 0.08367528505 | K3: Manure management | L3: ='Your Farm'!K130*1000*'Your Farm'!$Q$288/'Your Farm'!$R$229 -> 0.08302571135 | M3: ='Strategy Farm'!K134*1000*'Strategy Farm'!$P$335/'Strategy Farm'!$Q$276 -> 0.08302571135 | O3: Waste methane | P3: =L3 -> 0.08302571135 | Q3: =M3 -> 0.08302571135 | T3: Manure methane | U3: ='Your Farm'!L130 -> 0.08650534944 | V3: ='1990 Methodology Comparison'!L115 -> 0.04314057348 | W3: ='2015 Methodology Comparison'!$L$114 -> 0.08964717208 | X3: ='2022 Methodology Comparison'!L121 -> 0.09154767319 | AB3: Carbon credit income | AC3: ='Strategy Farm'!F259 -> 0 | AD3: ='Reduce CH4 and or Increase Milk'!$C$51 -> 14291.32404 | AE3: ='Diet Additives'!$C$68 -> 13182.41086 | AF3: ='Extended Lactation'!C79 -> 3104.31362 | AG3: ='Extended Longevity'!C63 -> 1376.423568 | AH3: ='Replacing Sup with Dietary Fats'!C93 -> 1585.305118 | AI3: ='Supplementing With Dietary Fats'!C85 -> 488.9974085 | AJ3: ='Improved Diet DMD by Management'!C81 -> 886.7108679 | AK3: ='Improved Diet DMD by Supplement'!C81 -> 122.517374 | AL3: ='N Fertiliser Inhibitor Coated'!C90 -> 516.468477 | AM3: ='N Inhibitor Applied to Feed'!C74 -> 1482.720502
A4: Waste nitrous oxide | B4: ='Your Farm'!K131+'Your Farm'!K132+'Your Farm'!K133 -> 279.5706115 | D4: Waste nitrous oxide | E4: =SUM('Your Farm'!K131:K133)/E10 -> 0.07898326237 | F4: 0.07518258138 | G4: 0.07144699709 | H4: 0.06737284691 | J4: Nitrous oxide | K4: Dung & urine voided during grazing | L4: ='Your Farm'!K131*1000*'Your Farm'!$Q$288/'Your Farm'!$R$229 -> 0.03422903678 | M4: ='Strategy Farm'!K135*1000*'Strategy Farm'!$P$335/'Strategy Farm'!$Q$276 -> 0.03422903678 | O4: Waste nitrous oxide | P4: =L4+L5+L6 -> 0.07518258138 | Q4: =M4+M5+M6 -> 0.07518258138 | T4: Direct N2O from animal waste | U4: ='Your Farm'!L131+'Your Farm'!L132 -> 0.04174866187 | V4: ='1990 Methodology Comparison'!L116+'1990 Methodology Comparison'!L117 -> 0.05837295176 | W4: ='2015 Methodology Comparison'!$L$115+'2015 Methodology Comparison'!$L$116 -> 0.05458080135 | X4: ='2022 Methodology Comparison'!L122+'2022 Methodology Comparison'!L123 -> 0.05160155205 | AB4: Implementation expenses | AC4: ='Strategy Farm'!F262 -> -6500 | AD4: ='Reduce CH4 and or Increase Milk'!$C$52 -> 6750 | AE4: ='Diet Additives'!$C$69 -> 115298.0541 | AF4: ='Extended Lactation'!C80 -> 22520.56673 | AG4: ='Extended Longevity'!$C$64 -> -33000 | AH4: ='Replacing Sup with Dietary Fats'!C94 -> 13500 | AI4: ='Supplementing With Dietary Fats'!C86 -> 47250 | AJ4: ='Improved Diet DMD by Management'!C82 -> 5000 | AK4: ='Improved Diet DMD by Supplement'!C82 -> 27000 | AL4: ='N Fertiliser Inhibitor Coated'!C91 -> 3300 | AM4: ='N Inhibitor Applied to Feed'!C75 -> 2700
A5: Fertiliser-derived N2O and CO2 | B5: ='Your Farm'!K134+'Your Farm'!K135+'Your Farm'!K140+'Your Farm'!K143 -> 596.9467864 | D5: Fertiliser-derived N2O and CO2 | E5: =SUM('Your Farm'!K134:K135,'Your Farm'!K140,'Your Farm'!K143)/E10 -> 0.1686472137 | F5: 0.1605318961 | G5: 0.1483611437 | H5: 0.09823391436 | K5: Manure during storage and land-spreading | L5: ='Your Farm'!K132*1000*'Your Farm'!$Q$288/'Your Farm'!$R$229 -> 0.005840304274 | M5: ='Strategy Farm'!K136*1000*'Strategy Farm'!$P$335/'Strategy Farm'!$Q$276 -> 0.005840304274 | O5: Fertiliser-derived N2O and CO2 | P5: =L7+L8+L11+L14 -> 0.1605318961 | Q5: =M7+M8+M11+M14 -> 0.1605318961 | T5: Direct N2O from N fertiliser | U5: ='Your Farm'!L134 -> 0.03786267525 | V5: ='1990 Methodology Comparison'!L119 -> 0.03272264701 | W5: ='2015 Methodology Comparison'!$L$118 -> 0.03126713205 | X5: ='2022 Methodology Comparison'!L125 -> 0.02471809329 | AB5: Additional milk income | AC5: ='Strategy Farm'!F264 -> 0 | AD5: ='Reduce CH4 and or Increase Milk'!$C$54 -> 72900 | AE5: ='Diet Additives'!$C$70 -> 0 | AF5: ='Extended Lactation'!C81 -> -72132.29656 | AG5: 0 | AH5: ='Replacing Sup with Dietary Fats'!C95 -> 40281.06361 | AI5: ='Supplementing With Dietary Fats'!C87 -> 60393.94652 | AJ5: ='Improved Diet DMD by Management'!C83 -> 173473.7875 | AK5: ='Improved Diet DMD by Supplement'!C83 -> 16648.68369 | AL5: ='N Fertiliser Inhibitor Coated'!C92 -> 21460.28175 | AM5: ='N Inhibitor Applied to Feed'!C76 -> 0
A6: Energy consumption | B6: =SUM('Your Farm'!K136:K139) -> 186.1125 | D6: Energy consumption | E6: =SUM('Your Farm'!K136:K139)/E10 -> 0.05257981995 | F6: 0.05004967476 | G6: 0.06281388925 | H6: 0.05280158386 | K6: Indirect N from manure | L6: ='Your Farm'!K133*1000*'Your Farm'!$Q$288/'Your Farm'!$R$229 -> 0.03511324033 | M6: ='Strategy Farm'!K137*1000*'Strategy Farm'!$P$335/'Strategy Farm'!$Q$276 -> 0.03511324033 | O6: Energy consumption | P6: =L9+L10 -> 0.05004967476 | Q6: =M9+M10 -> 0.05004967476 | T6: Indirect N2O from animal waste | U6: ='Your Farm'!L133 -> 0.03658484914 | V6: ='1990 Methodology Comparison'!L118 -> 0.07570722093 | W6: ='2015 Methodology Comparison'!$L$117 -> 0.03872133862 | X6: ='2022 Methodology Comparison'!L124 -> 0.03551773428 | AB6: Total farm benefit | AC6: ='Strategy Farm'!F265 -> 6500 | AD6: ='Reduce CH4 and or Increase Milk'!$C$55 -> 80441.32404 | AE6: ='Diet Additives'!$C$71 -> -102115.6433 | AF6: ='Extended Lactation'!C82 -> -91548.54966 | AG6: ='Extended Longevity'!C66 -> 34376.42357 | AH6: ='Replacing Sup with Dietary Fats'!C96 -> 28366.36872 | AI6: ='Supplementing With Dietary Fats'!C88 -> 13632.94393 | AJ6: ='Improved Diet DMD by Management'!C84 -> 169360.4984 | AK6: ='Improved Diet DMD by Supplement'!C84 -> -10228.79894 | AL6: ='N Fertiliser Inhibitor Coated'!C93 -> 18676.75023 | AM6: ='N Inhibitor Applied to Feed'!C77 -> -1217.279498
A7: Purchased feeds | B7: =SUM('Your Farm'!K141:K142) -> 172 | D7: Purchased feeds | E7: =SUM('Your Farm'!K141:K142)/E10 -> 0.04859280829 | F7: 0.04625451841 | G7: 0.05736020525 | H7: 0.05921581771 | K7: Direct N fertiliser | L7: ='Your Farm'!K134*1000*'Your Farm'!$Q$288/'Your Farm'!$R$229 -> 0.03633966646 | M7: ='Strategy Farm'!K138*1000*'Strategy Farm'!$P$335/'Strategy Farm'!$Q$276 -> 0.03633966646 | O7: Purchased feeds | P7: =L12+L13 -> 0.04625451841 | Q7: =M12+M13 -> 0.04625451841 | T7: Indirect N2O from N fertiliser | U7: ='Your Farm'!L135 -> 0.01976559996 | V7: ='1990 Methodology Comparison'!L120 -> 0.03885814333 | W7: ='2015 Methodology Comparison'!$L$119 -> 0.02071447498 | X7: ='2022 Methodology Comparison'!L126 -> 0.01952095573
A8: Tree carbon sequestration* | B8: ='Your Farm'!K148 -> -29.36 | D8: Tree carbon sequestration | E8: ='Your Farm'!K148/E10 -> -0.008294679368 | F8: -0.007895538724 | G8: -0.005808218951 | H8: -0.008515317631 | K8: Indirect N fertiliser | L8: ='Your Farm'!K135*1000*'Your Farm'!$Q$288/'Your Farm'!$R$229 -> 0.01897053775 | M8: ='Strategy Farm'!K139*1000*'Strategy Farm'!$P$335/'Strategy Farm'!$Q$276 -> 0.01897053775 | O8: Tree carbon sequestration | P8: =L15 -> -0.007895538724 | Q8: =M15 -> -0.007895538724 | T8: Energy consumption | U8: ='Your Farm'!L136+'Your Farm'!L138+'Your Farm'!L137+'Your Farm'!L139 -> 0.05214727503 | V8: ='1990 Methodology Comparison'!L121+'1990 Methodology Comparison'!L122 -> 0.09022614813 | W8: ='2015 Methodology Comparison'!$L$120+'2015 Methodology Comparison'!$L$121 -> 0.08968451569 | X8: ='2022 Methodology Comparison'!L127+'2022 Methodology Comparison'!L128+'2022 Methodology Comparison'!L129+'2022 Methodology Comparison'!L130 -> 0.0606866978
J9: Carbon dioxide: | K9: Electricity | L9: =('Your Farm'!K136+'Your Farm'!K137)*1000*'Your Farm'!$Q$288/'Your Farm'!$R$229 -> 0.03642543325 | M9: =('Strategy Farm'!K140+'Strategy Farm'!K141)*1000*'Strategy Farm'!$P$335/'Strategy Farm'!$Q$276 -> 0.03642543325 | O9: Net | P9: =SUM(P2:P8) -> 0.9518799189 | Q9: =SUM(Q2:Q8) -> 0.9518799189 | T9: CO2 urea and lime | U9: ='Your Farm'!L140 -> 0.04183188668 | V9: 0 | W9: 0 | X9: ='2022 Methodology Comparison'!L131 -> 0.04131412199
D10: Total | E10: ='Your Farm'!K145+('Your Farm'!K148) -> 3539.618435 | F10: =(SUM('Example Farm'!K129:K143))+('Example Farm'!K148) -> 3786.18408 | K10: Diesel and unleaded petrol | L10: =('Your Farm'!K138+'Your Farm'!K139)*1000*'Your Farm'!$Q$288/'Your Farm'!$R$229 -> 0.01362424151 | M10: =('Strategy Farm'!K142+'Strategy Farm'!K143)*1000*'Strategy Farm'!$P$335/'Strategy Farm'!$Q$276 -> 0.01362424151 | T10: Pre-farm embedded | U10: =SUM('Your Farm'!L141:L143) -> 0.1159927473 | V10: =SUM('1990 Methodology Comparison'!L123:L125) -> 0.1271705175 | W10: ='2015 Methodology Comparison'!$L$122+'2015 Methodology Comparison'!$L$123+'2015 Methodology Comparison'!$L$124 -> 0.126407106 | X10: ='2022 Methodology Comparison'!L132+'2022 Methodology Comparison'!L133+'2022 Methodology Comparison'!L134 -> 0.1145570733
K11: Urea and Lime | L11: =('Your Farm'!K140)*1000*'Your Farm'!$Q$288/'Your Farm'!$R$229 -> 0.04014921818 | M11: =('Strategy Farm'!K144)*1000*'Strategy Farm'!$P$335/'Strategy Farm'!$Q$276 -> 0.04014921818 | U11: =SUM(U2:U10) -> 1 | V11: =SUM(V2:V10) -> 0.9910355126 | W11: =SUM(W2:W10) -> 1 | X11: =SUM(X2:X10) -> 1
J12: Pre-farm embedded | K12: Grain/ concentrates | L12: =('Your Farm'!K141)*1000*'Your Farm'!$Q$288/'Your Farm'!$R$229 -> 0.03764902661 | M12: =('Strategy Farm'!K145)*1000*'Strategy Farm'!$P$335/'Strategy Farm'!$Q$276 -> 0.03764902661
K13: Forages | L13: =('Your Farm'!K142)*1000*'Your Farm'!$Q$288/'Your Farm'!$R$229 -> 0.008605491798 | M13: =('Strategy Farm'!K146)*1000*'Strategy Farm'!$P$335/'Strategy Farm'!$Q$276 -> 0.008605491798
K14: Fertilisers | L14: =('Your Farm'!K143)*1000*'Your Farm'!$Q$288/'Your Farm'!$R$229 -> 0.06507247367 | M14: =('Strategy Farm'!K147)*1000*'Strategy Farm'!$P$335/'Strategy Farm'!$Q$276 -> 0.06507247367
J15: Sequestration | K15: Tree plantings (minus) | L15: =('Your Farm'!K148)*1000*'Your Farm'!$Q$288/'Your Farm'!$R$229 -> -0.007895538724 | M15: =('Strategy Farm'!K152)*1000*'Strategy Farm'!$P$335/'Strategy Farm'!$Q$276 -> -0.007895538724
J18: GHG emissions intensity | L18: =IF('Your Farm'!D31="kg milksolids per herd per annum","kg CO2e per kg milksolids","kg CO2e per litre of fat and protein corrected milk") -> kg CO2e per litre of fat and protein corrected milk
E21: % emissions each source for ADCC industry average graph (data for 2019-20 to 2023-24 average) | X21: Selected Baseline farm | Y21: Selected Example Baseline farm
F22: Australia-wide | G22: Victoria | H22: Victoria- Northern | I22: Victoria- Gippsland | J22: Victoria- South West | K22: New South Wales | L22: NSW- North | M22: NSW- South | N22: Tasmania | O22: Queensland | P22: QLD- North | Q22: QLD- South | R22: Western Australia | S22: South Australia | T22: Low grain (< 1 t DM/cow.annum) | U22: Medium grain (1-2 t DM/cow.annum) | V22: High grain (> 2 t DM/cow.annum) | X22: ='Your Farm'!K237 -> Victoria- South West | Y22: ='Example Farm'!H12 -> Victoria- South West
E23: Enteric methane | F23: =F32 -> 0.6152456333 | G23: =G32 -> 0.5924370965 | H23: 0.5917835205 | I23: 0.6093986306 | J23: 0.5811588779 | K23: 0.5941258058 | L23: 0.6111812491 | M23: 0.5841751379 | N23: 0.6626598779 | O23: 0.6274892876 | P23: 0.6482844346 | Q23: 0.6221139176 | R23: 0.6094162766 | S23: 0.6304730142 | T23: 0.6511686895 | U23: 0.6311506598 | V23: 0.6021001587 | X23: =HLOOKUP($X$22,$E$22:$V$29,2,FALSE) -> 0.5811588779 | Y23: =HLOOKUP($Y$22,$E$22:$V$29,2,FALSE) -> 0.5811588779
E24: Waste methane | F24: =F33 -> 0.08965192079 | G24: =G33 -> 0.100116246 | H24: 0.1144054066 | I24: 0.09320430129 | J24: 0.08466710573 | K24: 0.09556711676 | L24: 0.0730610729 | M24: 0.1086978319 | N24: 0.07689663044 | O24: 0.1077661415 | P24: 0.1093856543 | Q24: 0.1073475111 | R24: 0.0794155795 | S24: 0.05495022006 | T24: 0.08304536692 | U24: 0.0843777658 | V24: 0.09355575565 | X24: =HLOOKUP($X$22,$E$22:$V$29,3,FALSE) -> 0.08466710573 | Y24: =HLOOKUP($Y$22,$E$22:$V$29,3,FALSE) -> 0.08466710573
E25: Waste nitrous oxide | F25: =SUM(F34:F36) -> 0.07866335898 | G25: =SUM(G34:G36) -> 0.07479111098 | H25: 0.07669752781 | I25: 0.07565077002 | J25: 0.07144699709 | K25: 0.07795766198 | L25: 0.07888276908 | M25: 0.07741792617 | N25: 0.08261759261 | O25: 0.08240380076 | P25: 0.08147351351 | Q25: 0.08264427216 | R25: 0.07963333989 | S25: 0.07854039921 | T25: 0.08557743248 | U25: 0.07874754824 | V25: 0.07801683814 | X25: =HLOOKUP($X$22,$E$22:$V$29,4,FALSE) -> 0.07144699709 | Y25: =HLOOKUP($Y$22,$E$22:$V$29,4,FALSE) -> 0.07144699709
E26: Fertiliser-derived N2O and CO2 | F26: =SUM(F37:F38,F41,F44) -> 0.1144683534 | G26: =SUM(G37:G38,G41,G44) -> 0.115994387 | H26: 0.08598219663 | I26: 0.1306254669 | J26: 0.1483611437 | K26: 0.1261616622 | L26: 0.1507338834 | M26: 0.111825476 | N26: 0.1132272329 | O26: 0.09637196126 | P26: 0.08635490763 | Q26: 0.09896128508 | R26: 0.1244171151 | S26: 0.09991221396 | T26: 0.1207329271 | U26: 0.1155678968 | V26: 0.1132351458 | X26: =HLOOKUP($X$22,$E$22:$V$29,5,FALSE) -> 0.1483611437 | Y26: =HLOOKUP($Y$22,$E$22:$V$29,5,FALSE) -> 0.1483611437
E27: Energy consumption | F27: =SUM(F39:F40) -> 0.04705679296 | G27: =SUM(G39:G40) -> 0.05836898346 | H27: 0.05979028184 | I27: 0.04937383833 | J27: 0.06281388925 | K27: 0.06905497301 | L27: 0.0757407243 | M27: 0.06515430099 | N27: 0.01612100208 | O27: 0.01476930563 | P27: 0.01164173693 | Q27: 0.01557775574 | R27: 0.05804606642 | S27: 0.0616077839 | T27: 0.0272726136 | U27: 0.04040085692 | V27: 0.05296557412 | X27: =HLOOKUP($X$22,$E$22:$V$29,6,FALSE) -> 0.06281388925 | Y27: =HLOOKUP($Y$22,$E$22:$V$29,6,FALSE) -> 0.06281388925
E28: Purchased feeds | F28: =SUM(F42:F43) -> 0.06424991748 | G28: =SUM(G42:G43) -> 0.06690806228 | H28: 0.07607443711 | I28: 0.06197045615 | J28: 0.05736020525 | K28: 0.06361016496 | L28: 0.06464079023 | M28: 0.06300886662 | N28: 0.05456192906 | O28: 0.07119950325 | P28: 0.06285975308 | Q28: 0.07335525828 | R28: 0.05831364922 | S28: 0.07622433676 | T28: 0.03481442721 | U28: 0.05753678907 | V28: 0.071023004 | X28: =HLOOKUP($X$22,$E$22:$V$29,7,FALSE) -> 0.05736020525 | Y28: =HLOOKUP($Y$22,$E$22:$V$29,7,FALSE) -> 0.05736020525
E29: Tree carbon sequestration | F29: =F45 -> -0.009335976879 | G29: =G45 -> -0.008615886185 | H29: -0.004733370475 | I29: -0.02022346331 | J29: -0.005808218951 | K29: -0.02647738472 | L29: -0.05424048893 | M29: -0.01027953962 | N29: -0.006084264942 | O29: 0 | P29: 0 | Q29: 0 | R29: -0.009242026725 | S29: -0.001707968137 | T29: -0.002611456813 | U29: -0.007781516568 | V29: -0.01089647636 | X29: =HLOOKUP($X$22,$E$22:$V$29,8,FALSE) -> -0.005808218951 | Y29: =HLOOKUP($Y$22,$E$22:$V$29,8,FALSE) -> -0.005808218951
E32: EntFerm | F32: 0.6152456333 | G32: 0.5924370965 | H32: 0.5917835205 | I32: 0.6093986306 | J32: 0.5811588779 | K32: 0.5941258058 | L32: 0.6111812491 | M32: 0.5841751379 | N32: 0.6626598779 | O32: 0.6274892876 | P32: 0.6482844346 | Q32: 0.6221139176 | R32: 0.6094162766 | S32: 0.6304730142 | T32: 0.6511686895 | U32: 0.6311506598 | V32: 0.6021001587
E33: WasteManag | F33: 0.08965192079 | G33: 0.100116246 | H33: 0.1144054066 | I33: 0.09320430129 | J33: 0.08466710573 | K33: 0.09556711676 | L33: 0.0730610729 | M33: 0.1086978319 | N33: 0.07689663044 | O33: 0.1077661415 | P33: 0.1093856543 | Q33: 0.1073475111 | R33: 0.0794155795 | S33: 0.05495022006 | T33: 0.08304536692 | U33: 0.0843777658 | V33: 0.09355575565
E34: DirectPasture | F34: 0.03380407333 | G34: 0.03192464599 | H34: 0.02952900709 | I34: 0.0352706101 | J34: 0.03293999194 | K34: 0.03023519275 | L34: 0.03443626838 | M34: 0.02778415659 | N34: 0.03924902625 | O34: 0.03144373945 | P34: 0.03427686646 | Q34: 0.03071140002 | R34: 0.03607308351 | S34: 0.03559908899 | T34: 0.04020206961 | U34: 0.03619325025 | V34: 0.03174346419
E35: ManureSpread | F35: 0.008646045175 | G35: 0.008324256028 | H35: 0.01234004808 | I35: 0.004834035616 | J35: 0.00509682873 | K35: 0.01253954381 | L35: 0.008161783502 | M35: 0.01509366322 | N35: 0.004623210038 | O35: 0.01399428442 | P35: 0.009758046446 | Q35: 0.01508931618 | R35: 0.006626707863 | S35: 0.006374767022 | T35: 0.00531609032 | U35: 0.005789765847 | V35: 0.01073894105
E36: IndirectNWaste | F36: 0.03621324047 | G36: 0.03454220896 | H36: 0.03482847264 | I36: 0.03554612431 | J36: 0.03341017643 | K36: 0.03518292542 | L36: 0.03628471719 | M36: 0.03454010636 | N36: 0.03874535632 | O36: 0.0369657769 | P36: 0.0374386006 | Q36: 0.03684355596 | R36: 0.03693354852 | S36: 0.0365665432 | T36: 0.04005927254 | U36: 0.03676453215 | V36: 0.0355344329
E37: DirectNFert | F37: 0.02958133548 | G37: 0.02938228267 | H37: 0.02131254572 | I37: 0.03448560157 | J37: 0.03724322258 | K37: 0.03139352276 | L37: 0.0371459611 | M37: 0.02803737409 | N37: 0.02939214466 | O37: 0.02557612234 | P37: 0.02291498654 | Q37: 0.02626400349 | R37: 0.03382065651 | S37: 0.02604153597 | T37: 0.03030100854 | U37: 0.03039024481 | V37: 0.02900778641
E38: IndirectNFert | F38: 0.01544245988 | G38: 0.01533854756 | H38: 0.01112587132 | I38: 0.01800265302 | J38: 0.01944222467 | K38: 0.01638848307 | L38: 0.01939145088 | M38: 0.01463645969 | N38: 0.01534369586 | O38: 0.01335160285 | P38: 0.01196239975 | Q38: 0.01371070013 | R38: 0.01765552916 | S38: 0.01359456454 | T38: 0.01581815361 | U38: 0.01586473797 | V38: 0.01514304782
E39: Electricty | F39: 0.0223360035 | G39: 0.03407177428 | H39: 0.03368092923 | I39: 0.03295566057 | J39: 0.0354340859 | K39: 0.03462487525 | L39: 0.03916935212 | M39: 0.03197348828 | N39: 0.005784084305 | O39: 0.001967001957 | P39: 0.001926007965 | Q39: 0.001977598558 | R39: 0.024834678 | S39: 0.01805094533 | T39: 0.01444322708 | U39: 0.01888350727 | V39: 0.02519763453
E40: Fuel | F40: 0.02472078945 | G40: 0.02429720918 | H40: 0.02610935261 | I40: 0.01641817776 | J40: 0.02737980335 | K40: 0.03443009777 | L40: 0.03657137218 | M40: 0.03318081271 | N40: 0.01033691777 | O40: 0.01280230367 | P40: 0.009715728964 | Q40: 0.01360015718 | R40: 0.03321138842 | S40: 0.04355683857 | T40: 0.01282938651 | U40: 0.02151734966 | V40: 0.02776793959
E41: UreaLime | F41: 0.01674731435 | G41: 0.01898509514 | H41: 0.01426101361 | I41: 0.01868423228 | J41: 0.02595461466 | K41: 0.02256080989 | L41: 0.02690767617 | M41: 0.02002471501 | N41: 0.01636249342 | O41: 0.01424770207 | P41: 0.01276358758 | Q41: 0.01463133314 | R41: 0.01058717592 | S41: 0.01295788894 | T41: 0.01968575843 | U41: 0.01562421812 | V41: 0.01720576948
E42: PreFarmConc | F42: 0.04857251942 | G42: 0.04806488688 | H42: 0.04421616446 | I42: 0.05053848543 | J42: 0.05178547279 | K42: 0.0470694251 | L42: 0.05027055312 | M42: 0.045201789 | N42: 0.04286892761 | O42: 0.05445461743 | P42: 0.0486277635 | Q42: 0.05596080999 | R42: 0.05140242551 | S42: 0.05143809148 | T42: 0.02596552044 | U42: 0.0436025879 | V42: 0.05365677137
E43: PreFarmFodder | F43: 0.01567739806 | G43: 0.01884317539 | H43: 0.03185827265 | I43: 0.01143197072 | J43: 0.005574732459 | K43: 0.01654073986 | L43: 0.0143702371 | M43: 0.01780707763 | N43: 0.01169300145 | O43: 0.01674488582 | P43: 0.01423198959 | Q43: 0.01739444829 | R43: 0.006911223712 | S43: 0.02478624527 | T43: 0.008848906772 | U43: 0.01393420117 | V43: 0.01736623263
E44: PreFarmFert | F44: 0.05269724365 | G44: 0.05228846158 | H44: 0.03928276598 | I44: 0.05945298003 | J44: 0.06572108183 | K44: 0.05581884652 | L44: 0.06728879521 | M44: 0.04912692724 | N44: 0.05212889893 | O44: 0.043196534 | P44: 0.03871393376 | Q44: 0.04435524833 | R44: 0.06235375352 | S44: 0.04731822452 | T44: 0.05492800652 | U44: 0.05368869587 | V44: 0.05187854204
E45: TreeSequester | F45: -0.009335976879 | G45: -0.008615886185 | H45: -0.004733370475 | I45: -0.02022346331 | J45: -0.005808218951 | K45: -0.02647738472 | L45: -0.05424048893 | M45: -0.01027953962 | N45: -0.006084264942 | O45: 0 | P45: 0 | Q45: 0 | R45: -0.009242026725 | S45: -0.001707968137 | T45: -0.002611456813 | U45: -0.007781516568 | V45: -0.01089647636
E48: As emissions intensity | F48: Australia-wide | G48: Victoria | H48: Victoria- Northern | I48: Victoria- Gippsland | J48: Victoria- South West | K48: New South Wales | L48: NSW- North | M48: NSW- South | N48: Tasmania | O48: Queensland | P48: QLD- North | Q48: QLD- South | R48: Western Australia | S48: South Australia | T48: Low grain (< 1 t DM/cow.annum) | U48: Medium grain (1-2 t DM/cow.annum) | V48: High grain (> 2 t DM/cow.annum)
E49: EntFerm | F49: 0.5644374493 | G49: 0.5442689808 | H49: 0.5366519436 | I49: 0.5536962834 | J49: 0.5439821227 | K49: 0.5734546516 | L49: 0.5909595552 | M49: 0.555565025 | N49: 0.5752073415 | O49: 0.6288668573 | P49: 0.6688594268 | Q49: 0.6151551191 | R49: 0.5730696094 | S49: 0.5358127295 | T49: 0.6269627064 | U49: 0.560198675 | V49: 0.560043766
E50: WasteManag | F50: 0.08051553448 | G50: 0.08367528505 | H50: 0.08867060408 | I50: 0.08453862569 | J50: 0.07681756159 | K50: 0.07988923605 | L50: 0.07009263704 | M50: 0.08990114494 | N50: 0.06506298208 | O50: 0.1297368828 | P50: 0.1327637565 | Q50: 0.1286990975 | R50: 0.07509874797 | S50: 0.04320371523 | T50: 0.0809190008 | U50: 0.07912011559 | V50: 0.08155862183
E51: DirectPasture | F51: 0.03137994153 | G51: 0.03052949835 | H51: 0.02872889126 | I51: 0.0321035527 | J51: 0.03111617252 | K51: 0.0304933418 | L51: 0.03302921578 | M51: 0.02790173432 | N51: 0.03441577471 | O51: 0.03067606724 | P51: 0.03669774346 | Q51: 0.02861149253 | R51: 0.03342237783 | S51: 0.02994682443 | T51: 0.03915256076 | U51: 0.031842788 | V51: 0.03005858537
E52: ManureSpread | F52: 0.006969998564 | G52: 0.005447610022 | H52: 0.007116728111 | I52: 0.004440294092 | J52: 0.004451984244 | K52: 0.009303494392 | L52: 0.007628698018 | M52: 0.01101509948 | N52: 0.003972832287 | O52: 0.01582555754 | P52: 0.008838278058 | Q52: 0.01822119623 | R52: 0.006041946307 | S52: 0.005534854218 | T52: 0.004835961095 | U52: 0.00516345135 | V52: 0.008648110256
E53: IndirectNWaste | F53: 0.03297309129 | G53: 0.03139573853 | H53: 0.03069414736 | I53: 0.0323729516 | J53: 0.03126043488 | K53: 0.03343744052 | L53: 0.03464411995 | M53: 0.03220424067 | N53: 0.0338752625 | O53: 0.0375523637 | P53: 0.03948857662 | Q53: 0.03688851927 | R53: 0.03422035617 | S53: 0.03085924133 | T53: 0.03876581432 | U53: 0.03241133138 | V53: 0.03269843275
E54: DirectNFert | F54: 0.02610036404 | G54: 0.02495501518 | H54: 0.01528510338 | I54: 0.02914220528 | J54: 0.03237171924 | K54: 0.02906174937 | L54: 0.03508265097 | M54: 0.02290852027 | N54: 0.02443698754 | O54: 0.02690803937 | P54: 0.02390941063 | Q54: 0.02793614066 | R54: 0.02963286299 | S54: 0.02158438489 | T54: 0.02776208935 | U54: 0.02546964432 | V54: 0.02638933169
E55: IndirectNFert | F55: 0.01362527479 | G55: 0.01302736386 | H55: 0.007979342104 | I55: 0.01521321903 | J55: 0.01689913479 | K55: 0.01517121832 | L55: 0.01831433305 | M55: 0.01195902414 | N55: 0.01275693587 | O55: 0.01404690869 | P55: 0.01248152284 | Q55: 0.01458361241 | R55: 0.01546935898 | S55: 0.01126778059 | T55: 0.01449275173 | U55: 0.01329601771 | V55: 0.01377612569
E56: Electricty | F56: 0.02453689023 | G56: 0.03241448873 | H56: 0.03229349746 | I56: 0.03047918105 | J56: 0.03449498594 | K56: 0.03753407134 | L56: 0.04252710947 | M56: 0.0324312961 | N56: 0.00488107473 | O56: 0.005309487976 | P56: 0.004679068969 | Q56: 0.005525631636 | R56: 0.02192191589 | S56: 0.01674264143 | T56: 0.01832472816 | U56: 0.02355986322 | V56: 0.02606843604
E57: Fuel | F57: 0.02389368843 | G57: 0.02038709512 | H57: 0.02216606304 | I57: 0.01498266665 | J57: 0.0236567621 | K57: 0.03135968373 | L57: 0.0333325673 | M57: 0.02934344008 | N57: 0.00984158712 | O57: 0.03104586093 | P57: 0.02150392506 | Q57: 0.0343173818 | R57: 0.02996878554 | S57: 0.03198283859 | T57: 0.01638107328 | U57: 0.01971730579 | V57: 0.02809132755
E58: UreaLime | F58: 0.01474715287 | G58: 0.01579575334 | H58: 0.01134015183 | I58: 0.01550512696 | J58: 0.02143310153 | K58: 0.01907630372 | L58: 0.02158358614 | M58: 0.01651391619 | N58: 0.01284360536 | O58: 0.0155284038 | P58: 0.01240399127 | Q58: 0.01659963096 | R58: 0.008622325517 | S58: 0.01120702309 | T58: 0.01540237752 | U58: 0.01381038106 | V58: 0.0153999801
E59: PreFarmConc | F59: 0.04442787166 | G59: 0.04350588793 | H59: 0.03993284308 | I59: 0.04471165698 | J59: 0.0465877727 | K59: 0.04666474057 | L59: 0.04804066478 | M59: 0.04525857626 | N59: 0.03542259372 | O59: 0.05077764424 | P59: 0.04687626264 | Q59: 0.05211526079 | R59: 0.04984426743 | S59: 0.04433430559 | T59: 0.02476687932 | U59: 0.04019482065 | V59: 0.05016857047
E60: PreFarmFodder | F60: 0.01428558514 | G60: 0.01570992978 | H60: 0.02922869029 | I60: 0.009296259192 | J60: 0.005901087772 | K60: 0.01701773438 | L60: 0.0145607821 | M60: 0.01952868561 | N60: 0.01100135289 | O60: 0.01476211246 | P60: 0.01300637528 | Q60: 0.0153640795 | R60: 0.005833717978 | S60: 0.01909422938 | T60: 0.008479720717 | U60: 0.01383621811 | V60: 0.01535375679
E61: PreFarmFert | F61: 0.04662502999 | G61: 0.04445578198 | H61: 0.02849850084 | I61: 0.05051489865 | J61: 0.05754540268 | K61: 0.05173872885 | L61: 0.06293769671 | M61: 0.04029362983 | N61: 0.04380844773 | O61: 0.04519142653 | P61: 0.04013939846 | Q61: 0.04692355045 | R61: 0.05483852411 | S61: 0.03983625839 | T61: 0.05100838529 | U61: 0.04519819853 | V61: 0.04720174202
E62: TreeSequester | F62: -0.01417098189 | G62: -0.008515317631 | H62: -0.004399521173 | I62: -0.01687369816 | J62: -0.005095892852 | K62: -0.04803215976 | L62: -0.08302941485 | M62: -0.01226573423 | N62: -0.005412274793 | O62: 0 | P62: 0 | Q62: 0 | R62: -0.01132629436 | S62: -0.0008451303494 | T62: -0.003120446121 | U62: -0.01430222815 | V62: -0.01543143643
X63: Selected Baseline farm | Y63: Selected Example Baseline farm
F64: Australia-wide | G64: Victoria | H64: Victoria- Northern | I64: Victoria- Gippsland | J64: Victoria- South West | K64: New South Wales | L64: NSW- North | M64: NSW- South | N64: Tasmania | O64: Queensland | P64: QLD- North | Q64: QLD- South | R64: Western Australia | S64: South Australia | T64: Low grain (< 1 t DM/cow.annum) | U64: Medium grain (1-2 t DM/cow.annum) | V64: High grain (> 2 t DM/cow.annum) | X64: =X22 -> Victoria- South West | Y64: =Y22 -> Victoria- South West
E65: Enteric methane | F65: =F49 -> 0.5644374493 | G65: =G49 -> 0.5442689808 | H65: 0.5366519436 | I65: 0.5536962834 | J65: 0.5439821227 | K65: 0.5734546516 | L65: 0.5909595552 | M65: 0.555565025 | N65: 0.5752073415 | O65: 0.6288668573 | P65: 0.6688594268 | Q65: 0.6151551191 | R65: 0.5730696094 | S65: 0.5358127295 | T65: 0.6269627064 | U65: 0.560198675 | V65: 0.560043766 | X65: =HLOOKUP($X$64,$E$64:$V$71,2,FALSE) -> 0.5439821227
E66: Waste methane | F66: =F50 -> 0.08051553448 | G66: =G50 -> 0.08367528505 | H66: 0.08867060408 | I66: 0.08453862569 | J66: 0.07681756159 | K66: 0.07988923605 | L66: 0.07009263704 | M66: 0.08990114494 | N66: 0.06506298208 | O66: 0.1297368828 | P66: 0.1327637565 | Q66: 0.1286990975 | R66: 0.07509874797 | S66: 0.04320371523 | T66: 0.0809190008 | U66: 0.07912011559 | V66: 0.08155862183 | X66: =HLOOKUP($X$64,$E$64:$V$71,3,FALSE) -> 0.07681756159
E67: Waste nitrous oxide | F67: =F51+F52+F53 -> 0.07132303138 | G67: =G51+G52+G53 -> 0.06737284691 | H67: 0.06653976672 | I67: 0.06891679839 | J67: 0.06682859165 | K67: 0.07323427671 | L67: 0.07530203376 | M67: 0.07112107446 | N67: 0.07226386949 | O67: 0.08405398848 | P67: 0.08502459814 | Q67: 0.08372120803 | R67: 0.0736846803 | S67: 0.06634091998 | T67: 0.08275433618 | U67: 0.06941757073 | V67: 0.07140512838 | X67: =HLOOKUP($X$64,$E$64:$V$71,4,FALSE) -> 0.06682859165
E68: Fertiliser-derived N2O and CO2 | F68: =F54+F55+F58+F61 -> 0.1010978217 | G68: =G54+G55+G58+G61 -> 0.09823391436 | H68: 0.06310309815 | I68: 0.1103754499 | J68: 0.1282493583 | K68: 0.1150480003 | L68: 0.1379182669 | M68: 0.09167509043 | N68: 0.09384597649 | O68: 0.1016747784 | P68: 0.0889343232 | Q68: 0.1060429345 | R68: 0.1085630716 | S68: 0.08389544695 | T68: 0.1086656039 | U68: 0.09777424162 | V68: 0.1027671795 | X68: =HLOOKUP($X$64,$E$64:$V$71,5,FALSE) -> 0.1282493583
E69: Energy consumption | F69: =F56+F57 -> 0.04843057866 | G69: =G56+G57 -> 0.05280158386 | H69: 0.0544595605 | I69: 0.0454618477 | J69: 0.05815174804 | K69: 0.06889375507 | L69: 0.07585967678 | M69: 0.06177473619 | N69: 0.01472266185 | O69: 0.03635534891 | P69: 0.02618299402 | Q69: 0.03984301344 | R69: 0.05189070143 | S69: 0.04872548003 | T69: 0.03470580144 | U69: 0.04327716901 | V69: 0.05415976359 | X69: =HLOOKUP($X$64,$E$64:$V$71,6,FALSE) -> 0.05815174804
E70: Purchased feeds | F70: =F59+F60 -> 0.0587134568 | G70: =G59+G60 -> 0.05921581771 | H70: 0.06916153337 | I70: 0.05400791617 | J70: 0.05248886047 | K70: 0.06368247495 | L70: 0.06260144688 | M70: 0.06478726187 | N70: 0.04642394661 | O70: 0.0655397567 | P70: 0.05988263791 | Q70: 0.06747934028 | R70: 0.05567798541 | S70: 0.06342853497 | T70: 0.03324660004 | U70: 0.05403103877 | V70: 0.06552232727 | X70: =HLOOKUP($X$64,$E$64:$V$71,7,FALSE) -> 0.05248886047
E71: Tree carbon sequestration | F71: =F62 -> -0.01417098189 | G71: =G62 -> -0.008515317631 | H71: -0.004399521173 | I71: -0.01687369816 | J71: -0.005095892852 | K71: -0.04803215976 | L71: -0.08302941485 | M71: -0.01226573423 | N71: -0.005412274793 | O71: 0 | P71: 0 | Q71: 0 | R71: -0.01132629436 | S71: -0.0008451303494 | T71: -0.003120446121 | U71: -0.01430222815 | V71: -0.01543143643 | X71: =HLOOKUP($X$64,$E$64:$V$71,8,FALSE) -> -0.005095892852
E72: Net | F72: =SUM(F65:F71) -> 0.9103468904 | G72: =SUM(G65:G71) -> 0.897053111 | H72: 0.8741869853 | I72: 0.9001232231 | J72: 0.9214223498 | K72: 0.9261702349 | L72: 0.9297042016 | M72: 0.9225585986 | N72: 0.8621145033 | O72: 1.046227613 | P72: 1.061647737 | Q72: 1.040940713 | R72: 0.9266585018 | S72: 0.8405616963 | T72: 0.9641336027 | U72: 0.8895165826 | V72: 0.9200253501 | X72: =HLOOKUP($X$64,$E$64:$V$72,9,FALSE) -> 0.9214223498

Sheet Industry averages (hidden)
A1: Emissions intensity for regions/ grain feeding groups (2019-20 to 2023-24 averages)
U2: Industry average accessing
C3: Australia-wide | D3: Victoria | E3: Victoria- Gippsland | F3: Victoria- Northern | G3: Victoria- South West | H3: New South Wales | I3: NSW- North | J3: NSW- South | K3: Queensland | L3: QLD- North | M3: QLD- South | N3: South Australia | O3: Tasmania | P3: Western Australia | Q3: Low grain (< 1 t DM/cow.annum) | R3: Medium grain (1-2 t DM/cow.annum) | S3: High grain (> 2 t DM/cow.annum) | U3: ='Your Farm'!K237 -> Victoria- South West
B4: Milk EI | C4: 0.9103468904 | D4: 0.897053111 | E4: 0.9001232231 | F4: 0.8741869853 | G4: 0.9214223498 | H4: 0.9420148854 | I4: 0.9297042016 | J4: 0.9225585986 | K4: 1.046227613 | L4: 1.061647737 | M4: 1.040940713 | N4: 0.8405616963 | O4: 0.8621145033 | P4: 0.9266585018 | Q4: 0.9641336027 | R4: 0.8895165826 | S4: 0.9200253501 | U4: =HLOOKUP('Your Farm'!$K$237,'Industry averages'!$B$3:$S$22,2,FALSE) -> 0.9214223498
B5: Meat EI | C5: 5.01679186 | D5: 4.857611727 | E5: 4.811004953 | F5: 4.713442285 | G5: 5.077221833 | H5: 4.808408119 | I5: 4.801898544 | J5: 4.950078301 | K5: 6.295573268 | L5: 7.069184686 | M5: 6.030335068 | N5: 4.45507044 | O5: 4.70884553 | P5: 5.490950613 | Q5: 5.612714546 | R5: 4.776867238 | S5: 5.131179748 | U5: =HLOOKUP('Your Farm'!$K$237,'Industry averages'!$B$3:$S$22,3,FALSE) -> 5.077221833
B6: Milk MS EI | C6: 12.71756078 | D6: 12.46265688 | E6: 12.48029343 | F6: 12.16071656 | G6: 12.80734872 | H6: 13.27590228 | I6: 13.10237114 | J6: 12.99286261 | K6: 14.71741512 | L6: 15.06679559 | M6: 14.59762753 | N6: 11.78198133 | O6: 11.85577721 | P6: 13.12537623 | Q6: 13.28637558 | R6: 12.34887034 | S6: 12.93613932 | U6: =HLOOKUP('Your Farm'!$K$237,'Industry averages'!$B$3:$S$22,4,FALSE) -> 12.80734872
B7: Enteric methane | C7: 0.5622862162 | D7: 0.5442689808 | E7: 0.5536962834 | F7: 0.5366519436 | G7: 0.5439821227 | H7: 0.5631533429 | I7: 0.5673653864 | J7: 0.555565025 | K7: 0.6288668573 | L7: 0.6688594268 | M7: 0.6151551191 | N7: 0.5358127295 | O7: 0.5752073415 | P7: 0.5730696094 | Q7: 0.6269627064 | R7: 0.5549617832 | S7: 0.560043766 | U7: =HLOOKUP('Your Farm'!$K$237,'Industry averages'!$B$3:$S$22,5,FALSE) -> 0.5439821227
B8: Waste methane | C8: 0.08030877725 | D8: 0.08367528505 | E8: 0.08453862569 | F8: 0.08867060408 | G8: 0.07681756159 | H8: 0.07887041758 | I8: 0.06782497711 | J8: 0.08990114494 | K8: 0.1297368828 | L8: 0.1327637565 | M8: 0.1286990975 | N8: 0.04320371523 | O8: 0.06506298208 | P8: 0.07509874797 | Q8: 0.0809190008 | R8: 0.0786167925 | S8: 0.08155862183 | U8: =HLOOKUP('Your Farm'!$K$237,'Industry averages'!$B$3:$S$22,6,FALSE) -> 0.07681756159
B9: N2O direct grazing | C9: 0.03124674233 | D9: 0.03052949835 | E9: 0.0321035527 | F9: 0.02872889126 | G9: 0.03111617252 | H9: 0.03017270603 | I9: 0.03156832133 | J9: 0.02790173432 | K9: 0.03067606724 | L9: 0.03669774346 | M9: 0.02861149253 | N9: 0.02994682443 | O9: 0.03441577471 | P9: 0.03342237783 | Q9: 0.03915256076 | R9: 0.03151853219 | S9: 0.03005858537 | U9: =HLOOKUP('Your Farm'!$K$237,'Industry averages'!$B$3:$S$22,7,FALSE) -> 0.03111617252
B10: Manure storage & spread | C10: 0.006952884044 | D10: 0.005447610022 | E10: 0.004440294092 | F10: 0.007116728111 | G10: 0.004451984244 | H10: 0.008754058351 | I10: 0.007440990377 | J10: 0.01101509948 | K10: 0.01582555754 | L10: 0.008838278058 | M10: 0.01822119623 | N10: 0.005534854218 | O10: 0.003972832287 | P10: 0.006041946307 | Q10: 0.004835961095 | R10: 0.005121788318 | S10: 0.008648110256 | U10: =HLOOKUP('Your Farm'!$K$237,'Industry averages'!$B$3:$S$22,8,FALSE) -> 0.004451984244
B11: Indirect N waste | C11: 0.0260225377 | D11: 0.02495501518 | E11: 0.02914220528 | F11: 0.01528510338 | G11: 0.03237171924 | H11: 0.02880288612 | I11: 0.03422907182 | J11: 0.02290852027 | K11: 0.02690803937 | L11: 0.02390941063 | M11: 0.02793614066 | N11: 0.02158438489 | O11: 0.02443698754 | P11: 0.02963286299 | Q11: 0.02776208935 | R11: 0.02528018642 | S11: 0.02638933169 | U11: =HLOOKUP('Your Farm'!$K$237,'Industry averages'!$B$3:$S$22,9,FALSE) -> 0.03237171924
B12: Direct N fert | C12: 0.03284590953 | D12: 0.03139573853 | E12: 0.0323729516 | F12: 0.03069414736 | G12: 0.03126043488 | H12: 0.03288558392 | I12: 0.03324922328 | J12: 0.03220424067 | K12: 0.0375523637 | L12: 0.03948857662 | M12: 0.03688851927 | N12: 0.03085924133 | O12: 0.0338752625 | P12: 0.03422035617 | Q12: 0.03876581432 | R12: 0.03210172424 | S12: 0.03269843275 | U12: =HLOOKUP('Your Farm'!$K$237,'Industry averages'!$B$3:$S$22,10,FALSE) -> 0.03126043488
B13: Indirect N fert | C13: 0.01357914087 | D13: 0.01302736386 | E13: 0.01521321903 | F13: 0.007979342104 | G13: 0.01689913479 | H13: 0.01500488262 | I13: 0.01780834811 | J13: 0.01195902414 | K13: 0.01404690869 | L13: 0.01248152284 | M13: 0.01458361241 | N13: 0.01126778059 | O13: 0.01275693587 | P13: 0.01546935898 | Q13: 0.01449275173 | R13: 0.01318371079 | S13: 0.01377612569 | U13: =HLOOKUP('Your Farm'!$K$237,'Industry averages'!$B$3:$S$22,11,FALSE) -> 0.01689913479
B14: Electricity | C14: 0.02443172777 | D14: 0.03241448873 | E14: 0.03047918105 | F14: 0.03229349746 | G14: 0.03449498594 | H14: 0.03864554758 | I14: 0.04137371477 | J14: 0.0324312961 | K14: 0.005309487976 | L14: 0.004679068969 | M14: 0.005525631636 | N14: 0.01674264143 | O14: 0.00488107473 | P14: 0.02192191589 | Q14: 0.01832472816 | R14: 0.02330385914 | S14: 0.02606843604 | U14: =HLOOKUP('Your Farm'!$K$237,'Industry averages'!$B$3:$S$22,12,FALSE) -> 0.03449498594
B15: Fuel | C15: 0.02376382229 | D15: 0.02038709512 | E15: 0.01498266665 | F15: 0.02216606304 | G15: 0.0236567621 | H15: 0.0302835865 | I15: 0.03190822897 | J15: 0.02934344008 | K15: 0.03104586093 | L15: 0.02150392506 | M15: 0.0343173818 | N15: 0.03198283859 | O15: 0.00984158712 | P15: 0.02996878554 | Q15: 0.01638107328 | R15: 0.01940116387 | S15: 0.02809132755 | U15: =HLOOKUP('Your Farm'!$K$237,'Industry averages'!$B$3:$S$22,13,FALSE) -> 0.0236567621
B16: Urea & Lime | C16: 0.0147149639 | D16: 0.01579575334 | E16: 0.01550512696 | F16: 0.01134015183 | G16: 0.02143310153 | H16: 0.01847320768 | I16: 0.02123054583 | J16: 0.01651391619 | K16: 0.0155284038 | L16: 0.01240399127 | M16: 0.01659963096 | N16: 0.01120702309 | O16: 0.01284360536 | P16: 0.008622325517 | Q16: 0.01540237752 | R16: 0.01373202128 | S16: 0.0153999801 | U16: =HLOOKUP('Your Farm'!$K$237,'Industry averages'!$B$3:$S$22,14,FALSE) -> 0.02143310153
B17: Concs | C17: 0.04428844264 | D17: 0.04350588793 | E17: 0.04471165698 | F17: 0.03993284308 | G17: 0.0465877727 | H17: 0.04479865596 | I17: 0.04651144332 | J17: 0.04525857626 | K17: 0.05077764424 | L17: 0.04687626264 | M17: 0.05211526079 | N17: 0.04433430559 | O17: 0.03542259372 | P17: 0.04984426743 | Q17: 0.02476687932 | R17: 0.03985539918 | S17: 0.05016857047 | U17: =HLOOKUP('Your Farm'!$K$237,'Industry averages'!$B$3:$S$22,15,FALSE) -> 0.0465877727
B18: Fodder | C18: 0.01423607782 | D18: 0.01570992978 | E18: 0.009296259192 | F18: 0.02922869029 | G18: 0.005901087772 | H18: 0.01599365048 | I18: 0.0140177986 | J18: 0.01952868561 | K18: 0.01476211246 | L18: 0.01300637528 | M18: 0.0153640795 | N18: 0.01909422938 | O18: 0.01100135289 | P18: 0.005833717978 | Q18: 0.008479720717 | R18: 0.0137156991 | S18: 0.01535375679 | U18: =HLOOKUP('Your Farm'!$K$237,'Industry averages'!$B$3:$S$22,16,FALSE) -> 0.005901087772
B19: Fertiliser | C19: 0.04645979936 | D19: 0.04445578198 | E19: 0.05051489865 | F19: 0.02849850084 | G19: 0.05754540268 | H19: 0.05109370548 | I19: 0.06112548979 | J19: 0.04029362983 | K19: 0.04519142653 | L19: 0.04013939846 | M19: 0.04692355045 | N19: 0.03983625839 | O19: 0.04380844773 | P19: 0.05483852411 | Q19: 0.05100838529 | R19: 0.04479596644 | S19: 0.04720174202 | U19: =HLOOKUP('Your Farm'!$K$237,'Industry averages'!$B$3:$S$22,17,FALSE) -> 0.05754540268
B20: Milk to meat ratio | C20: 0.8661763141 | D20: 0.8812500607 | E20: 0.8848114467 | F20: 0.8858089186 | G20: 0.8722180451 | H20: 0.8646538231 | I20: 0.8625427565 | J20: 0.8792564747 | K20: 0.8402592851 | L20: 0.8301694484 | M20: 0.8437186577 | N20: 0.8834618407 | O20: 0.8737702654 | P20: 0.8093178202 | Q20: 0.8443943834 | R20: 0.8750430316 | S20: 0.8619192166 | U20: =HLOOKUP('Your Farm'!$K$237,'Industry averages'!$B$3:$S$22,18,FALSE) -> 0.8722180451 | XFD20: 0.05
B21: Meat to milk ratio | C21: 0.1338236859 | D21: 0.1187499393 | E21: 0.1151885533 | F21: 0.1141910814 | G21: 0.1277819549 | H21: 0.1353461769 | I21: 0.1374572435 | J21: 0.1207435253 | K21: 0.1597407149 | L21: 0.1698305516 | M21: 0.1562813423 | N21: 0.1165381593 | O21: 0.1262297346 | P21: 0.1906821798 | Q21: 0.1556056166 | R21: 0.1249569684 | S21: 0.1380807834 | U21: =HLOOKUP('Your Farm'!$K$237,'Industry averages'!$B$3:$S$22,19,FALSE) -> 0.1277819549
B24: Datasets accessed | C24: 1020 | D24: 400 | E24: 125 | F24: 150 | G24: 125 | H24: 184 | I24: 93 | J24: 91 | K24: 94 | L24: 24 | M24: 70 | N24: 78 | O24: 143 | P24: 121 | Q24: 66 | R24: 419 | S24: 535
B27: Data generated from the folder 2023 consultancy to DA > 2025 bulk download data > 2025 data analysis file > PT for EIs tab

Sheet Introduction
A1: Australian Dairy Carbon Calculator
A3: Version 6.1, November 2025
B5: Introduction
B6: The Australian Dairy Carbon Calculator (ADCC, and previously known as DGAS) was developed to explore the implications of a range of diet, herd or feedbase management options on the greenhouse gas (GHG) emissions for a dairy enterprise. In addition, a replication of the baseline 'Your farm' system is provided to users to give them the ability to alter one or more components of the whole farm system.
B10: The GHG emissions estimations are based on Australia's current National Greenhouse Gas Inventory (NGGI) methodology. This is changing in 2022, with updated global warming potential values and some other minor changes. ADCC estimates the carbon dioxide, methane and nitrous oxide emissions of an Australian dairy enterprise based on carbon dioxide equivalents. More information on the NGGI methodology can be found at:
B13: https://www.dcceew.gov.au/climate-change/publications/national-inventory-report-2023
B15: How to enter data into the Australian Dairy Carbon Calculator
B16: The first step in using the carbon calculator is to enter data on the 'Your Farm' tab. This is the farm system prior to exploring any mitigation options or strategies. The accuracy of the 'Your farm' system is important, both in terms of an accurate assessment of it's GHG emissions and the ramifications for when an abatement strategy is implemented. An example of a farm can be viewed on the 'Example Farm' worktab. There are comments attached to many of the cells, accessed via the question mark (?) to assist with additional information regarding what the question is asking for.
B21: Click to progress to 'Your Farm' worksheet | K21: Click here to progress to the 'Example Farm' worksheet
B23: Users then progress to the 'Abatement Schematic' worksheet and select which abatement strategy they wish to explore. Abatement options are segmented into three theme areas: Herd and breeding management, Diet manipulation, Feedbase management. Clicking on an abatement strategy box below any of these theme areas will take the user to the relevant worksheet. Alternatively, users can click on the relevant tab at the bottom of the workbook. In addition, by clicking on the Whole farm abatement strategy link, users will progress to the 'Strategy Farm' where they can alter one or more components of the whole farm system. When comparing the baseline 'Your farm' system to the abatement strategy farm system, you are comparing two steady state systems, the change from one farm to the other has been fully completed. This is especially important with the reproductive strategies which will take years to fully achieve (e.g. extended lactation for the whole herd). Therefore the reduction in GHG emissions and/or increase in farm profitability will not reach the results presented here until the abatement strategy has been fully implemented.
B33: Click here to progress to the 'Abatement Schematic' worksheet
B35: Entering data for the strategy specific worksheets
B36: Once the user has clicked on the box representing the abatement strategy they wish to explore, the worksheet is divided into 6 sections.
B37: Where applicable, users are informed of what each question is asking for (shown by hovering over the cell) and the factors users need to consider (e.g. indirect expenses associated with implementing an abatement strategy).
B40: The Introduction section is a brief explanation of what the abatement strategy explores and how to fill in the data.
B42: The second 'Your Farm' system section is a series of farm data questions. For most abatement strategies, the data for the herd is already linked to the 'Your Farm' worksheet and therefore the user does not need to enter any data. An equation will appear in the data cell and it will also be protected. However, if the cells corresponding to the questions relating to the baseline 'Your farm' system are coloured green, a figure will need to be entered by the user. For example, with the 'Extended Lactation' strategy, the user needs to enter your farm daily milk production for both the 1st lactation cows and subsequent lactation cows as this distinction cannot be made with respect to milk production when entering your farm data.
B49: The third Key variables section is a series of key questions relevant to the abatement strategy being explored (e.g. percentage reduction in enteric methane as a result of breeding or management). Data is entered either by using the up/down arrows or entering data (e.g. calving date for the extended lactation strategy). All the cells that require numbers will begin at zero when the carbon calculator is opened for the first time.
B53: The fourth Variation in production section contains production changes (e.g. increase in milk production).
B55: The fifth GHG and economic results section contains the reductions in GHG emissions and changes in financial results as a consequence of implementing the abatement strategy. Unlike all other sections, this section is consistent across all abatement strategies.
B58: The Graphics section illustrates the relative change in economic results when implementing an abatement strategy. There are four columns and all are monetary figures representing an increase in income and expenses relative to the 'Your farm' system. Carbon credits represents an additional source of income the farmer would receive if the abatement strategy explored qualified for payment as part of a carbon offset scheme. Implementation expenses represents the additional expenses associated with implementing the abatement strategy being explored. Additional milk income represents any additional income from increased milk production if the strategy resulted in more energy available for milk production. Total farm benefit represents the sum of income from carbon credits and additional milk production minus the implementation expenses.
B65: Entering data for the abatement 'Strategy Farm' worksheet
B66: When opening up the abatement 'Strategy Farm' worksheet for the first time, it looks like a mirror image of the 'Your farm' system as all data entry cells are linked to the 'Your Farm' system worksheet. Users then can alter one or more cells by typing in a new figure (e.g. increasing the herd size, reducing N fertiliser inputs etc). Wherever new data is entered, the cells will change from being coloured green with black text to being coloured red with white text. This gives the user a visual indication of which cells have been altered between 'Your farm' and 'Strategy farm' systems (see image below showing that the milking cow and heifers > 1 numbers have been altered but Heifers < 1 have not). If the user has made a mistake and incorrect cells were altered, the link to the 'Your farm' system has been broken and the user has four options available to re-correct. Use the keyboard shortcut Control-B and a message window will appear showing the previous value and asking if you would like to revert to it. Click yes to re-establish the link to the 'Your Farm' sheet. Alternatively, if the error is identified straight away, they can click on the blue undo button generally located at the top left hand of the worksheet. However, if several changes have been made, it will take a lot of clicks of the undo button to get the data correct again. Users can then either re-enter the correct equation back into the cell manually (e.g. retyping ='Your farm'!D9:F9 in the Strategy farm D9 cell to correct the strategy owner ID) or manually typing in the correct number. Once any one of these four options is completed, the cell will go back to being green with black text to indicate that it is now exactly the same as per the 'Your farm' system.
B87: Results of the changes to the abatement strategy farm are presented in table form as per 'Your farm' system results. In addition, a column chart shows the 'Your farm' baseline system and the whole farm abatement system results for each GHG source, on a per kg of fat and protein corrected milk (FPCM) basis. Unlike all other strategy-specific worksheets, with this strategy we have very few questions relating to the economics associated with implementation.
B92: What the Australian Dairy Carbon Calculator can't do
B93: The carbon calculator is built using a static approach. ADCC is not dynamic and therefore can't inform the users if the abatement strategy being explored can be achieved on farm.
B95: For example, if the abatement strategy being explored is the Extended lactation strategy, the milkers spend a greater proportion of their time lactating, it may be that there are larger feed deficits at times of the year, such as autumn, where feed demand is higher with the strategy farm compared to your farm. Users need to firstly identify if this would be true for the farm system being explored and then decide how best to reduce this feed deficit, for example with additional grain/supplements which need to added to the analysis.
B100: The Australian Dairy Carbon Calculator development and disclaimers
B101: The Australian Dairy Carbon Calculator (versions 1 through 4) was developed by staff from the University of Tasmania, University of Melbourne and the Victorian Department of Environment and Primary Industries and was funded by the Australian Department of Agriculture, Dairy Australia, Meat and Livestock Australia and Australian Wool Innovation as part of the WFSAM project.
B105: ADCC (versions 5 and 6) was funded by Dairy Australia, and developed by staff from the University of Tasmania, with input from staff at Dairy Australia, University of Melbourne, Agriculture Victoria and XCheque.
B108: The funding bodies and developers of the calculator do not guarantee that the calculator is without flaw of any kind and therefore disclaims all liability for any error, loss or other consequence which may arise from reliance on any information contained herein.
B110: The calculator is subject to development at all times and the methodology for estimating GHG emissions alters over time so we take no responsibility for the calculator being current. If required, professional advice should be sought when entering the baseline 'Your farm' system, deciding on the degree of change possible when implementing an abatement strategy and interpretation of the results. The carbon calculator can be used as a first review of the potential changes in GHG emissions associated with implementing any of the intervention strategies currently available. However, the marginal economic analysis is only a guide and therefore a full farm systems and economic analysis is recommended to better inform the productivity and profitability implications on farm, especially if capital investment is required to implement a strategy.
B125: Changes between 5.4 and 6.1 (greater information can be found in the User Manual located on the Dairy Australia website)
B126: 1. Complete revamp of the colour scheme and restructuring of tabs, including drop-down lists to navigate to other tabs, pulling data from other tabs into the 'Your farm' tab (e.g. fertiliser data or stock sales data), inclusion of a printable results page, use of a Question mark (?) to click on to pull up notes to help with data entry and results interpretation (previously notes would pop up when in a cell with a note which then hid the cell)
B129: 2. Users can enter the proportion of solids removed via pre-treatment of waste destined for either a pond/lagoon system or spread daily from a sump system (limited to 50%)
B131: 3. Users determine which non milker stock class is fed on a feedpad and can enter different hours per day, days per year and proportion of each stock class (previously assumed all non- milkers when hours per day and days per year were entered)
B133: 4. Update of regional, state, national and levels of grain feeding averages based on DFMP and QDAF data from 2019-20 to 2023-24
B134: 5. Renaming of 'Baseline farm' tab to 'Your farm' although at times, it is more appropriate to be mentioning the baseline farm system. Thus, these terms 'Your farm' and baseline farm are interchangeable
B136: 6. Additional functionality such as within the Feed Quality table, linking the table of averages with the calculation cells to determine average feed quality for the four major supplementary feed groups (concentrates/grains, silage, hay and by-products)
B138: 7. Updates to the Fertiliser Rates tab including several new fertilisers and more accurately determining the proportion of total N fertiliser that is urea-N based
B139: 8. Adjusted the estimates in the Feeding Dietary Fats & Oils- Replacing Supplementation abatement tab so that changes in diet protein reflect changes in nitrous oxide emissions.
B141: 9. Inclusion of a new tab called 'Action Plan' which further illustrates the difference between 'Your farm' results and that of the region/state/grain feeding level you chose to compare results with. Through a series of questions and drop-down panels, users are taken along a pathway to explore potential avenues to reducing their farm's carbon footprint, including resources and links to the relevant abatement strategies within ADCC.
B145: Changes between versions 5.2 and 5.4 (intermediate version 5.3 was limited release)
B146: 1. Altered emission factors for direct nitrous oxide emissions from fertiliser and animal waste
B147: 2. Altered fractions of emissions to each manure management system and their corresponding methane conversion factor, resulting in a change to the state-based integrated methane factor
B149: 3. Allocated purchased supplementary feeds based on whether fed on the milking platform (allocated to the milk enterprise) vs the support block (proportionally allocated to milk and meat enterprises)
B151: 4. Included ADCC version 5.2 methodology, to allow a comparison with all changes made for version 5.4
B152: 5. Allow users to now define the percentage of lagoon-destined waste that is pre-treated and allocated to solid storage (default remains 20% at this stage)
B154: 6. New Other Livestock help tab to assist with the data requirements for the Other stock < 1 yr old and Other stock > 1 yr old
B155: 7. Added default DMD% and CP% values into the equations if the cells are not completed; these are 75% and 20% as per the national inventory
B156: 8. Extended the tree vegetation tab to also include 3 areas which are based on data generated from other tools/calculators (e.g. LOOC-C, FullCAM etc)
B157: 9. Added a few extra common fertilisers into the Fertiliser help tab
B158: 10. Updated the national, state, regional and grain feeding rate averages based on DFMP and QDAF data from 2018-19 to 2022-23
B159: 11. Added a new intervention tab (Diet additives) which needs expert data entry, such as rate of active ingredient feeding, cost of active ingredient, grams reduction in CH4 per kg DMI etc
B161: 12. Estimated the relative change in net farm, CH4 and N2O emissions with each intervention, relative to the baseline farm system
B162: 13. Inclusion of a printable-sized Data Summary tab containing the main results for the Baseline farm system
B164: Changes between version 5.1 and 5.2
B165: 1. Implementation of a pathway to import a DairyBase farm dataset into ADCC, including how to implement macros which everyone will need to do, not just those importing a dataset from DairyBase
B167: 2. Ability to clear all data entry for the baseline farm tab
B168: 3. Clarification around electricity consumption now only based on that purchased from the national grid
B169: 4. Altered the design of the tree carbon sequestration section, including removing the data entry drop-down list for soils and disengaged the VLOOKUP function to determine soil type for sequestration estimates. There was only a very small number of regions by tree species interaction that resulted in slight difference in results (formulas still intact if we decide to re-instate in the future),
B172: 5. Built in the option to explore up to four areas of trees for carbon sequestration
B173: 6. Fixed the cell protection not allowing to pick the other option from the drop-down list and altered to being a white cell to identify that this is a data entry cell
B175: 7. Tidying up of a few spelling mistakes
B176: 8. Amended an equation error for non-state based manure management for livestock when heifers manure is stored in a sump/dispersal system prior to spreading onto pastures
B178: 9. Included industry comparison emissions intensities, broken down into each source, per kg FPCM, kg MS and kg LW and ratio of emissions to milk vs meat
B180: 10. A rebuild of the Reduce enteric methane through breeding or management (renamed Inc. milk or reduce CH4 so that we can explore multiple options of either no change or change in enteric methane and/or milk production with or without a change in diet quality
B182: 11. Altered the Reduce CH4 through breeding or management to now just be management. Any improvement through breeding can be assessed with the Increased milk production tab
B185: Changes between version 4 and version 5.1
B186: 1. Alteration of the global warming potentials for methane from 25 to 28 times that of carbon dioxide, and for nitrous oxide from 298 to 265 times that of carbon dioxide
B188: 2. Minor changes to a range of emission factors (EF), which has resulted in a net increase in indirect N2O losses (e.g. EF for N lost through leaching has increased from 0.0075 to 0.011 Gg N2O-N/Gg N)
B190: 3. Inclusion of carbon dioxide emissions associated with the breakdown of urea and lime when applied to pastures, leading to a loss of carbon dioxide emissions
B192: 4. Alteration of the emission factors for pre-farm embedded emissions (grain, forage, fertiliser) to align with the same factors used in the SB-GAF tool (estimation of sheep and beef GHG emissions)
B194: 5. Alterations to emission factors and reporting of electricity and diesel consumption. Scope 1 diesel emissions are those emitted on farm with the consumption of fuel in vehicles, tractors, irrigation pumps etc. Scope 3 diesel emissions are associated with the extraction and manufacturing of diesel (previously included in the total diesel GHG emission estimates). Scope 2 electricity emissions are associated with the generation and subsequent consumption of electricity on farm. Scope 3 electricity emissions are those associated with loss of electricity during the transmission and delivery process. For example, to supply 1kWh of power to farm, approx. 1.3 kWh need to be generated to take into consideration electricity lost in the transmission phase.
B200: 6. An explanation of each emission source has been included as a note in the results table.
B201: 7. Two 'Other stock' classes for non-replacement animals and young bulls. This was critical to allow for the inclusion of raising heifers and steers as dairy beef
B203: 8. New data entry required to estimate total meat sold from CFA cows, bulls and young stock.
B204: 9. Allocation of GHG emissions to milk vs meat, based on energy allocation as per the IDF (2022)
B205: 10. Emissions intensity for the farm analysed based on the proportion of emissions are allocated to milk, both still presented as kg CO2e/kg FPCM and kg CO2e/kg MS, and emissions intensity for meat presented as kg CO2e/kg liveweight
B207: 11. Typical average farm emissions based on assessment of the DFMP 2015/16 to 2020/21 datasets
B208: 12. Tree carbon sequestration estimations have been redesigned and based on those in other national GHG tools such as SB-GAF
B212: DairyBase Import Instructions
B213: To import farm data from DairyBase you must first export your data from the DairyBase website. | M213: Go to DairyBase website
B214: 1. Login to the DairyBase website and then click on the Carbon Calculator button at the top right of the page (1).
B240: 2. Select the dataset you wish to bring into the Australian Dairy Carbon Calculator spreadsheet by clicking on it (1).
B268: 3. Confirm you want to load the carbon dataset by clicking on the 'Load Carbon Dataset' button (1).
B296: 4. Once the dataset has loaded click on the 'Download Spreadsheet' text at the top of the window (1). You may need to confirm the download or select a location to save the file to. If this is the case choose your Downloads folder.
B326: 5. The downloaded will be named something like 'DairyBaseData_1278_17774_08-09-4-13.xlsx' with the numbers varying depending on your user ID and the date and time.
B328: 6. Now we have the DairyBase data in a file we can import the data into the Australian Dairy Carbon Calculator spreadsheet by clicking on the 'Import from DairyBase' button at the top right of the 'Your farm' sheet.
B330: 7. The importer will first ask you to confirm you wish to overwrite all the existing data on already entered into the 'Your farm' sheet. If this is okay click 'Yes' to continue.
B351: 8. A file selection window will open for you to select the spreadsheet file you previously downloaded from the DairyBase website to your 'Downloads' folder.
B368: Allowing the DairyBase import macro to run
B401: 9. As shown in the figure above navigate to the Downloads folder and select the DairyBase file. Then click the 'OK' button.
B402: 10. The importer will now run copying the data from the DairyBase file into the 'Your farm' sheet. This may take a minute, and then the importer will tell you it has finished.
B405: Return to the 'Your farm' sheet
B409: Changing Macro Security Settings (Excel for Windows, Excel for Mac instructions are below)
B410: In order to run the macro to import your data from a DairyBase file the Excel macro security settings must set correctly.
B411: If they are too high you will get a message like the one below when you open the spreadsheet.
B424: 1. If you get the message above click on the 'Trust Center' button to go straight to the macro security settings options you can go to step 3.
B425: If you get a red warning similar to the one below continue.
B429: 2. Click on the 'File' menu at the top left of the Excel window. Now click on 'Options' at the bottom left (1).
B468: 3. Within the Options window click on the 'Trust Center' from the left side menu (1), the 'Trust Center Settings' button on the right (2).
B503: 4. Within the Trust Center, select the 'Macro Settings' of the left (1), then change the Macro Settings to the second level down (2) 'Disable VBA macros with notification'. You can then click on the 'Okay' button (3) two times to return to the spreadsheet window.
B539: Now when a spreadsheet containing a macro opens for the first time you will be prompted at the top of the window that macros have been disabled, but you can enable then if the spreadsheet is from a trusted source by clicking on the 'Enable Content' button as shown below.
B553: Warning: Never enable macros in a spreadsheet unless you are sure it can be trusted! Macros in Office documents are a common source of malicious content.
B556: Return to the 'Your farm' sheet
B560: Changing Macro Security Settings (Excel for Mac, Excel for Windows instructions are above)
B561: In order to run the macro to import your data from a DairyBase file the Excel macro security settings must set correctly.
B562: If they are too high you will get a message like the one below when you attempt to import DairyBase data.
B585: 1. Go to the Excel menu at the top right of the screen and click on the Preferences sub-menu.
B614: 2. Click on the 'Security' preferences in the 'Sharing and Privacy' section.
B637: 3. Set the Macro Security setting to the second level, 'Disable all macros with notification' as shown above (1).
B638: 4. Exit the Preferences by clicking on the red close button and return to the spreadsheet window.
B640: Now when a spreadsheet containing a macro opens for the first time you will be prompted at the top of the window that macros have been disabled, but you can enable then if the spreadsheet is from a trusted source by clicking on the 'Enable Content' button as shown below.
B669: Warning: Never enable macros in a spreadsheet unless you are sure it can be trusted! Macros in Office documents are a common source of malicious content.
B672: Return to the 'Your farm' sheet

Sheet PopUps (hidden)
A1: Help notes text This sheet contains the text used for the pop up help notes window. When the blue circle with a question mark is clicked on by the user the macro uses the cell address of the circle shape to look up the text for the title, note and more parts of the pop up window on this sheet. | B1: To modify the text of an existing note Note the cell address of the blue circle shape the user clicks on to show the help note. Now find the corresponding sheet name and cell address in columns A and B on this sheet. Columns D, E and F will contain the text for that help windows title, notes and more sections respectively. If the More cell is left empty the second 'More' tab will not appear in the popup window. Enlarge the Excel formula bar by dragging down its lower edge to make editing large blocks of text easier. | D1: To add a new help note Hover the mouse pointer over an existing help shape. Hold the Control key down on the keyboard and then hold down the left mouse button and drag the newly copied shape to the cell location you want the new note to be in and release the left mouse button. While the newly created shape is selected give it a new name in the top left of the screen, to the left of the Excel formula bar. The shapes are called PopUpXX0001 with XX unique to the sheet name and the number sequential for each of the popup shapes on the sheet. | E1: To add a new help note (2) Take note of the cell address that the popup shape is in. The help shapes can be selected to rename or move them by right clicking on them. Unhide the PopUps sheet, find the corresponding section for the sheet you are adding to and insert a new row in the appropriate location. In column A enter the sheet name and in column B the cell address of the help shape. Columns D, E and F will contain the text of the help window's title, notes page and more page if it is so be used. If nothing is entered in the More column the second More tab will not appear in the popup window. | G1: To add a new help note (3) Now go back to the sheet and click on the newly created help circle shape and the popup widow should appear with your newly entered help text. If the text cannot be found a window will appear telling you the sheet name and cell address index column used to look it up. This must exactly match the index on the PopUp sheet created from the sheet name and cell address you entered.
A3: Sheet name | B3: Cell | C3: Index | D3: Title | E3: Note | F3: More
A4: Your farm | B4: C8 | C4: =IF(AND(LEN(A4)>0,LEN(B4)>0),_xlfn.CONCAT(TRIM(LOWER(A4)),"!",TRIM(B4)),"") -> your farm!C8 | D4: Owner or sharefarmer ID | E4: Enter the primary ID you wish to use to report these results.
A5: Your farm | B5: C12 | C5: =IF(AND(LEN(A5)>0,LEN(B5)>0),_xlfn.CONCAT(TRIM(LOWER(A5)),"!",TRIM(B5)),"") -> your farm!C12 | D5: Choose your state in Australia | E5: When you go to the white cell to the right of this heading, a drop down arrow will appear to the right hand side and if you click on this, a list of all the states of Australia will appear.
A6: Your farm | B6: I8 | C6: your farm!I8 | D6: Supplier Number | E6: This is the unique supplier number that farmers have with their milk company.
A7: Your farm | B7: I10 | C7: your farm!I10 | D7: Year reviewed | E7: Enter the financial year that this GHG assessment is for using the format 2021/22.
A8: Your farm | B8: J12 | C8: your farm!J12 | D8: Choose your region/ farm system comparison | E8: Select your option here to populate the Typical Industry Average graph below. The averages are based on data from the Dairy Farm Monitor Project (DFMP) and the Queensland Dairy Accounting Scheme (QDAS) as found in DairyBase (2018-19 to 2022-23). Select which region/state you wish to compare your results to. Alternatively, we have provided an Australia-wide average. | F8: In addition, we have analysed the DFMP and QDAS datasets to generate averages for three classes of grain/concentrate feeding to represent farm systems. These are low (< 1 t DM/cow.annum), medium (1-2 t DM/cow.annum) or high (> 2 t DM/cow.annum). As we can't determine which animals were fed the grain/concentrate, we assumed all went to the milking cow as she would be fed the most grain on farm. You need to determine how much grain/concentrate you feed your milking herd to be able to select the most appropriate comparison. Selecting a grain/concentrate option will not limit the results to just your region/state but rather across the country.
A9: Your farm
A10: Your farm | B10: C16 | C10: your farm!C16 | D10: Livestock numbers | E10: Insert the number of animals in each category.
A11: Your farm | B11: C18 | C11: your farm!C18 | D11: Liveweight | E11: Specify the average liveweight of your herd for each category. Typically mature Jerseys are around 400kg, medium size Friesians are around 550kg and large Holstein Friesians are around 650kg. See the ADCC manual for more assistance.
A12: Your farm | B12: C20 | C12: your farm!C20 | D12: Liveweight gain | E12: Insert the likely average daily liveweight gain for each class of animal in the herd. This is an estimate of the expected weight gain of an animal in a particular class of livestock over the 12 month period. There are indicative liveweight gains in the heading for the stock classes that are still growing. See the ADCC manual for more assistance.
A13: Your farm | B13: C22 | C13: your farm!C22 | D13: Number of stock sold each year | E13: Enter the number of animals sold from each stock class. For example, sold 70 cull cows, 50 non-replacement heifers and 100 bull calves. These numbers are used to estimate total meat sold from the farm so that an equivalent amount of GHG emissions are allocated to meat production as opposed to milk production.
A14: Your farm | B14: C24 | C14: your farm!C24 | D14: Liveweight at point of sale | E14: Enter the average liveweight of the sold stock. For example, cull cows were 550 kg, non-replacement heifers were 175 kg and bull calves were 50 kg. These numbers are used to estimate total meat sold from the farm so that an equivalent amount of GHG emissions are allocated to meat production as opposed to milk production.
A15: Your farm | B15: D14 | C15: your farm!D14 | D15: Milking Cows | E15: Milking cows also include non-lactating cows. So if you milk year-round, it is how many cows calved in the 12 month period as opposed to the milking herd size. For seasonal calving herds, it’s the peak milking herd size. Therefore a 360 head seasonal milking herd is the same as a 300 head year-round milking herd with 60 dries at any particular month, both farms have milked 360 cows over the 12 month period.
A16: Your farm | B16: E14 | C16: your farm!E14 | D16: Heifers >1 yr age | E16: This category is for your replacement heifers aged between 1 and 2 yrs of age. Use the mid-point (i.e. 18 months) for aspects such as average liveweight. Alternatively, the average liveweight is 70% of the mature milking cow liveweight. Liveweight gain will vary between 0.6 and 0.8 kg/day depending on the liveweight of the milking cow. If you raise non-replacement heifers, you need to add them to the Other stock > 1 yr age category. Any purchased animals need to be included in the livestock numbers. For example, you bred and retained 300 heifers but also bought 100 heifers, put 400 heifers in the livestock number cell to illustrate the number of heifers on farm.
A17: Your farm | B17: F14 | C17: your farm!F14 | D17: Heifers <1 yr age | E17: This category is for your replacement heifers aged between birth and 1 yr of age. Use the mid-point (i.e. 6 months) for aspects such as average liveweight. Alternatively, the average liveweight is 35% of the mature milking cow liveweight. Liveweight gain will vary between 0.6 and 0.8 kg/day depending on the liveweight of the milking cow. If you sell the non-replacement heifers as young calves (as week old calves or post-weaning), you don't need to add the number of them into the Livestock number cell, but enter the number sold further down the sheet. If you raise the non-replacement heifers beyond weaning, add their number in with the Other stock < 1 yr of age category. For example, you raise them to 9 months of age before selling, then you need to determine the annual average number present along with steers and bulls. See the help message for Other stock < 1 yr age. Any purchased animals need to be included in the livestock numbers. For example, you bred and retained 300 heifers but also bought 100 heifers, put 400 heifers in the livestock number cell to illustrate the number of heifers on farm.
A18: Your farm | B18: G14 | C18: your farm!G14 | D18: Mature bulls | E18: Mature bulls are no longer growing. They will be 10 to 20% heavier than the milking cow. For example, if the milking cow weighs 600kg, the bulls are likely to be 660 to 720 kg. As they are fully grown there is no liveweight gain. Any purchased animals need to be included in the livestock numbers. For example, you buy 3 bulls each year and retain them for 4 years before selling on. This means you have 12 bulls on farm, thus you would have 12 bulls in the livestock numbers, 3 bulls sold and 3 bulls purchased.
A19: Your farm | B19: H15 | C19: your farm!H15 | D19: Other stock < 1 yr age | E19: This category is for young bulls, steers and non-replacement heifers that are 0-1 years of age and can be either replacement bulls for breeding or steers and heifers to be sold off farm. NOTE: If you sell your surplus heifers and bull calves at 5 to 10 days of age, do not enter any data for them here, their data needs to go into the Calves category. If you retain the bulls/steers/heifers for the full 12 months, use their liveweight at 6 months of age and determine how much liveweight gain they have achieved over the 12 month period and divide this by 365 days to determine daily liveweight gain. For example, they were 50 kg at birth and 400 kg at 12 months of age so put on 350 kg / 365 days = 0.82 kg/day. Their mid-year liveweight would be 225 kg (i.e. 350 kg gained/ 2 (reflect mid-point) + 50 kg at birth. Alternatively, they put on 29.16 kg/month so 29.16 x 6 months + 50 kg at birth = 225 kg. Conversely, if you sell the steers and heifers prior to reaching 1 year of age, determine the stocking rate if they were retained for the full year. For example, you have 75 steers and heifers and sell them at 9 months of age, thus 75 head x 9 months retained / 12 months in the year = equivalent to 56 head per annum. If you sell most animals but retain some as bulls for replacements, it may be easiest to sum the number of bulls/steers/heifers present each month and divide by 12. For example, raised 5 bulls, as well as 70 steers and heifers and sold all 70 steers and heifers at 10 months of age and retained the 5 bulls as replacements. The sum of 70 steers/heifers for 10 months (700 equivalents) + 5 bulls for 12 months (60 equivalents) = 760 head equivalents / 12 months = 63 head per annum. You then need to determine their average liveweight and liveweight gain over the period they were present on farm, similar to if they were present for the full 12 months. For example, the non-replacement heifers and bulls were sold at approx. 270 kg so their mid-point liveweight would be 135 kg liveweight. Refer to the 'Other Livestock Help' tab if needing assistance with these estimates.
A20: Your farm | B20: I15 | C20: your farm!I15 | D20: Other stock > 1 yr age | E20: This category is for replacement bulls, and for steers and non-replacement heifers that are 1-2 years of age and sold off farm as opposed to your replacement heifers which should be reported in the Heifers > 1 yr age category. If you retain the steers/heifers longer than 2 years of age, determine what the stocking rate would be if only retained for 2 years. For example, you have 75 steers and sell them at 26 months of age, thus 75 head x 14 months retained when greater than 1 year of age / 12 months in the year = equivalent to 88 head per annum. Conversely, if you sell the steers and heifers somewhere between 1 and 2 years of age, determine the stocking rate if they were retained for the full 2 years. For example, you have 75 steers and heifers and sell them at 21 months of age, thus 75 head x 9 months retained when greater than 1 year of age / 12 months in the year = equivalent to 56 head per annum. Use their age mid-point for liveweight. So if they are 350 kg at 12 months of age and sold at 600 kg then the midpoint is 475kg. During that 12 month period they gained 250 kg liveweight, equivalent to 0.68 kg LW/day. Refer to the 'Other Livestock Help' tab if needing assistance with these estimates.
A21: Your farm | B21: J14 | C21: your farm!J14 | D21: Calves | E21: This category is for non-replacement calves sold soon after birth (i.e. 5 to 10 days of age) or post-weaning at around 100 kg or 80-100 days. This is not where you include your replacement heifer calves, or if you breed bulls for breeding, or you fatten up non-replacement heifers and steers for the beef market. These animals (calves up to weaning age) emit very little GHG emissions and so we have decided they will not alter net farm GHG emissions. However, they do contribute to total meat sales and thus the emissions intensity of milk and meat production. Therefore, non-relevant cells have been blanked out. Enter the number sold and their average liveweight in the white cells. However, if you retain non-replacement heifers and bull/steer calves beyond weaning and fatten them on farm before selling, they need to be reported in the Other stock < 1 yr age category as they will be emitting GHG emissions for the duration on farm until sold. Make sure you select if these non-replacement animals are sold soon after birth (i.e. 5-7 days) or if sold post-weaning (i.e. at approx. 100 kg or around 80-100 days of age (essentially retained longer on farm than up to a couple of weeks)) from the drop-down list to the right of this Calves heading. if you sell some at a few days of age (e.g. bull calves) but retain your non-replacement heifer calves until post-weaning), select the option which is the largest number of animals (most likely soon after birth as more bull calves sold than non-replacement heifer calves).
A22: Your farm | B22: E18 | C22: your farm!E18 | D22: Heifers >1 yr age Liveweight | E22: This is the liveweight at the mid point of their age group, so for Heifers > 1, this would be at 18 months of age for heifers calving at 2 yrs of age. If accurate figures are not available, we suggest using 70% of the milking cow liveweight. For example, if the milkers weigh 600kg, the heifers would weigh 420kg.
A23: Your farm | B23: F18 | C23: your farm!F18 | D23: Heifers <1 yr age Liveweight | E23: This is the liveweight at the mid point of their age group, so for Heifers < 1, this would be at 6 months of age for heifers calving at 2 yrs of age. If accurate figures are not available, we suggest using 30% of the milking cow liveweight. For example, if the milkers weigh 600kg, the heifers would weigh 180kg.
A24: Your farm | B24: H18 | C24: your farm!H18 | D24: Other stock >1 yr age Liveweight | E24: If you retain the bulls/steers/heifers for the full 12 months, use their liveweight at 6 months of age. Determine how much liveweight gain they have achieved over the 12 month period and divide this by 365 days to determine daily liveweight gain. For example, they were 50 kg at birth and 400 kg at 12 months of age so put on 350 kg / 365 days = 0.82 kg/day. Their mid-year liveweight would be 200 kg as half of the 400 kg at 12 months of age.
A25: Your farm | B25: I18 | C25: your farm!I18 | D25: Other stock >1 yr age Liveweight | E25: If you retain the steers/heifers longer than 2 years of age, determine what the stocking rate would be if only retained for 2 years. For example, you have 75 steers and sell them at 26 months of age, thus 75 head x 14 months retained when greater than 1 year of age / 12 months in the year = equivalent to 88 head per annum. Conversely, if you sell the steers and heifers somewhere between 1 and 2 years of age, determine the stocking rate if they were retained for the full 2 years. For example, you have 75 steers and heifers and sell them at 21 months of age, thus 75 head x 9 months retained when greater than 1 year of age / 12 months in the year = equivalent to 56 head per annum. Use their age mid-point for liveweight. So if they are 350 kg at 12 months of age and sold at 600 kg then the midpoint is 475kg. During that 12 month period they gained 250 kg liveweight, equivalent to 0.68 kg LW/day.
A26: Your farm | B26: D20 | C26: your farm!D20 | D26: Milking Cows Liveweight gain | E26: While milking cows lose weight in early lactation, this weight is regained during late lactation and during the non-lactating phase. Therefore over a 12 month period there is generally no change in liveweight and therefore no liveweight gain
A27: Your farm | B27: E20 | C27: your farm!E20 | D27: Heifers >1 yr age Liveweight gain | E27: Typical liveweight gain is between 0.6 and 0.75 kg per day depending on the breed, with Jerseys at the lower end and large-framed Holstein Friesians (>600 kg) at the upper range.
A28: Your farm | B28: F20 | C28: your farm!F20 | D28: Heifers <1 yr age Liveweight gain | E28: Typical liveweight gain is between 0.6 and 0.75 kg per day depending on the breed, with Jerseys at the lower end and large-framed Holstein Friesians (>600 kg) at the upper range.
A29: Your farm | B29: C30 | C29: your farm!C30 | D29: Number of stock bought each year | E29: We need to account for the emissions of purchased livestock prior to entering this farm. This is a Scope 3 embedded emission, just like purchased concentrates or fertiliser. This is the total number bought in the year of assessment, which could be purchases several times throughout the year. For example, you bought 100 head at 150 kg and 50 head at 200 kg, that's the equivalent of buying 150 head. If you do buy in stock, you need to make sure that they are incorporated into the total livestock numbers above so that we can determine their emissions while on farm. For example, you bred 100 rising 1 yr olds but also bought 50 head at 6 months of age. This is equivalent to 100 x 12 months + 50 x 6 months, which equals the equivalent of 125 over the 12 month period (i.e. ((100 head x 12 months) + (50 head x 6 months))/ 12 months. Therefore enter 125 in the Heifers < 1 yr age livestock number cell above.
A30: Your farm | B30: C32 | C30: your farm!C32 | D30: Liveweight at point of purchase | E30: This is the average liveweight of all animals purchased for each stock class. For example, you buy 100 R1s at 150 kg and another 50 R1s at 200 kg. Therefore their average liveweight would be 167 kg (i.e. ((100 x 150) + (50 x 200))/ (150+50)). Enter 167 as the average liveweight for the Heifers < 1 yr age purchased.
A31: Your farm
A32: Your farm | B32: B30 | C32: your farm!B30 | D32: Milk production | E32: Select which way you wish to report the annual milk production by using the drop-down list. Either milk is reported as litres per herd per annum (1st option) or kg milksolids per herd per annum (2nd option). Then enter the amount produced in the white cell to the right. You will note that the units will change between 'litres of milk' and 'kg milksolids' depending on which option you selected to report the milk production. | F32: If the option of litres per herd per annum is selected, DGAS will convert this data to a standard fat and protein corrected milk (FPCM) volume (based on 4.0% fat and 3.2% protein; FAO 2010). This allows us to standardise milk production to compare between breeds. For example, to compare Jerseys herds with lower volumes of milk per cow with higher MS% versus Friesian herds with higher volumes of milk per cow at lower MS%. This fat and protein corrected milk volume will be used to estimate the daily milk production per cow and also the milk GHG emissions intensity.
A33: Your farm | B33: G35 | C33: your farm!G35 | D33: Average milk production | E33: The average litres per cow per day is calculated and based on a standard fat and protein concentration of 4.0 and 3.3% respectively. If you don't enter the known fat and protein concentrations, these percentages will be used. | F33: If the fat and protein concentration of your milk is greater than these values, the kg of fat and protein corrected milk, and therefore litres of milk, will be lower than if the concentration of the milk had been 4.0% fat and 3.3% protein. However, if your milk has lower fat and protein concentrations than these standards, the kg of fat and protein corrected milk, and therefore litres per cow per day will be higher than if the concentration of the milk had been 4.0% fat and 3.3% protein. Check that this figure is approximately what would be expected and if it is substantially different, check the milk production per annum (either as litres or kg milksolids) and the concentration of the milk to see that these figures are reflective of your farm system.
A34: Your farm
A35: Your farm | B35: B41 | C35: your farm!B41 | D35: Milkers average annual diet intakes | E35: Based on data entry, the calculator can estimate the daily intake required. If the user enters how much feed came through supplementation, the difference between the sum of this and the figure presented here is assumed to come from pastures. For example, if the calculator estimated that the cows required 20 kg DM/day to produce the milk entered, and the farmer knew that 10kg of this came in the form of grain and silage, the balance 10 kg must have been from pasture.
A36: Your farm | B36: E37 | C36: your farm!E37 | D36: Intake (kg DM/day) | E36: Intakes are what is consumed after wastage is taken into consideration. Wastage of grain and concentrates in the dairy may be quite low (1-2%) but forages such as hay and silage fed out in the paddock can be quite high (up to approx. 25-30%) depending on placement (e.g. middle of paddock versus near fence lines etc).
A37: Your farm | B37: C46 | C37: your farm!C46 | D37: Average annual dry matter digestibility (DMD) for all other stock (%) | E37: Enter the DMD in the feed eaten, not on offer. Suggest the NGGI default of 75% in the absence of known figures.
A38: Your farm | B38: C47 | C38: your farm!C47 | D38: Average annual crude protein (CP) for all other stock (%) | E38: Enter the CP in the feed eaten, not on offer. Suggest the NGGI default of 20% in the absence of known figures.
A39: Your farm
A40: Your farm | B40: D50 | C40: your farm!D50 | D40: How do you wish to enter the fertiliser rates? | E40: Users can enter the rate of fertiliser applied either as kg of element (i.e. N:P:K:S: lime) per hectare per annum, in which case the number of hectares must be accurate, or the tonnes of element (N:P:K:S: lime) per annum, which removes any need of accuracy in terms of area that the fertiliser is applied to. The second option is particularly useful if the amount of land that the fertilisers were applied to is not known. For example, the farmer purchased 10 t N but the rate at which it went on and/ or the amount of land is not known. | F40: If you select the tonnes of element per annum option from the drop-down list, the white cells for area of fertiliser will disappear as these cells do not require any data entry. Typical nutrient content of some common fertilisers include: Urea- 46% N Mono-ammonium phosphate (MAP)- 11% N, 22% P, 1 to 2% S Di-ammonium phosphate (DAP)- 18% N, 20% P, 1 to 3% S Sulphate of Ammonia (SOA)- 21% N, 24% S Single superphosphate (SSP)- 9% P, 11% S Triple superphosphate (TSP)- 20% P, 1 to 2% S Muriate of potash (MOP)- 50% K Potassium sulphate (SOP)- 42% K, 17% S Select the Click here to work out fertiliser rates if you have more complex fertiliser data. In the linked cell, we also help you to determine the percentage of N fertiliser that is urea-based.
A41: Your farm | B41: C52 | C41: your farm!C52 | D41: Area of N fertiliser | E41: Amount of Nitrogen fertiliser applied to pastures. Remember that urea is 46%N and DAP is 18% N etc. i.e. 10 tonnes of urea = 4.6 tonnes N.
A42: Your farm | B42: B53 | C42: your farm!B53 | D42: Area of pastures fertilised with N | E42: Total area of pastures that received N fertiliser. This includes runoff/ out blocks and also leased land as this is still part of the farm business.
A43: Your farm | B43: B55 | C43: your farm!B55 | D43: Area of crops fertilised with N | E43: The total area of cropping land that received N fertiliser. If you don't know what amount went onto pastures and onto crops, just include all together as applied to pastures. It will make only a small increase in N₂O emissions.
A44: Your farm | B44: B60 | C44: your farm!B60 | D44: Area of pastures fertilised with P K S & lime | E44: Area of farmland applied with P, K, S and lime/dolomite applied to pastures. Note if different areas of land are fertilised (e.g. 100ha with P but only 50ha with K), the area needs to consistent across the fertilisers and the rate changed accordingly. | F44: For example, 100ha of pastures was fertilised with 50 kg P/ha. In addition, 50ha of pastures was fertilised with 50 kg K/ha. To make this uniform, make the pasture 100 ha for both and apply 50kg P and 25kg K. Alternatively if the option of tonnes of element per annum is used, the area of pastures is irrelevant.
A45: Your farm | B45: B62 | C45: your farm!B62 | D45: Area of crops fertilised with P K S & lime | E45: Area of farmland applied with P, K, S and lime/dolomite applied to crops. Note if different areas of land are fertilised (e.g. 100ha with P but only 50ha with K), the area needs to consistent across the fertilisers and the rate changed accordingly. | F45: For example, 100ha of crops was fertilised with 50 kg P/ha. In addition, 50ha of crops was fertilised with 50 kg K/ha. To make this uniform, make the crop 100 ha for both and apply 50kg P and 25kg K. Alternatively if the option of tonnes of element per annum is used, the area of crops is irrelevant.
A46: Your farm | B46: H52 | C46: your farm!H52 | D46: Rate of N fertiliser | E46: Amount of Nitrogen fertiliser applied to pastures. Remember that urea is 46%N and DAP is 18% N etc. i.e. 10 tonnes of urea = 4.6 tonnes N. For the percentage of N fertiliser applied to pastures and crops is urea, enter whole numbers. For example, if all N fertiliser is urea, then enter 100. | F46: Note this is not the weight of fertiliser, but of N. For example 1 t urea and 1 t DAP is equivalent to 460 kg N from urea and 180 kg N from DAP, so 640 kg N with 72% from urea (i.e. 460 / (460 + 180)). This percentage is used to estimate the amount of CO₂ produced when urea N is applied to pastures. Other forms of N do not release CO₂ when applied to pastures. If no percentage is entered into the "Percentage of N fertiliser that is urea", the calculator will assume this is 100%, given urea is the most common form of N fertiliser applied to pastures and crops.
A47: Your farm | B47: F57 | C47: your farm!F57 | D47: Percentage of N fertiliser that is urea | E47: We need to know what percentage of total N fertiliser is urea versus other N fertilisers such as DAP. When urea is manufactured, the process removes carbon dioxide from the atmosphere. When the urea fertiliser is then spread onto pastures and crops, the carbon dioxide is released to the atmosphere. We need to account for this release of carbon dioxide with the farm GHG assessment. If you applied 10 t of N as urea and 5 t N as DAP, then 10 t urea N / 15 t total N = 67% urea N.
A48: Your farm
A49: Your farm | B49: B65 | C49: your farm!B65 | D49: Annual Electricity Use | E49: What was your total annual electricity consumption for the year in kWh? If your supplier guarantees a fraction of their electricity is from renewable sources, e.g. 10%, enter the full amount consumed here but then type in 10 in the 'What % of electricity is from renewables' cell to the right. This will reduce the GHG emissions from electricity by 10%. | F49: For example, a farm in Gippsland consumed 100,000 kWh/annum, with the supplier guaranteeing 10% is sourced from renewables. Select: ‘State Grid’, enter 100,000 kWh purchased electricity and 10% purchased renewable electricity. The calculator will multiply 100,000 by 10%, such that 90,000 kWh will be multiplied by the Victorian emission factor and the balance 10,000 kWh will incur no carbon dioxide emission footprint. We no longer subtract any surplus renewable energy generated on farm and fed back into the national grid.
A50: Your farm | B50: B67 | C50: your farm!B67 | D50: Where does your electricity come from? | E50: The State Grid option matches current sources of electricity (i.e. coal, hydro, wind) for your state. For example, most of Tasmania's energy is generated via hydro and wind, but there is a very small proportion generated via gas or comes via Bass Link from the mainland. The emission factor for Tasmania takes this into consideration, with a considerably lower factor than Victoria, for example. Only select 100% renewable if all your electricity consumption is supplied via clean energy forms (i.e. hydro, solar, wind).
A51: Your farm | B51: B69 | C51: your farm!B69 | D51: What % of electricity is from renewables? | E51: If your supplier guarantees a fraction of their electricity is from renewable sources, e.g. 10%, enter the full amount consumed here but then type in 10 in the 'What % of electricity is from renewables' cell to the right. This will reduce the GHG emissions from electricity by 10%. The balance 90% of purchased electricity will use a state-based factor which takes into account the range of sources of electricity generated for your state.
A52: Your farm | B52: F65 | C52: your farm!F65 | D52: Annual purchased diesel/ unleaded petrol | E52: How any litres of diesel and unleaded petrol did the farm use last year? If you used contractors for some or all of your field work, we need to estimate the amount they may have used in the following question.
A53: Your farm | B53: F67 | C53: your farm!F67 | D53: Annual contractor diesel/ unleaded petrol | E53: You need to consider the fuel that would have been consumed if you use contractors to undertake some/ all of your field work (e.g. silage making, fertiliser spreading, direct drilling new pasture seed etc) and they supplied their own fuel, as opposed to taking fuel out of your fuel tanks on farm. Approximate consumption figures are: Fertilising/ chemical spraying/ rolling/ raking- 3 litres/ha Sowing/ mowing/ wrapping silage- 9 litres/ha Baling/ harvesting/ discing- 16 litres/ha Ploughing/ tillage- 22 litres/ha So if you were making silage from a 1ha paddock, with the grass cut, tedded and raked before baling and wrapping, it is likely that 40 litres per hectare may have been consumed (i.e. 9 litres/ha for cutting, 3 litres/ha for tedding, 3 litres/ha for raking, 16 litres/ha for baling and 9 litres/ha for wrapping). Multiply the total litres/ha by the area to determine annual litres for each activity and sum together. In the above example, it was 40 litres per hectare and we cut 40 ha of pastures, that's 1,600 litres per annum.
A54: Your farm
A55: Your farm | B55: B71 | C55: your farm!B71 | D55: Purchased supplementary feed | E55: We need to understand how much supplementary feed is purchased. Each feed type is multiplied by the GHG emissions associated with their production to estimate an embedded emission. For example each tonne of grain emits ~ 0.2 tonnes of CO₂e in the production of the grain. We don't include the CO₂ emitted with the transportation of these feeds to the farm as it is difficult to ascertain how far they may travel between farms. Feed grown on a run-off block or leased area is part of your farm business and therefore is not considered purchased feed. However, the inputs into growing this feed, such as fertiliser, needs to be considered as part of the farm business and included where applicable. The allocation of purchased feed to the milking platform vs the support block will not alter the total emissions from the purchased supplementary feed. It will only determine what proportion of those emissions are allocated to the milk enterprise versus the meat enterprise to determine the emissions intensity of milk and meat production. The emissions from feed fed on the milking platform is allocated to milk production, whereas the emissions from feed fed on the support block will be proportionally divided between the meat and milk enterprises depending on how much milk and meat are produced. While some purchased feed, while fed on the support block, may be fed to dairy-enterprise animals, e.g. hay to dry cows. In this instance, we recommend you still attribute the hay fed to these dry cows as being fed on the support block. ADCC will then attribute a proportion of hay emissions back to the dairy enterprise to reflect that some of the hay was fed to milk enterprise animals. The only time we would change this recommendation would be if all purchased feed for any category goes to dairy-enterprise animals, even though it was fed on the support block. In that instance, we would recommend you allocate 100% of the feed to the milking platform so that all emissions are attributed to the milk enterprise. For example, all purchased hay is fed to the dry cows and heifers prior to calving. If you still have any hay or silage left over at the end of the year being analysed, the emissions for these will be accounted for in this year's assessment. In this instance, work out the proportion of feed fed this year on the milking platform vs support block. For example, bought 100 t DM of hay, with 75 t DM fed on the support block, 20 t DM fed in the calf shed and the remaining 5 t DM held over until next year. In this instance, you would allocate 21% to the milking platform (i.e. 20 t DM/ 95 t DM fed = 21%).
A56: Your farm | B56: D74 | C56: your farm!D74 | D56: Percentage of purchased hay fed on the milking platform | E56: ADCC estimates the Scope 3 GHG emissions associated with purchased grain, concentrates, hay, silage and other/by-products. The percentage of hay fed on the milking platform will be attributed to the milking enterprise. The balance percentage will be assumed to be fed on the support block, where a proportion will remain attributed to the milking enterprise (i.e. fed to dry cows and replacement heifers), with the remaining emissions attributed to the meat enterprise. | F56: For example, you purchased 100 t DM of hay this year, thus the Scope 3 emissions would be 16 t CO₂e. You fed 85 t DM on the support block, 10 t DM on the milking platform and there was a balance 5 t DM left in the hay shed. In this example, we need to know that 10 t DM of the 95 t DM fed was on the milking platform. In the white cell to the right, enter the equation = 10/95*100 to reflect 10 t DM fed on milking platform / 95 t fed to milking platform + support block * 100 to get a percentage figure. In this example, 10.5% of the hay was fed on the milking platform. Do not count the 5 t DM of hay remaining in the hay shed in this percentage of hay fed on the milking platform, we only want to know how much purchased feed bought this year is fed out this year. This is all you need to enter. ADCC will then attribute 10.5% of the 16 t CO₂e, equivalent to 1.7 t CO₂e, to the milk enterprise. The balance of the 16 t CO₂e is then allocated to the support block as you fed 85 t DM there, equivalent to 14.3 t CO₂e. As this hay is likely to be fed to dry cows or replacements as well as dairy-beef cattle for the meat market, ADCC allocates a percentage of these Scope 3 emissions to the milk and meat enterprises based on total milk and meat production. Thus, if ADCC determined that 85% of the Scope 3 hay emissions are attributed to the milk enterprise, based on how much milk and meat is produced and sold, this 12.2 t CO₂e (i.e. 14.3 t CO₂e x 85% = 12.2 t CO₂e) is added to the 1.7 t CO₂e for the hay fed on the milking platform. In this example, 13.9 t CO₂e is allocated to the milking enterprise and the balance 2.1 t CO₂e is allocated to the meat enterprise to determine the milk and meat emissions intensity. For any imported DairyBase datasets, we can't show you here the proportion of the hay fed to the milking platform. However, this value will appear in the 'Strategy Farm' tab's percentage of purchased hay fed on the milking platform white cell.
A57: Your farm | B57: D76 | C57: your farm!D76 | D57: Purchased grain and concentrates (t DM) | E57: This includes pellets for young replacement stock, lead feed for springer cows just prior to calving as well as grain or concentrates fed to the milking cows. Also include any grain or concentrates fed to non-replacement stock, such as dairy beef. ADCC will allocate a proportion of the grain & concentrate emissions to the meat enterprise, depending on the total amount of milk and meat sold. Don't include any waste/by-products from other industries, such as whole cottonseed, canola meal, brewer's grain etc. These need to be entered into the By-products section. | F57: If you are importing an ADCC datasheet from DairyBase and within DairyBase you entered the by-products Cottonseed meal, Canola meal, Soybean meal or Dried distiller's grain via the Concentrate feed group, these will be also included in this Purchased grain and concentrates cell. However, these products will remain having a zero carbon footprint and thus Scope 3 emissions will only be attributed to all other feeds within the concentrates grouping.
A58: Your farm | B58: D78 | C58: your farm!D78 | D58: Percentage of purchased grain & concentrates fed on the milking platform | E58: ADCC estimates the Scope 3 GHG emissions associated with purchased grain, concentrates, hay, silage and other/by-products. The percentage of grain and concentrates fed on the milking platform will be attributed to the milking enterprise. The balance percentage will be assumed to be fed on the support block, where a proportion will remain attributed to the milking enterprise (i.e. fed to dry cows and replacement heifers), with the remaining emissions attributed to the meat enterprise. For example, you purchased 925 t DM of grain this year, made up of grain and pellets fed to the milking cows, pellets fed to calves, and lead feed to the springer cows just prior to calving. The Scope 3 emissions for these would total 185 t CO₂e. You fed 880 t DM on the support block, 25 t DM on the milking platform and there was a balance 20 t DM left in the grain silo. | F58: For example, you purchased 925 t DM of grain this year, made up of grain and pellets fed to the milking cows, pellets fed to calves, and lead feed to the springer cows just prior to calving. The Scope 3 emissions for these would total 185 t CO₂e. You fed 880 t DM on the support block, 25 t DM on the milking platform and there was a balance 20 t DM left in the grain silo. In this example, we need to work out the percentage fed on the milking platform, given 880 t DM of the 905 t DM fed was on the milking platform. In the white cell to the right, enter the equation = 880/905*100 to reflect 880 t DM fed on milking platform / 905 t DM fed to milking platform + support block * 100 to get a whole percentage figure. In this example, 97.3% was fed on the milking platform. Do not count the 20 t DM of grain remaining in the silo in this percentage of grain & concentrates fed on the milking platform, we only want to know how much purchased feed bought this year is fed out this year. This is all you need to enter. ADCC will then attribute 97.3% of the 185 t CO₂e, equivalent to 179.9 t CO₂e, to the milk enterprise. The balance of the 185 t CO₂e is then allocated to the support block as you fed 25 t DM there, equivalent to 5.1 t CO₂e. As this grain & concentrates may still be fed to dairy replacements as well as dairy-beef cattle for the meat market, ADCC allocates a percentage of these Scope 3 emissions to the milk and meat enterprises based on total milk and meat production. Thus, if ADCC determined that 85% of the Scope 3 grain & concentrate emissions are attributed to the milk enterprise, based on how much milk and meat is produced and sold, this 4.3 t CO₂e (i.e. 5.1 t CO₂e x 85% = 4.3 t CO₂e) is added to the 179.9 t CO₂e for the grain & concentrates fed on the milking platform. In this example, 184.2 t CO₂e is allocated to the milking enterprise and the balance 0.8 t CO₂e is allocated to the meat enterprise to determine the milk and meat emissions intensity. For any imported DairyBase datasets, we can't show you here the proportion of the purchased grains and concentrates fed to the milking platform. However, this value will appear in the 'Strategy Farm' tab's percentage of purchased grains and concentrates fed on the milking platform white cell.
A59: Your farm | B59: I74 | C59: your farm!I74 | D59: Percentage of purchased silage fed on the milking platform | E59: ADCC estimates the Scope 3 GHG emissions associated with purchased grain, concentrates, hay, silage and other/by-products. The percentage of silage fed on the milking platform will be attributed to the milking enterprise. The balance percentage will be assumed to be fed on the support block, where a proportion will remain attributed to the milking enterprise (i.e. fed to dry cows and replacement heifers), with the remaining emissions attributed to the meat enterprise. For example, you purchased 50 t DM of this year, thus the Scope 3 emissions would be 8 t CO₂e. You fed 35 t DM on the milking platform and 15 t DM on the support block, with no purchased silage remaining at the end of the year assessment. | F59: For example, you purchased 50 t DM of this year, thus the Scope 3 emissions would be 8 t CO₂e. You fed 35 t DM on the milking platform and 15 t DM on the support block, with no purchased silage remaining at the end of the year assessment. In this example, we need to know that 35 t DM of the 50 t DM fed was on the milking platform. In the white cell to the right, enter the equation = 35/50*100 to reflect 35 t DM fed on milking platform / 50 t fed to milking platform + support block * 100 to get a percentage figure. In this example, 70% of the silage was fed on the milking platform. If you had any purchased silage remaining at the end of the yearly assessment, do not include that in these sums, we only want to know how much purchased feed bought this year is fed out this year. This is all you need to enter. ADCC will then attribute 70% of the 8 t CO₂e, equivalent to 5.6 t CO₂e, to the milk enterprise. The balance of the 8 t CO₂e is then allocated to the support block as you fed 15 t DM there, equivalent to 2.4 t CO₂e. As this silage is likely to be fed to dry cows or replacements as well as dairy-beef cattle for the meat market, ADCC allocates a percentage of these Scope 3 emissions to the milk and meat enterprises based on total milk and meat production. Thus, if ADCC determined that 80% of the Scope 3 silage emissions are attributed to the milk enterprise, based on how much milk and meat is produced and sold, this 1.9 t CO₂e (i.e. 2.4 t CO₂e x 80% = 1.9 t CO₂e) is added to the 5.6 t CO₂e for the silage fed on the milking platform. In this example, 13.9 t CO₂e is allocated to the milking enterprise and the balance 2.1 t CO₂e is allocated to the meat enterprise to determine the milk and meat emissions intensity. For any imported DairyBase datasets, we can't show you here the proportion of the purchased silage fed to the milking platform. However, this value will appear in the 'Strategy Farm' tab's percentage of purchased silage fed on the milking platform white cell.
A60: Your farm | B60: I78 | C60: your farm!I78 | D60: Percentage of purchased by-products fed on the milking platform | E60: Unlike purchased grains and concentrates, hay and silage, we currently do not allocate any Scope 3 emissions for by-products. This may change in the future. For now, you can either repeat the process as you have done for the other feeds, if you wish to keep a record of this. Alternatively, just enter 100 into the white cell to the right. For any imported DairyBase datasets, we can't show you here the proportion of the purchased by-products fed to the milking platform. However, this value will appear in the 'Strategy Farm' tab's percentage of purchased by-products fed on the milking platform white cell.
A61: Your farm
A62: Your farm | B62: B81 | C62: your farm!B81 | D62: How are you estimating this? | E62: You have four options to select how to estimate carbon sequestration in trees. 1. If you have no trees present on farm, select "No estimation of carbon sequestration" from the drop-down list. 2. If you wish to use the combination of trees and soils built into ADCC to determine the amount of carbon sequestered in trees, select "Based on data entered here". If you select this option, you need to select from the drop-down list in the order they are present here, moving down the sheet by selecting your region first, then type of trees before entering the area and age of the trees. If you do not select in this order, excel may mis-calculate your results. 3. If you have multiple areas of trees on farm, either different species and/or different ages and/or different areas, there is a tab called 'Vegetation'. In here, there is the ability to determine total CO₂ sequestered across up to four areas. If you wish to estimate total CO₂ this way, select "Carbon sequestered using other tools", enter 1 for "Area of trees (ha)" and then copy the result in cell D52 (bold text) of the 'Vegetation' tab into the "Amount of carbon sequestered using other tools" white cell. You won't need to select your region or tree type or enter an Age of trees so long as you have selected "Carbon sequestered using other tools" from the first drop-down list. 3. If you wish to use some other tool or calculator to estimate (e.g. FullCAM or LOOC-C, select "Carbon sequestered using other tools". When this option is selected, enter the amount of carbon sequestered (t CO₂e/ha) from the other tool, along with the area of trees (ha), for excel to calculate the total amount of carbon for the farm . Remember we are asking for the tonnes of carbon dioxide/ha, so if your result from another tool is reported as t C/ha, multiply that amount of C by 3.67 to convert to t CO₂/ha. For example, 7 t C/ha equates to 25.7 t CO₂e/ha. You are also needing to enter the amount sequestered for only one year (i.e. the carbon flux) from the other tools, not the total over 25 or 100 years.
A63: Your farm | B63: B83 | C63: your farm!B83 | D63: Choose your region of Australia | E63: If you click on the white cell to the right of this heading, a drop down arrow should appear along with a list of the regions specific to your state. Most states have two or more regions to select from. These selections will only influence the amount of carbon sequestered in tree plantings Victoria: North East VIC refers to farms around Wangaratta and Benalla. Northern VIC refers to farms around Cobram, Shepparton and Echuca. Mallee refers to farms around Kerang. If you are unsure which region your farm is located, in terms of these three Northern Victoria regions, compare results between regions to ascertain if there is a substantial difference in terms of the carbon sequestration potential.
A64: Your farm | B64: B85 | C64: your farm!B85 | D64: Choose the type of trees planted | E64: The tree species will firstly match that of the baseline 'Your farm' system. However, users can explore the effect of selecting another species relevant for the region selected. If a tree species you wish to explore is not present, select the closest species, or select Environmental Plantings as a blend of native trees, shrubs and understorey that is endemic to your region.
A65: Your farm | B65: F81 | C65: your farm!F81 | D65: Area of trees (ha) | E65: If entering data from other data sources you still need to enter an area value here - either 1 hectare if entering total CO₂e/year for the property, or the hectare value if entering as CO₂e/ha/year.
A66: Your farm | B66: H81 | C66: your farm!H81 | D66: Age of Trees | E66: Age of trees is this year of analysis and can vary between 1 and 100. The number entered needs to be a whole number and without any decimal point. You can't enter 2.0 or 2.5, you must enter either 2 or 3 in this example.
A67: Your farm | B67: G84 | C67: your farm!G84 | D67: Amount of carbon sequestered using other tools | E67: If you have estimated the amount of carbon sequestered in tree vegetation using another tool, such as LOOC-C or FullCAM, enter the annual carbon flux here. If the tool you have used reported tonnes of carbon/ha as opposed to tonnes of carbon dioxide/ha, multiply this by 3.67 to convert from t C to t CO₂. If you are importing a DairyBase dataset, this white cell will contain the estimate from that tool, so you will not need to re-enter a value here.
A68: Your farm
A69: Your farm | B69: E88 | C69: =IF(AND(LEN(A69)>0,LEN(B69)>0),_xlfn.CONCAT(TRIM(LOWER(A69)),"!",TRIM(B69)),"") -> your farm!E88 | D69: Choose which option you are using to estimate how animal waste is handled | E69: Each day, cows produce around 4-6 kg of volatile solids (manure). This section is to determine how this manure is handled, as an annual average. Users can either use the state-based fractions and factors as per the methodology or enter their own farm management practices to determine what proportion of waste is handled via each manure management system. The default state-based factors reflect cows spending 80-85% of their time grazing pastures, supplementary fed in the paddock and walking to and from the dairy. This equates to 3-4 hours a day off the paddock and laneways. If your herd spends more time than this at the dairy, on a feedpad or are housed, you must select the user-defined option to reflect how the manure is handled for your farm system. If you select the User defined option, please make sure you then answer every question, otherwise the estimation of emissions from manure management will be inaccurate. We need to know the number of hours the milkers are at the dairy, how that waste is handled and if the milkers and/or the heifers are on a feedpad area, how that waste is handled. This may be particularly important if a change in feeding regimes means that a feedpad is used for a substantial amount of time over the 12 month assessment period. | F69: The way the spreadsheet is set up, if the manure deposited at the dairy is handled the same way as from a feedpad (e.g., both flushed to a pond system), you can enter the total for both into the dairy section which then frees up the feedpad section for an alternative manure management system (e.g. spread daily from a sump or scraped & stockpiled). For example, TMR housed cows are at the dairy and yards for 3 hours per day for 300 days. They return to the barn and spend another 5 hours per day for 300 days in the feeding lane of the barn, with all this manure flushed to a pond system. This equates to 8 hours per day for 300 days. The balance 16 hours per day, the cows are resting/ruminating while laying on a bedding area where the bedding and manure (compost) is turned periodically, thus remaining aerobic. This 16 hours per day for 300 days is entered into the feedpad section, with the manure scraped & stockpiled option selected. If the cows then go out onto pasture during their dry period, ADCC will allocate the balance 24 hours per day for 65 days to pasture. If there was some form of mechanical separation of the manure as it is flushed to the lagoon system, this material is also considered of scraped & stockpiled consistency. If however, the cows also remain in a compost barn for their dry period, you need to determine the sum of the lactating and non-lactating period. The easiest way to do this would be to calculate the total number of hours per year, subtract the number of hours per year the cow's manure is flushed to a pond system and then divide the remaining hours by 24. For example, 24 hours per day x 365 days = 8,760 hours per annum. The cow's flushed manure is 8 hours per day x 300 days = 2,400 hours per year. Subtracting 2,400 from 8,760 = 6,360 hours per annum the manure is in a compost/ scraped & stockpiled consistency. Divide this by 24 hours per day = 265 days. In this example, the time entered for the feedpad is 24 hours per day for 265 days per annum. The proportion of manure will then be proportionally allocated to anaerobic lagoon and solid storage. If you selected some form of mechanical solids separation of the lagoon-destined manure, 20% of this manure will also be allocated to solid storage.
A70: Your farm | B70: I88 | C70: your farm!I88 | D70: Volatile solids | E70: The CFI/ERF/ACCU methodology for the 'Destruction of methane generated from dairy manure in covered anaerobic ponds' project required milker volatile solids values (kg VS/head.day). Although this ACCU project is now closed, we have retained this value here.
A71: Your farm | B71: D99 | C71: your farm!D99 | D71: Number of hours per day and days per annum a milker spends at the dairy and adjacent yards where the waste is flushed with water | E71: The average number of hours that the milkers spend at the dairy depends on when the cows are released post-milking. If the whole herd is retained in yards or laneways and then released back to a paddock at the same time, then it is the time taken to milk the whole herd. If the cows are released from the dairy and either return to a paddock to graze or to a feedpad/ loafing area, it is the mid-point of milking. For example, if total milking time takes 2.5 hours morning and 2 hours at night but the cows return to the paddock after being released from the dairy, then its 2.25 hours per day (half of 4.5 hrs). However, if the whole herd is retained to the end of milking and released as a whole herd, it will be 4.5 hours per day. | F71: If you milk 3 times in 2 days, work out how many hours this would be over the two days and half this to work out the daily rate. Either enter this figure if the whole herd is retained or halve this figure again if the cows return to pasture as they exit the dairy. For example, milking takes 2 hours per shift, there are 3 shifts per 2 days, therefore the cows are present at the dairy for 6 hours in total over the two days. Divide this by 2 to get a daily rate of 3 hours per day. If the cows are retained at the dairy, then enter 3 hours per day. But if they trickle back to the paddock after exiting the dairy, enter 1.5 hours per day. We also need to know the average number of days per annum the milkers are at the dairy. For most farms this will be the same as the average lactation length. However, for cows in a total mixed ration farm where they are retained on concrete during their dry period also, it will be 365 days per annum. Ultimately, we are trying to work out where the 4-6 kg of manure (volatile solids) produced each day are deposited and allocate this accordingly.
A72: Your farm | B72: F105 | C72: your farm!F105 | D72: Do you pre-treat the waste prior to spreading daily from a sump system or entering the lagoon (e.g. weeping wall, solids trap, mechanical separator to remove a fraction of the solids)? | E72: If you select yes, we assume that 20% of the waste is trapped if there is a means of removing some of the solids prior to being spread daily from a sump or from entering the lagoon. This waste is then assumed to be in a solids storage state with a lower methane emission factor than if the waste went to the lagoon but higher than if it was spread daily from a sump/dispersal system. However, if you have a valid reason to alter the fraction away from 20%, enter that value as a whole number in the next question.
A73: Your farm | B73: C106 | C73: your farm!C106 | D73: If yes, what percentage of the waste is removed via the pre-treatment process? | E73: Generally the amount of solids removed via weeping walls and solids traps is in the 10-30% range. However, in large intensive dairy systems with modern methods of separating solids from liquids, the percentage may be as high as 40-50% if that manure is then stored to dry. If it is being saturated daily, then the manure is remaining in an anaerobic state for much of the day and so the percentage is lower. We suggest you implement 20% (which is the default if you don't answer this question), unless you have good evidence to support a higher value.
A74: Your farm | B74: D109 | C74: your farm!D109 | D74: Number of hours per day and days per annum a milker spend on a feedpad or loafing area or are housed (TMR farm) | E74: If you have a compost barn where any manure deposited when cows are in the feeding lane is handled the same way as the manure deposited at the dairy, but then the bedding area is composted, you can include the approx. amount of time per day that the cows would be in the feed lane up with the dairy and adjacent yard question. For example, the cows move to the dairy three times a day and on-average, spend 1 hour per milking at the dairy shed being milked. Any waste deposited in the dairy or yards is flushed to a pond/lagoon system. The milkers also spend 8 hours per day in the feed lane of the compost barn where the manure is also flushed to a pond/lagoon system. Therefore each cow would have the equivalent of 11 hours of manure flushed to the pond every day. The balance 13 hours per day, they spend laying down in the barn where their manure is composted. Enter 11 hours per day for the milker dairy waste and select flushed to a pond/lagoon system. Then enter 13 hours per day for the milker feedpad waste and select scraped & stockpiled.
A75: Your farm | B75: D111 | C75: your farm!D111 | D75: Select the option which best describes how the majority of this waste from the feedpad or loafing area is best handled | E75: Select the option that best reflects how the waste from the feedpad is handled. We assume that if you select the pond/lagoon system for the feedlot waste and above with the milker waste, you included the same manure system and also indicated that the dairy shed waste is pre-treated before going into a pond/ lagoon system, this will be the same for the feedpad waste. If you have a compost barn where the milkers are housed, the more accurate manure management system for this is the scraped & stockpiled option. If any manure deposited when cows are in the feeding lane is handled the same way as the manure deposited at the dairy shed, but then the bedding area is composted, you can include the approx. amount of time per day that the cows would be in the feed lane up with the dairy and adjacent yard question. For example, the cows move to the dairy three times a day and on-average, spend 1 hour per milking at the dairy shed. Any waste deposited in the dairy or yards is flushed to a pond/lagoon system. The milkers also spend 8 hours per day in the feed lane of the compost barn where the manure is also flushed to a pond/lagoon system. Therefore each cow would have the equivalent of 11 hours of manure flushed to the pond every day. The balance 13 hours per day, they spend laying down in the barn where their manure is composted.
A76: Your farm | B76: B115 | C76: your farm!B115 | D76: Select which stock are present on a feedpad or loafing pad | E76: If any non-milkers are on a feedpad or housed for an extended period, select yes from the appropriate down-down list. The period on the feedpad or housed will need to be consistent across all stock classes selected. For example, you can't have the R2s on a feedpad for 4 hours per day for 100 days and the R1s on a feedpad for 2 hour per day for 100 days. However, if the R1s on the feedpad for 2 hour per day for 200 days, that is the same proportion of the total year that both stock classes are on a feedpad. We are only interested in extended periods off-pasture here, not concerned about stock being occasionally out of the paddocks for management practices like preg-testing, drenching, etc.
A77: Your farm | B77: B113 | C77: your farm!B113 | D77: Days per annum on the feedpad or loafing area | E77: These questions are generally only relevant for farms where the heifers are retained on concrete for long periods of time per day and throughout the year (e.g. TMR farms where the young stock are housed). We are not concerned with the time that unweaned calves spend in sheds or when heifers spend time in yards for routine management practices (e.g. weighing, vaccinating, pregnancy testing etc).
A78: Your farm | B78: D119 | C78: your farm!D119 | D78: Select the option which best describes how this waste from the feedpad or loafing area is best handled | E78: Users are only given one option when selecting how the waste from the heifers is handled. If two or more options are used, select the most relevant. We assume that if the milker waste is pre-treated prior to entering the pond/ lagoon system, this will be the same for the heifer, bull annd other stock waste.
A79: Your farm
A80: Your farm | B80: B129 | C80: your farm!B129 | D80: Methane (Scope 1): | E80: Scope 1 emissions are those that occur on farm and the farmer has control over. For example, they can choose how many cows to milk, replacement animals to retain etc
A81: Your farm | B81: B131 | C81: your farm!B131 | D81: Nitrous oxide (Scope 1): | E81: Scope 1 emissions are those that occur on farm and the farmer has control over. For example, they can choose how many cows to milk, how much N fertiliser to apply etc
A82: Your farm | B82: B136 | C82: your farm!B136 | D82: Carbon dioxide: | E82: Scope 1 emissions are those that occur on farm and the farmer has control over. For example, they can choose how much urea N fertiliser or lime to apply, or how much diesel to consume on farm. Scope 2 emissions are also those that occur on farm and the farmer has control over. For example, they can elect to generate renewable electricity farm to reduce reliance on grid power. Scope 3 emissions are those that the farmer has no control over but are part of the farm business. There are emissions associated with the production and transmission of electricity to the farm, and in the refining/production of fuel.
A83: Your farm | B83: B141 | C83: your farm!B141 | D83: Pre-farm gate embedded (Scope 3) | E83: These are the emissions pre-farm gate from the production and/or manufacturing of feeds and fertilisers. They are considered Scope 3 as the farmer has no control over the emissions associated with the production of these feeds and fertilisers.
A84: Your farm | B84: B150 | C84: your farm!B150 | D84: Net GHG emissions | E84: Net emissions will only be lower than Total emissions if there are trees present on farm and that the estimation of carbon sequestered in these trees have been estimated here, using options 2 or 3 from the tree carbon sequestration listing.
A85: Your farm | B85: D152 | C85: your farm!D152 | D85: GHG emissions intensity (kg CO₂e/kg fat and protein corrected milk (FPCM)) | E85: A kg of fat and protein corrected milk (FPCM) is used to report emissions intensity and is based on converting your components to 4% fat and 3.3% protein. For many farms, a kg of FPCM is similar to a litre of milk. For farms with higher fat and protein than these standards, the kgs of FPCM will be greater than the litres of milk. For example, 1 million litres of 4.5% fat and 3.6% protein is equivalent to approx. 1.12 million kgs of FPCM. Conversely 1 million litres of 3.9% fat and 3.0% protein is equivalent to approx. 0.99 million kgs of FPCM. After a proportion of emissions are allocated to meat, the milk-allocated emissions are divided by total milksolids production to estimate an emissions intensity value. Typically this value will be within the range of 9 to 15 kg CO₂e/kg MS. If your emissions intensity is outside this range, there may be an issue with data entry. Review your results and compare to typical/regional averages to ascertain if there is any area which is substantially different to these typical averages. One example might be you are entering farm-specific manure management data and the animals spend most or all of their time on feedpads/ housed. Milk production could also be an area of error. Check what the calculator suggests is the daily milk production per cow. Another issue could be if you produce more meat than the typical farm, and thus the amount of GHG emissions allocated to milk production is lower than expected. This may result in a lower-than-average milk emissions intensity value.
A86: Your farm | B86: C153 | C86: your farm!C153 | D86: GHG emissions intensity (kg CO₂e/kg milksolids) | E86: Emissions intensity results here divides your net GHG emissions by the kg of milksolids your herd has produced. It does not convert your milk to a standard fat or protein percentage, unlike emissions intensity based on fat and protein corrected milk (FPCM). After a proportion of emissions are allocated to meat, the milk-allocated emissions are divided by total milksolids production to estimate an emissions intensity value. Typically this value will be within the range of 9 to 15 kg CO₂e/kg MS. If your emissions intensity is outside this range, there may be an issue with data entry. Review your results and compare to typical/regional averages to ascertain if there is any area which is substantially different to these typical averages. One example might be you are entering farm-specific manure management data and the animals spend most or all of their time on feedpads/ housed. Milk production could also be an area of error. Check what the calculator suggests is the daily milk production per cow. Another issue could be if you produce more meat than the typical farm, and thus the amount of GHG emissions allocated to milk production is lower than expected. This may result in a lower-than-average milk emissions intensity value.
A87: Your farm | B87: C154 | C87: your farm!C154 | D87: GHG emissions intensity (kg CO₂e/kg liveweight) | E87: We know that milk is the primary product on dairy farms, but they also produce meat, through cull cows, non-replacement heifers, bull calves and dairy-beef. The International Dairy Federation (IDF) are upgrading the method of allocating net emissions to milk and meat in 2022 and this method is implemented here. The GHG emissions for milking herd, replacement heifers and bulls, along with electricity and supplementary feed (grain and fodder) are all allocated to milk production. The emissions for Other Livestock is allocated to meat production as this group of animals are not raised to join the dairy herd. Then the residual GHG emissions for diesel, fertiliser and carbon sequestration in trees (collectively termed farm emissions) are proportionally allocated to milk and meat, based on the proportion of total energy requirements for milk and meat. This breakdown of GHG emissions aligns with the IDF guidelines for systems separation of emissions. Excel will then determine the energy requirements to produce milk and meat, and allocate the equivalent proportion of emissions to each product. For example, 90% of total energy requirements are for milk production, thus the 90% of the residual farm emissions are allocated to milk and the balance 10%, along with the Other Livestock emissions, are allocated to meat. The total emissions allocated to milk is then divided by the kg of FPCM to determine the emissions intensity of milk production. The number in this caption will indicate what proportion of emissions are allocated to milk production, with the balance allocated to meat production. If the proportion amount is 100%, this means you have not indicated how many stock are sold to estimate meat production. When comparing your results between years, or between farms, it is important that you understand the allocation of emissions between co-products and compare like with like, i.e. you are not comparing your farm results with 100% allocated to milk with another farm that is reporting their results based on a proportion of emissions allocated to meat production.
A88: Your farm | B88: C156 | C88: your farm!C156 | D88: Proportion of net emissions allocated to milk | E88: We know that milk is the primary product on dairy farms, but they also produce meat, through cull cows, non-replacement heifers, bull calves and dairy-beef. The International Dairy Federation (IDF) are upgrading the method of allocating net emissions to milk and meat in 2022 and this method is implemented here. The GHG emissions for milking herd, replacement heifers and bulls, along with electricity and supplementary feed (grain and fodder) are all allocated to milk production. The emissions for Other Livestock is allocated to meat production as this group of animals are not raised to join the dairy herd. Then the residual GHG emissions for diesel, fertiliser and carbon sequestration in trees (collectively termed farm emissions) are proportionally allocated to milk and meat, based on the proportion of total energy requirements for milk and meat. This breakdown of GHG emissions aligns with the IDF guidelines for systems separation of emissions. Excel will then determine the energy requirements to produce milk and meat, and allocate the equivalent proportion of emissions to each product. For example, 90% of total energy requirements are for milk production, thus the 90% of the residual farm emissions are allocated to milk and the balance 10%, along with the Other Livestock emissions, are allocated to meat. The total emissions allocated to milk is then divided by the kg of FPCM to determine the emissions intensity of milk production. The number in this caption will indicate what proportion of emissions are allocated to milk production, with the balance allocated to meat production. If the proportion amount is 100%, this means you have not indicated how many stock are sold to estimate meat production. When comparing your results between years, or between farms, it is important that you understand the allocation of emissions between co-products and compare like with like, i.e. you are not comparing your farm results with 100% allocated to milk with another farm that is reporting their results based on a proportion of emissions allocated to meat production.
A89: Your farm | B89: C157 | C89: your farm!C157 | D89: Proportion of net emissions allocated to meat | E89: We know that milk is the primary product on dairy farms, but they also produce meat, through cull cows, non-replacement heifers, bull calves and dairy-beef. The International Dairy Federation (IDF) are upgrading the method of allocating net emissions to milk and meat in 2022 and this method is implemented here. The GHG emissions for milking herd, replacement heifers and bulls, along with electricity and supplementary feed (grain and fodder) are all allocated to milk production. The emissions for Other Livestock is allocated to meat production as this group of animals are not raised to join the dairy herd. Then the residual GHG emissions for diesel, fertiliser and carbon sequestration in trees (collectively termed farm emissions) are proportionally allocated to milk and meat, based on the proportion of total energy requirements for milk and meat. This breakdown of GHG emissions aligns with the IDF guidelines for systems separation of emissions. Excel will then determine the energy requirements to produce milk and meat, and allocate the equivalent proportion of emissions to each product. For example, 90% of total energy requirements are for milk production, thus the 90% of the residual farm emissions are allocated to milk and the balance 10%, along with the Other Livestock emissions, are allocated to meat. The total emissions allocated to milk is then divided by the kg of FPCM to determine the emissions intensity of milk production. The number in this caption will indicate what proportion of emissions are allocated to milk production, with the balance allocated to meat production. If the proportion amount is 100%, this means you have not indicated how many stock are sold to estimate meat production. When comparing your results between years, or between farms, it is important that you understand the allocation of emissions between co-products and compare like with like, i.e. you are not comparing your farm results with 100% allocated to milk with another farm that is reporting their results based on a proportion of emissions allocated to meat production.
A90: Your farm | B90: D129 | C90: your farm!D129 | D90: Enteric fermentation | E90: Methane is lost as part of the digestive process as a pathway of removing excess hydrogen from the rumen. Cattle emit approx. 6.5% of their gross energy intake as methane, with this number reducing as the quality of the diet improves. Most of the methane is emitted through the mouth, although a small amount is also emitted through the rear-end too.
A91: Your farm | B91: D130 | C91: your farm!D130 | D91: Manure management | E91: Methane is produced during the decomposition of manure when deposited onto pastures and collected in pond/lagoon systems under anaerobic conditions. Note that this value is not the amount of methane emitted from a storage system (e.g. lagoons/ponds), but from all manure deposited by the herd, with the majority of manure(> 75%) deposited onto pastures during grazing.
A92: Your farm | B92: D131 | C92: your farm!D131 | D92: Direct from dung & urine voided onto pastures | E92: As cattle graze pastures and deposit urine and dung, a proportion of the N in these is converted to nitrous oxide and lost to the environment. A national survey determined the proportion of total manure that is deposited on pastures during grazing. This varies between states, and between 79 and 85% for milking cows and 100% for all other stock. If your stock spend substantially longer on non-paddock areas (e.g. feedlotting), we suggest you may wish to enter your own data in the manure management section to ascertain a more realistic value for nitrous oxide losses.
A93: Your farm | B93: D132 | C93: your farm!D132 | D93: Direct from manure (storage & spread) | E93: A proportion of cattle urine and dung (manure) is captured on hard surfaces, such as at the dairy and generally are either collected in a pond/lagoon system or spread daily through an irrigation system. The calculator uses a state-based average to determine what proportion of manure is captured and how it is handled (i.e. pond/lagoon, spread daily etc), based on national survey data. During storage, the manure (dung and urine) goes through a process of nitrification and denitrification, releasing a proportion of N to the environment in the form of nitrous oxide. Likewise, after the manure is applied to pastures, a proportion of the N will be lost as nitrous oxide. If your stock spend substantially longer on non-paddock areas (e.g. feedlotting), we suggest you may wish to enter your own data in the manure management section to ascertain a more realistic value for nitrous oxide losses.
A94: Your farm | B94: D133 | C94: your farm!D133 | D94: Indirect N waste | E94: A proportion of the manure N deposited onto paddocks or in storage is assumed to be lost to the environment through volatilisation and/or leaching/runoff. Once this volatilised or leached/runoff N is lost to the environment, it is assumed that a proportion of the N will then be redeposited onto pastures, go through the processes of nitrification and denitrification and converted into nitrous oxide. If your stock spend substantially longer on non-paddock areas (e.g. feedlotting), we suggest you may wish to enter your own data in the manure management section to ascertain a more realistic value for nitrous oxide losses.
A95: Your farm | B95: D134 | C95: your farm!D134 | D95: Direct N fertiliser | E95: A proportion of the N applied in fertilisers (organic and inorganic) goes through the processes of nitrification and denitrification, with a percentage of this N lost to the environment as nitrous oxide.
A96: Your farm | B96: D135 | C96: your farm!D135 | D96: Indirect N fertiliser | E96: A proportion of the N fertiliser (organic and inorganic) applied to pastures is lost to the environment through volatilisation and leaching/runoff. Once this N is deposited back onto pastures, a proportion of this N will go through the processes of nitrification and denitrification, with a percentage of the N lost as nitrous oxide to the environment.
A97: Your farm | B97: D136 | C97: your farm!D136 | D97: Electricity (Scope 2) | E97: Scope 2 electricity emissions are those released to the environment with the generation/consumption of electricity on farm. Scope 3 electricity emissions are those not included in Scope 2. These are associated with the indirect loss of electricity during the transmission and distribution in the grid.
A98: Your farm | B98: D137 | C98: your farm!D137 | D98: Electricity (Scope 3) | E98: Scope 2 electricity emissions are those released to the environment with the generation/consumption of electricity on farm. Scope 3 electricity emissions are those not included in Scope 2. These are associated with the indirect loss of electricity during the transmission and distribution in the grid.
A99: Your farm | B99: D138 | C99: your farm!D138 | D99: Diesel and unleaded petrol (Scope 1) | E99: Scope 1 fuel emissions are those associated with the consumption of fuel on farm. Scope 3 fuel emissions are those associated with the extraction and production of fuel. Previous versions of the Australian Dairy Carbon Calculator summed Scope 1 and Scope 3 emissions together and reported these as carbon dioxide emissions from diesel and unleaded petrol.
A100: Your farm | B100: D139 | C100: your farm!D139 | D100: Diesel and unleaded petrol (Scope 3) | E100: Scope 1 fuel emissions are those associated with the consumption of fuel on farm. Scope 3 fuel emissions are those associated with the extraction and production of fuel. Previous versions of the Australian Dairy Carbon Calculator summed Scope 1 and Scope 3 emissions together and reported these as carbon dioxide emissions from diesel and unleaded petrol.
A101: Your farm | B101: D140 | C101: your farm!D140 | D101: Urea and lime/dolomite (Scope 1) | E101: Adding urea fertiliser to soils leads to a loss of carbon dioxide that was fixed during the manufacturing process. The bicarbonate in urea is broken down into water and carbon dioxide. Other forms of N fertiliser, such as DAP and SoA are not bicarbonates and therefore do not break down into carbon dioxide. lime and dolomite are added to soils to reduce soi acidity, improve soil structure and improve plant growth. The breakdown of these in the soil results in the production of water and carbon dioxide. As both urea and lime/dolomite break down into carbon dioxide, this release of carbon dioxide needs to be accounted for when estimating the GHG emissions of the dairy farm.
A102: Your farm | B102: D141 | C102: your farm!D141 | D102: Grain/ concentrates | E102: It is important to understand the GHG emissions associated with key farm inputs, such as purchased feed and fertiliser. These results are a calculation of the CO₂e emitted in the production/ manufacturing of grain/concentrates, forages and fertilisers. It does not include the CO₂e emitted with transport from source (i.e. grain farm, fertiliser manufacturer) to the dairy farm as this can vary widely, depending on source (i.e. hay from a farm next door or urea manufactured in China).
A103: Your farm | B103: D142 | C103: your farm!D142 | D103: Forages | E103: It is important to understand the GHG emissions associated with key farm inputs, such as purchased feed and fertiliser. These results are a calculation of the CO₂e emitted in the production/ manufacturing of grain/concentrates, forages and fertilisers. It does not include the CO₂e emitted with transport from source (i.e. grain farm, fertiliser manufacturer) to the dairy farm as this can vary widely, depending on source (i.e. hay from a farm next door or urea manufactured in China).
A104: Your farm | B104: D143 | C104: your farm!D143 | D104: Fertilisers | E104: It is important to understand the GHG emissions associated with key farm inputs, such as purchased feed and fertiliser. These results are a calculation of the CO₂e emitted in the production/ manufacturing of grain/concentrates, forages and fertilisers. It does not include the CO₂e emitted with transport from source (i.e. grain farm, fertiliser manufacturer) to the dairy farm as this can vary widely, depending on source (i.e. hay from a farm next door or urea manufactured in China).
A105: Your farm | B105: D144 | C105: your farm!D144 | D105: Purchased livestock | E105: Purchased livestock have emissions associated with them prior to entering the farm. Dairy-origin youngstock, such as heifers, have an emission factor of 4.7 kg CO₂e/ kg liveweight. So if you are building herd numbers up by purchasing 50 heifers weighing 150 kg, these have an embedded footprint of 35.25 t CO₂e. Beef-original stock, such as steers or bulls have a higher emission factor of 11.7 kg CO₂e/kg liveweight. So if you buy 3 bulls per annum weighing 800 kg, these have an embedded footprint of 28.1 t CO₂e.
A107: Strategy farm | B107: C12 | C107: strategy farm!C12 | D107: Owner or sharefarmer ID | E107: Enter the primary ID you wish to use to report these results.
A108: Strategy farm | B108: C16 | C108: strategy farm!C16 | D108: Choose your state in Australia | E108: When you go to the white cell to the right of this heading, a drop down arrow will appear to the right hand side and if you click on this, a list of all the states of Australia will appear.
A109: Strategy farm | B109: I12 | C109: strategy farm!I12 | D109: Supplier Number | E109: This is the unique supplier number that farmers have with their milk company.
A110: Strategy farm | B110: I14 | C110: strategy farm!I14 | D110: Year reviewed | E110: Enter the financial year that this GHG assessment is for using the format 2021/22.
A111: Strategy farm | B111: J16 | C111: strategy farm!J16 | D111: Choose your region/ farm system comparison | E111: Select your option here to populate the Typical Industry Average graph below. The averages are based on data from the Dairy Farm Monitor Project (DFMP) and the Queensland Dairy Accounting Scheme (QDAS) as found in DairyBase (2018-19 to 2022-23). Select which region/state you which to compare your results to. Alternatively, we have provided an Australia-wide average. | F111: In addition, we have analysed the DFMP and QDAS datasets to generate averages for three classes of grain/concentrate feeding to represent farm systems. These are low (< 1 t DM/cow.annum), medium (1-2 t DM/cow.annum) or high (> 2 t DM/cow.annum). As we can't determine which animals were fed the grain/concentrate, we assumed all went to the milking cow as she would be fed the most grain on farm. You need to determine how much grain/concentrate you feed your milking herd to be able to select the most appropriate comparison. Selecting a grain/concentrate option will not limit the results to just your region/state but rather across the country.
A112: Strategy farm
A113: Strategy farm | B113: C20 | C113: strategy farm!C20 | D113: Livestock numbers | E113: Insert the number of animals in each category.
A114: Strategy farm | B114: C22 | C114: strategy farm!C22 | D114: Liveweight | E114: Specify the average liveweight of your herd for each category. Typically mature Jerseys are around 400kg, medium size Friesians are around 550kg and large Holstein Friesians are around 650kg. See the ADCC manual for more assistance.
A115: Strategy farm | B115: C24 | C115: strategy farm!C24 | D115: Liveweight gain | E115: Insert the likely average daily liveweight gain for each class of animal in the herd. This is an estimate of the expected weight gain of an animal in a particular class of livestock over the 12 month period. There are indicative liveweight gains in the heading for the stock classes that are still growing. See the ADCC manual for more assistance.
A116: Strategy farm | B116: C26 | C116: strategy farm!C26 | D116: Number of stock sold each year | E116: Enter the number of animals sold from each stock class. For example, sold 70 cull cows, 50 non-replacement heifers and 100 bull calves. These numbers are used to estimate total meat sold from the farm so that an equivalent amount of GHG emissions are allocated to meat production as opposed to milk production.
A117: Strategy farm | B117: C28 | C117: strategy farm!C28 | D117: Liveweight at point of sale | E117: Enter the average liveweight of the sold stock. For example, cull cows were 550 kg, non-replacement heifers were 175 kg and bull calves were 50 kg. These numbers are used to estimate total meat sold from the farm so that an equivalent amount of GHG emissions are allocated to meat production as opposed to milk production.
A118: Strategy farm | B118: D18 | C118: strategy farm!D18 | D118: Milking Cows | E118: Milking cows also include non-lactating cows. So if you milk year-round, it is how many cows calved in the 12 month period as opposed to the milking herd size. For seasonal calving herds, it’s the peak milking herd size. Therefore a 360 head seasonal milking herd is the same as a 300 head year-round milking herd with 60 dries at any particular month, both farms have milked 360 cows over the 12 month period.
A119: Strategy farm | B119: E18 | C119: strategy farm!E18 | D119: Heifers >1 yr age | E119: This category is for your replacement heifers aged between 1 and 2 yrs of age. Use the mid-point (i.e. 18 months) for aspects such as average liveweight. Alternatively, the average liveweight is 70% of the mature milking cow liveweight. Liveweight gain will vary between 0.6 and 0.8 kg/day depending on the liveweight of the milking cow. If you raise non-replacement heifers, you need to add them to the Other stock > 1 yr age category. Any purchased animals need to be included in the livestock numbers. For example, you bred and retained 300 heifers but also bought 100 heifers, put 400 heifers in the livestock number cell to illustrate the number of heifers on farm.
A120: Strategy farm | B120: F18 | C120: strategy farm!F18 | D120: Heifers <1 yr age | E120: This category is for your replacement heifers aged between birth and 1 yr of age. Use the mid-point (i.e. 6 months) for aspects such as average liveweight. Alternatively, the average liveweight is 35% of the mature milking cow liveweight. Liveweight gain will vary between 0.6 and 0.8 kg/day depending on the liveweight of the milking cow. If you sell the non-replacement heifers as young calves (as week old calves or post-weaning), you don't need to add the number of them into the Livestock number cell, but enter the number sold further down the sheet. If you raise the non-replacement heifers beyond weaning, add their number in with the Other stock < 1 yr of age category. For example, you raise them to 9 months of age before selling, then you need to determine the annual average number present along with steers and bulls. See the help message for Other stock < 1 yr age. Any purchased animals need to be included in the livestock numbers. For example, you bred and retained 300 heifers but also bought 100 heifers, put 400 heifers in the livestock number cell to illustrate the number of heifers on farm.
A121: Strategy farm | B121: G18 | C121: strategy farm!G18 | D121: Mature bulls | E121: Mature bulls are no longer growing. They will be 10 to 20% heavier than the milking cow. For example, if the milking cow weighs 600kg, the bulls are likely to be 660 to 720 kg. As they are fully grown there is no liveweight gain. Any purchased animals need to be included in the livestock numbers. For example, you buy 3 bulls each year and retain them for 4 years before selling on. This means you have 12 bulls on farm, thus you would have 12 bulls in the livestock numbers, 3 bulls sold and 3 bulls purchased.
A122: Strategy farm | B122: H19 | C122: strategy farm!H19 | D122: Other stock < 1 yr age | E122: This category is for young bulls, steers and non-replacement heifers that are 0-1 years of age and can be either replacement bulls for breeding or steers and heifers to be sold off farm. NOTE: If you sell your surplus heifers and bull calves at 5 to 10 days of age, do not enter any data for them here, their data needs to go into the Calves category. If you retain the bulls/steers/heifers for the full 12 months, use their liveweight at 6 months of age and determine how much liveweight gain they have achieved over the 12 month period and divide this by 365 days to determine daily liveweight gain. For example, they were 50 kg at birth and 400 kg at 12 months of age so put on 350 kg / 365 days = 0.82 kg/day. Their mid-year liveweight would be 225 kg (i.e. 350 kg gained/ 2 (reflect mid-point) + 50 kg at birth. Alternatively, they put on 29.16 kg/month so 29.16 x 6 months + 50 kg at birth = 225 kg. Conversely, if you sell the steers and heifers prior to reaching 1 year of age, determine the stocking rate if they were retained for the full year. For example, you have 75 steers and heifers and sell them at 9 months of age, thus 75 head x 9 months retained / 12 months in the year = equivalent to 56 head per annum. If you sell most animals but retain some as bulls for replacements, it may be easiest to sum the number of bulls/steers/heifers present each month and divide by 12. For example, raised 5 bulls, as well as 70 steers and heifers and sold all 70 steers and heifers at 10 months of age and retained the 5 bulls as replacements. The sum of 70 steers/heifers for 10 months (700 equivalents) + 5 bulls for 12 months (60 equivalents) = 760 head equivalents / 12 months = 63 head per annum. You then need to determine their average liveweight and liveweight gain over the period they were present on farm, similar to if they were present for the full 12 months. For example, the non-replacement heifers and bulls were sold at approx. 270 kg so their mid-point liveweight would be 135 kg liveweight. Refer to the 'Other Livestock Help' tab if needing assistance with these estimates.
A123: Strategy farm | B123: I19 | C123: strategy farm!I19 | D123: Other stock > 1 yr age | E123: This category is for replacement bulls, and for steers and non-replacement heifers that are 1-2 years of age and sold off farm as opposed to your replacement heifers which should be reported in the Heifers > 1 yr age category. If you retain the steers/heifers longer than 2 years of age, determine what the stocking rate would be if only retained for 2 years. For example, you have 75 steers and sell them at 26 months of age, thus 75 head x 14 months retained when greater than 1 year of age / 12 months in the year = equivalent to 88 head per annum. Conversely, if you sell the steers and heifers somewhere between 1 and 2 years of age, determine the stocking rate if they were retained for the full 2 years. For example, you have 75 steers and heifers and sell them at 21 months of age, thus 75 head x 9 months retained when greater than 1 year of age / 12 months in the year = equivalent to 56 head per annum. Use their age mid-point for liveweight. So if they are 350 kg at 12 months of age and sold at 600 kg then the midpoint is 475kg. During that 12 month period they gained 250 kg liveweight, equivalent to 0.68 kg LW/day. Refer to the 'Other Livestock Help' tab if needing assistance with these estimates.
A124: Strategy farm | B124: J18 | C124: strategy farm!J18 | D124: Calves | E124: This category is for non-replacement calves sold soon after birth (i.e. 5 to 10 days of age) or post-weaning at around 100 kg or 80-100 days. This is not where you include your replacement heifer calves, or if you breed bulls for breeding, or you fatten up non-replacement heifers and steers for the beef market. These animals (calves up to weaning age) emit very little GHG emissions and so we have decided they will not alter net farm GHG emissions. However, they do contribute to total meat sales and thus the emissions intensity of milk and meat production. Therefore, non-relevant cells have been blanked out. Enter the number sold and their average liveweight in the white cells. However, if you retain non-replacement heifers and bull/steer calves beyond weaning and fatten them on farm before selling, they need to be reported in the Other stock < 1 yr age category as they will be emitting GHG emissions for the duration on farm until sold. Make sure you select if these non-replacement animals are sold soon after birth (i.e. 5-7 days) or if sold post-weaning (i.e. at approx. 100 kg or around 80-100 days of age (essentially retained longer on farm than up to a couple of weeks)) from the drop-down list to the right of this Calves heading. if you sell some at a few days of age (e.g. bull calves) but retain your non-replacement heifer calves until post-weaning), select the option which is the largest number of animals (most likely soon after birth as more bull calves sold than non-replacement heifer calves).
A125: Strategy farm | B125: E22 | C125: strategy farm!E22 | D125: Heifers >1 yr age Liveweight | E125: This is the liveweight at the mid point of their age group, so for Heifers > 1, this would be at 18 months of age for heifers calving at 2 yrs of age. If accurate figures are not available, we suggest using 70% of the milking cow liveweight. For example, if the milkers weigh 600kg, the heifers would weigh 420kg.
A126: Strategy farm | B126: F22 | C126: strategy farm!F22 | D126: Heifers <1 yr age Liveweight | E126: This is the liveweight at the mid point of their age group, so for Heifers < 1, this would be at 6 months of age for heifers calving at 2 yrs of age. If accurate figures are not available, we suggest using 30% of the milking cow liveweight. For example, if the milkers weigh 600kg, the heifers would weigh 180kg.
A127: Strategy farm | B127: H22 | C127: strategy farm!H22 | D127: Other stock >1 yr age Liveweight | E127: If you retain the bulls/steers/heifers for the full 12 months, use their liveweight at 6 months of age. Determine how much liveweight gain they have achieved over the 12 month period and divide this by 365 days to determine daily liveweight gain. For example, they were 50 kg at birth and 400 kg at 12 months of age so put on 350 kg / 365 days = 0.82 kg/day. Their mid-year liveweight would be 200 kg as half of the 400 kg at 12 months of age.
A128: Strategy farm | B128: I22 | C128: strategy farm!I22 | D128: Other stock >1 yr age Liveweight | E128: If you retain the steers/heifers longer than 2 years of age, determine what the stocking rate would be if only retained for 2 years. For example, you have 75 steers and sell them at 26 months of age, thus 75 head x 14 months retained when greater than 1 year of age / 12 months in the year = equivalent to 88 head per annum. Conversely, if you sell the steers and heifers somewhere between 1 and 2 years of age, determine the stocking rate if they were retained for the full 2 years. For example, you have 75 steers and heifers and sell them at 21 months of age, thus 75 head x 9 months retained when greater than 1 year of age / 12 months in the year = equivalent to 56 head per annum. Use their age mid-point for liveweight. So if they are 350 kg at 12 months of age and sold at 600 kg then the midpoint is 475kg. During that 12 month period they gained 250 kg liveweight, equivalent to 0.68 kg LW/day.
A129: Strategy farm | B129: D24 | C129: strategy farm!D24 | D129: Milking Cows Liveweight gain | E129: While milking cows lose weight in early lactation, this weight is regained during late lactation and during .the non-lactating phase. Therefore over a 12 month period there is generally no change in liveweight and therefore no liveweight gain
A130: Strategy farm | B130: E24 | C130: strategy farm!E24 | D130: Heifers >1 yr age Liveweight gain | E130: Typical liveweight gain is between 0.6 and 0.75 kg per day depending on the breed, with Jerseys at the lower end and large-framed Holstein Friesians (>600 kg) at the upper range.
A131: Strategy farm | B131: F24 | C131: strategy farm!F24 | D131: Heifers <1 yr age Liveweight gain | E131: Typical liveweight gain is between 0.6 and 0.75 kg per day depending on the breed, with Jerseys at the lower end and large-framed Holstein Friesians (>600 kg) at the upper range.
A132: Strategy farm | B132: C34 | C132: strategy farm!C34 | D132: Number of stock bought each year | E132: We need to account for the emissions of purchased livestock prior to entering this farm. This is a Scope 3 embedded emission, just like purchased concentrates or fertiliser. This is the total number bought in the year of assessment, which could be purchases several times throughout the year. For example, you bought 100 head at 150 kg and 50 head at 200 kg, that's the equivalent of buying 150 head. If you do buy in stock, you need to make sure that they are incorporated into the total livestock numbers above so that we can determine their emissions while on farm. For example, you bred 100 rising 1 yr olds but also bought 50 head at 6 months of age. This is equivalent to 100 x 12 months + 50 x 6 months, which equals the equivalent of 125 over the 12 month period (i.e. ((100 head x 12 months) + (50 head x 6 months))/ 12 months. Therefore enter 125 in the Heifers < 1 yr age livestock number cell above.
A133: Strategy farm | B133: C36 | C133: =IF(AND(LEN(A133)>0,LEN(B133)>0),_xlfn.CONCAT(TRIM(LOWER(A133)),"!",TRIM(B133)),"") -> strategy farm!C36 | D133: Liveweight at point of purchase | E133: This is the average liveweight of all animals purchased for each stock class. For example, you buy 100 R1s at 150 kg and another 50 R1s at 200 kg. Therefore their average liveweight would be 167 kg (i.e. ((100 x 150) + (50 x 200))/ (150+50)). Enter 167 as the average liveweight for the Heifers < 1 yr age purchased.
A134: Strategy farm
A135: Strategy farm | B135: B34 | C135: strategy farm!B34 | D135: Milk production | E135: Select which way you wish to report the annual milk production by using the drop-down list. Either milk is reported as litres per herd per annum (1st option) or kg milksolids per herd per annum (2nd option). Then enter the amount produced in the white cell to the right. You will note that the units will change between 'litres of milk' and 'kg milksolids' depending on which option you selected to report the milk production. | F135: If the option of litres per herd per annum is selected, DGAS will convert this data to a standard fat and protein corrected milk (FPCM) volume (based on 4.0% fat and 3.2% protein; FAO 2010). This allows us to standardise milk production to compare between breeds. For example, to compare Jerseys herds with lower volumes of milk per cow with higher MS% versus Friesian herds with higher volumes of milk per cow at lower MS%. This fat and protein corrected milk volume will be used to estimate the daily milk production per cow and also the milk GHG emissions intensity.
A136: Strategy farm | B136: G39 | C136: strategy farm!G39 | D136: Average milk production | E136: The average litres per cow per day is calculated and based on a standard fat and protein concentration of 4.0 and 3.3% respectively. If you don't enter the known fat and protein concentrations, these percentages will be used. | F136: If the fat and protein concentration of your milk is greater than these values, the kg of fat and protein corrected milk, and therefore litres of milk, will be lower than if the concentration of the milk had been 4.0% fat and 3.3% protein. However, if your milk has lower fat and protein concentrations than these standards, the kg of fat and protein corrected milk, and therefore litres per cow per day will be higher than if the concentration of the milk had been 4.0% fat and 3.3% protein. Check that this figure is approximately what would be expected and if it is substantially different, check the milk production per annum (either as litres or kg milksolids) and the concentration of the milk to see that these figures are reflective of your farm system.
A137: Strategy farm
A138: Strategy farm | B138: B45 | C138: strategy farm!B45 | D138: Milkers average annual diet intakes | E138: Based on data entry, the calculator can estimate the daily intake required. If the user enters how much feed came through supplementation, the difference between the sum of this and the figure presented here is assumed to come from pastures. For example, if the calculator estimated that the cows required 20 kg DM/day to produce the milk entered, and the farmer knew that 10kg of this came in the form of grain and silage, the balance 10 kg must have been from pasture.
A139: Strategy farm | B139: E41 | C139: strategy farm!E41 | D139: Intake (kg DM/day) | E139: Intakes are what is consumed after wastage is taken into consideration. Wastage of grain and concentrates in the dairy may be quite low (1-2%) but forages such as hay and silage fed out in the paddock can be quite high (up to approx. 25-30%) depending on placement (e.g. middle of paddock versus near fence lines etc).
A140: Strategy farm | B140: C50 | C140: strategy farm!C50 | D140: Average annual dry matter digestibility (DMD) for all other stock (%) | E140: Enter the DMD in the feed eaten, not on offer. Suggest the NGGI default of 75% in the absence of known figures.
A141: Strategy farm | B141: C51 | C141: strategy farm!C51 | D141: Average annual crude protein (CP) for all other stock (%) | E141: Enter the CP in the feed eaten, not on offer. Suggest the NGGI default of 20% in the absence of known figures.
A142: Strategy farm
A143: Strategy farm | B143: D54 | C143: strategy farm!D54 | D143: How do you wish to enter the fertiliser rates? | E143: Users can enter the rate of fertiliser applied either as kg of element (i.e. N:P:K:S: lime) per hectare per annum, in which case the number of hectares must be accurate, or the tonnes of element (N:P:K:S: lime) per annum, which removes any need of accuracy in terms of area that the fertiliser is applied to. The second option is particularly useful if the amount of land that the fertilisers were applied to is not known. For example, the farmer purchased 10 t N but the rate at which it went on and/ or the amount of land is not known. | F143: If you select the tonnes of element per annum option from the drop-down list, the white cells for area of fertiliser will disappear as these cells do not require any data entry. Typical nutrient content of some common fertilisers include: Urea- 46% N Mono-ammonium phosphate (MAP)- 11% N, 22% P, 1 to 2% S Di-ammonium phosphate (DAP)- 18% N, 20% P, 1 to 3% S Sulphate of Ammonia (SOA)- 21% N, 24% S Single superphosphate (SSP)- 9% P, 11% S Triple superphosphate (TSP)- 20% P, 1 to 2% S Muriate of potash (MOP)- 50% K Potassium sulphate (SOP)- 42% K, 17% S Select the Click here to work out fertiliser rates if you have more complex fertiliser data. In the linked cell, we also help you to determine the percentage of N fertiliser that is urea-based.
A144: Strategy farm | B144: C56 | C144: strategy farm!C56 | D144: Area of N fertiliser | E144: Amount of Nitrogen fertiliser applied to pastures. Remember that urea is 46%N and DAP is 18% N etc. i.e. 10 tonnes of urea = 4.6 tonnes N.
A145: Strategy farm | B145: B57 | C145: strategy farm!B57 | D145: Area of pastures fertilised with N | E145: Total area of pastures that received N fertiliser. This includes runoff/ out blocks and also leased land as this is still part of the farm business.
A146: Strategy farm | B146: B59 | C146: strategy farm!B59 | D146: Area of crops fertilised with N | E146: The total area of cropping land that received N fertiliser. If you don't know what amount went onto pastures and onto crops, just include all together as applied to pastures. It will make only a small increase in N₂O emissions.
A147: Strategy farm | B147: B64 | C147: strategy farm!B64 | D147: Area of pastures fertilised with P K S & lime | E147: Area of farmland applied with P, K, S and lime/dolomite applied to pastures. Note if different areas of land are fertilised (e.g. 100ha with P but only 50ha with K), the area needs to consistent across the fertilisers and the rate changed accordingly. | F147: For example, 100ha of pastures was fertilised with 50 kg P/ha. In addition, 50ha of pastures was fertilised with 50 kg K/ha. To make this uniform, make the pasture 100 ha for both and apply 50kg P and 25kg K. Alternatively if the option of tonnes of element per annum is used, the area of pastures is irrelevant.
A148: Strategy farm | B148: B66 | C148: strategy farm!B66 | D148: Area of crops fertilised with P K S & lime | E148: Area of farmland applied with P, K, S and lime/dolomite applied to crops. Note if different areas of land are fertilised (e.g. 100ha with P but only 50ha with K), the area needs to consistent across the fertilisers and the rate changed accordingly. | F148: For example, 100ha of crops was fertilised with 50 kg P/ha. In addition, 50ha of crops was fertilised with 50 kg K/ha. To make this uniform, make the crop 100 ha for both and apply 50kg P and 25kg K. Alternatively if the option of tonnes of element per annum is used, the area of crops is irrelevant.
A149: Strategy farm | B149: G56 | C149: strategy farm!G56 | D149: Rate of N fertiliser | E149: Amount of Nitrogen fertiliser applied to pastures. Remember that urea is 46%N and DAP is 18% N etc. i.e. 10 tonnes of urea = 4.6 tonnes N. For the percentage of N fertiliser applied to pastures and crops is urea, enter whole numbers. For example, if all N fertiliser is urea, then enter 100. | F149: Note this is not the weight of fertiliser, but of N. For example 1 t urea and 1 t DAP is equivalent to 460 kg N from urea and 180 kg N from DAP, so 640 kg N with 72% from urea (i.e. 460 / (460 + 180)). This percentage is used to estimate the amount of CO₂ produced when urea N is applied to pastures. Other forms of N do not release CO₂ when applied to pastures. If no percentage is entered into the "Percentage of N fertiliser that is urea", the calculator will assume this is 100%, given urea is the most common form of N fertiliser applied to pastures and crops.
A150: Strategy farm | B150: F61 | C150: strategy farm!F61 | D150: Percentage of N fertiliser that is urea | E150: We need to know what percentage of total N fertiliser is urea versus other N fertilisers such as DAP. When urea is manufactured, the process removes carbon dioxide from the atmosphere. When the urea fertiliser is then spread onto pastures and crops, the carbon dioxide is released to the atmosphere. We need to account for this release of carbon dioxide with the farm GHG assessment. If you applied 10 t of N as urea and 5 t N as DAP, then 10 t urea N / 15 t total N = 67% urea N.
A151: Strategy farm
A152: Strategy farm | B152: B69 | C152: strategy farm!B69 | D152: Annual Electricity Use | E152: What was your total annual electricity consumption for the year in kWh? If your supplier guarantees a fraction of their electricity is from renewable sources, e.g. 10%, enter the full amount consumed here but then type in 10 in the 'What % of electricity is from renewables' cell to the right. This will reduce the GHG emissions from electricity by 10%. | F152: For example, a farm in Gippsland consumed 100,000 kWh/annum, with the supplier guaranteeing 10% is sourced from renewables. Select: ‘State Grid’, enter 100,000 kWh purchased electricity and 10% purchased renewable electricity. The calculator will multiply 100,000 by 10%, such that 90,000 kWh will be multiplied by the Victorian emission factor and the balance 10,000 kWh will incur no carbon dioxide emission footprint. We no longer subtract any surplus renewable energy generated on farm and fed back into the national grid.
A153: Strategy farm | B153: B71 | C153: strategy farm!B71 | D153: Where does your electricity come from? | E153: The State Grid option matches current sources of electricity (i.e. coal, hydro, wind) for your state. For example, most of Tasmania's energy is generated via hydro and wind, but there is a very small proportion generated via gas or comes via Bass Link from the mainland. The emission factor for Tasmania takes this into consideration, with a considerably lower factor than Victoria, for example. Only select 100% renewable if all your electricity consumption is supplied via clean energy forms (i.e. hydro, solar, wind).
A154: Strategy farm | B154: B73 | C154: strategy farm!B73 | D154: What % of electricity is from renewables? | E154: If your supplier guarantees a fraction of their electricity is from renewable sources, e.g. 10%, enter the full amount consumed here but then type in 10 in the 'What % of electricity is from renewables' cell to the right. This will reduce the GHG emissions from electricity by 10%. The balance 90% of purchased electricity will use a state-based factor which takes into account the range of sources of electricity generated for your state.
A155: Strategy farm | B155: F69 | C155: strategy farm!F69 | D155: Annual purchased diesel/ unleaded petrol | E155: How any litres of diesel and unleaded petrol did the farm use last year? If you used contractors for some or all of your field work, we need to estimate the amount they may have used in the following question.
A156: Strategy farm | B156: F71 | C156: strategy farm!F71 | D156: Annual contractor diesel/ unleaded petrol | E156: You need to consider the fuel that would have been consumed if you use contractors to undertake some/ all of your field work (e.g. silage making, fertiliser spreading, direct drilling new pasture seed etc) and they supplied their own fuel, as opposed to taking fuel out of your fuel tanks on farm. Approximate consumption figures are: Fertilising/ chemical spraying/ rolling/ raking- 3 litres/ha Sowing/ mowing/ wrapping silage- 9 litres/ha Baling/ harvesting/ discing- 16 litres/ha Ploughing/ tillage- 22 litres/ha So if you were making silage from a 1ha paddock, with the grass cut, tedded and raked before baling and wrapping, it is likely that 40 litres per hectare may have been consumed (i.e. 9 litres/ha for cutting, 3 litres/ha for tedding, 3 litres/ha for raking, 16 litres/ha for baling and 9 litres/ha for wrapping). Multiply the total litres/ha by the area to determine annual litres for each activity and sum together. In the above example, it was 40 litres per hectare and we cut 40 ha of pastures, that's 1,600 litres per annum.
A157: Strategy farm
A158: Strategy farm | B158: B75 | C158: strategy farm!B75 | D158: Purchased supplementary feed | E158: We need to understand how much supplementary feed is purchased. Each feed type is multiplied by the GHG emissions associated with their production to estimate an embedded emission. For example each tonne of grain emits ~ 0.2 tonnes of CO₂e in the production of the grain. We don't include the CO₂ emitted with the transportation of these feeds to the farm as it is difficult to ascertain how far they may travel between farms. Feed grown on a run-off block or leased area is part of your farm business and therefore is not considered purchased feed. However, the inputs into growing this feed, such as fertiliser, needs to be considered as part of the farm business and included where applicable. The allocation of purchased feed to the milking platform vs the support block will not alter the total emissions from the purchased supplementary feed. It will only determine what proportion of those emissions are allocated to the milk enterprise versus the meat enterprise to determine the emissions intensity of milk and meat production. The emissions from feed fed on the milking platform is allocated to milk production, whereas the emissions from feed fed on the support block will be proportionally divided between the meat and milk enterprises depending on how much milk and meat are produced. While some purchased feed, while fed on the support block, may be fed to dairy-enterprise animals, e.g. hay to dry cows. In this instance, we recommend you still attribute the hay fed to these dry cows as being fed on the support block. ADCC will then attribute a proportion of hay emissions back to the dairy enterprise to reflect that some of the hay was fed to milk enterprise animals. The only time we would change this recommendation would be if all purchased feed for any category goes to dairy-enterprise animals, even though it was fed on the support block. In that instance, we would recommend you allocate 100% of the feed to the milking platform so that all emissions are attributed to the milk enterprise. For example, all purchased hay is fed to the dry cows and heifers prior to calving. If you still have any hay or silage left over at the end of the year being analysed, the emissions for these will be accounted for in this year's assessment. In this instance, work out the proportion of feed fed this year on the milking platform vs support block. For example, bought 100 t DM of hay, with 75 t DM fed on the support block, 20 t DM fed in the calf shed and the remaining 5 t DM held over until next year. In this instance, you would allocate 21% to the milking platform (i.e. 20 t DM/ 95 t DM fed = 21%).
A159: Strategy farm | B159: D78 | C159: strategy farm!D78 | D159: Percentage of purchased hay fed on the milking platform | E159: ADCC estimates the Scope 3 GHG emissions associated with purchased grain, concentrates, hay, silage and other/by-products. The percentage of hay fed on the milking platform will be attributed to the milking enterprise. The balance percentage will be assumed to be fed on the support block, where a proportion will remain attributed to the milking enterprise (i.e. fed to dry cows and replacement heifers), with the remaining emissions attributed to the meat enterprise. | F159: For example, you purchased 100 t DM of hay this year, thus the Scope 3 emissions would be 16 t CO₂e. You fed 85 t DM on the support block, 10 t DM on the milking platform and there was a balance 5 t DM left in the hay shed. In this example, we need to know that 10 t DM of the 95 t DM fed was on the milking platform. In the white cell to the right, enter the equation = 10/95*100 to reflect 10 t DM fed on milking platform / 95 t fed to milking platform + support block * 100 to get a percentage figure. In this example, 10.5% of the hay was fed on the milking platform. Do not count the 5 t DM of hay remaining in the hay shed in this percentage of hay fed on the milking platform, we only want to know how much purchased feed bought this year is fed out this year. This is all you need to enter. ADCC will then attribute 10.5% of the 16 t CO₂e, equivalent to 1.7 t CO₂e, to the milk enterprise. The balance of the 16 t CO₂e is then allocated to the support block as you fed 85 t DM there, equivalent to 14.3 t CO₂e. As this hay is likely to be fed to dry cows or replacements as well as dairy-beef cattle for the meat market, ADCC allocates a percentage of these Scope 3 emissions to the milk and meat enterprises based on total milk and meat production. Thus, if ADCC determined that 85% of the Scope 3 hay emissions are attributed to the milk enterprise, based on how much milk and meat is produced and sold, this 12.2 t CO₂e (i.e. 14.3 t CO₂e x 85% = 12.2 t CO₂e) is added to the 1.7 t CO₂e for the hay fed on the milking platform. In this example, 13.9 t CO₂e is allocated to the milking enterprise and the balance 2.1 t CO₂e is allocated to the meat enterprise to determine the milk and meat emissions intensity. For any imported DairyBase datasets, we can't show you here the proportion of the hay fed to the milking platform. However, this value will appear in the 'Strategy Farm' tab's percentage of purchased hay fed on the milking platform white cell.
A160: Strategy farm | B160: D80 | C160: strategy farm!D80 | D160: Purchased grain and concentrates (t DM) | E160: This includes pellets for young replacement stock, lead feed for springer cows just prior to calving as well as grain or concentrates fed to the milking cows. Also include any grain or concentrates fed to non-replacement stock, such as dairy beef. ADCC will allocate a proportion of the grain & concentrate emissions to the meat enterprise, depending on the total amount of milk and meat sold. Don't include any waste/by-products from other industries, such as whole cottonseed, canola meal, brewer's grain etc. These need to be entered into the By-products section. | F160: If you are importing an ADCC datasheet from DairyBase and within DairyBase you entered the by-products Cottonseed meal, Canola meal, Soybean meal or Dried distiller's grain via the Concentrate feed group, these will be also included in this Purchased grain and concentrates cell. However, these products will remain having a zero carbon footprint and thus Scope 3 emissions will only be attributed to all other feeds within the concentrates grouping.
A161: Strategy farm | B161: D82 | C161: strategy farm!D82 | D161: Percentage of purchased grain & concentrates fed on the milking platform | E161: ADCC estimates the Scope 3 GHG emissions associated with purchased grain, concentrates, hay, silage and other/by-products. The percentage of grain and concentrates fed on the milking platform will be attributed to the milking enterprise. The balance percentage will be assumed to be fed on the support block, where a proportion will remain attributed to the milking enterprise (i.e. fed to dry cows and replacement heifers), with the remaining emissions attributed to the meat enterprise. For example, you purchased 925 t DM of grain this year, made up of grain and pellets fed to the milking cows, pellets fed to calves, and lead feed to the springer cows just prior to calving. The Scope 3 emissions for these would total 185 t CO₂e. You fed 880 t DM on the support block, 25 t DM on the milking platform and there was a balance 20 t DM left in the grain silo. | F161: For example, you purchased 925 t DM of grain this year, made up of grain and pellets fed to the milking cows, pellets fed to calves, and lead feed to the springer cows just prior to calving. The Scope 3 emissions for these would total 185 t CO₂e. You fed 880 t DM on the support block, 25 t DM on the milking platform and there was a balance 20 t DM left in the grain silo. In this example, we need to work out the percentage fed on the milking platform, given 880 t DM of the 905 t DM fed was on the milking platform. In the white cell to the right, enter the equation = 880/905*100 to reflect 880 t DM fed on milking platform / 905 t DM fed to milking platform + support block * 100 to get a whole percentage figure. In this example, 97.3% was fed on the milking platform. Do not count the 20 t DM of grain remaining in the silo in this percentage of grain & concentrates fed on the milking platform, we only want to know how much purchased feed bought this year is fed out this year. This is all you need to enter. ADCC will then attribute 97.3% of the 185 t CO₂e, equivalent to 179.9 t CO₂e, to the milk enterprise. The balance of the 185 t CO₂e is then allocated to the support block as you fed 25 t DM there, equivalent to 5.1 t CO₂e. As this grain & concentrates may still be fed to dairy replacements as well as dairy-beef cattle for the meat market, ADCC allocates a percentage of these Scope 3 emissions to the milk and meat enterprises based on total milk and meat production. Thus, if ADCC determined that 85% of the Scope 3 grain & concentrate emissions are attributed to the milk enterprise, based on how much milk and meat is produced and sold, this 4.3 t CO₂e (i.e. 5.1 t CO₂e x 85% = 4.3 t CO₂e) is added to the 179.9 t CO₂e for the grain & concentrates fed on the milking platform. In this example, 184.2 t CO₂e is allocated to the milking enterprise and the balance 0.8 t CO₂e is allocated to the meat enterprise to determine the milk and meat emissions intensity. For any imported DairyBase datasets, we can't show you here the proportion of the purchased grains and concentrates fed to the milking platform. However, this value will appear in the 'Strategy Farm' tab's percentage of purchased grains and concentrates fed on the milking platform white cell.
A162: Strategy farm | B162: I78 | C162: strategy farm!I78 | D162: Percentage of purchased silage fed on the milking platform | E162: ADCC estimates the Scope 3 GHG emissions associated with purchased grain, concentrates, hay, silage and other/by-products. The percentage of silage fed on the milking platform will be attributed to the milking enterprise. The balance percentage will be assumed to be fed on the support block, where a proportion will remain attributed to the milking enterprise (i.e. fed to dry cows and replacement heifers), with the remaining emissions attributed to the meat enterprise. For example, you purchased 50 t DM of this year, thus the Scope 3 emissions would be 8 t CO₂e. You fed 35 t DM on the milking platform and 15 t DM on the support block, with no purchased silage remaining at the end of the year assessment. | F162: For example, you purchased 50 t DM of this year, thus the Scope 3 emissions would be 8 t CO₂e. You fed 35 t DM on the milking platform and 15 t DM on the support block, with no purchased silage remaining at the end of the year assessment. In this example, we need to know that 35 t DM of the 50 t DM fed was on the milking platform. In the white cell to the right, enter the equation = 35/50*100 to reflect 35 t DM fed on milking platform / 50 t fed to milking platform + support block * 100 to get a percentage figure. In this example, 70% of the silage was fed on the milking platform. If you had any purchased silage remaining at the end of the yearly assessment, do not include that in these sums, we only want to know how much purchased feed bought this year is fed out this year. This is all you need to enter. ADCC will then attribute 70% of the 8 t CO₂e, equivalent to 5.6 t CO₂e, to the milk enterprise. The balance of the 8 t CO₂e is then allocated to the support block as you fed 15 t DM there, equivalent to 2.4 t CO₂e. As this silage is likely to be fed to dry cows or replacements as well as dairy-beef cattle for the meat market, ADCC allocates a percentage of these Scope 3 emissions to the milk and meat enterprises based on total milk and meat production. Thus, if ADCC determined that 80% of the Scope 3 silage emissions are attributed to the milk enterprise, based on how much milk and meat is produced and sold, this 1.9 t CO₂e (i.e. 2.4 t CO₂e x 80% = 1.9 t CO₂e) is added to the 5.6 t CO₂e for the silage fed on the milking platform. In this example, 13.9 t CO₂e is allocated to the milking enterprise and the balance 2.1 t CO₂e is allocated to the meat enterprise to determine the milk and meat emissions intensity. For any imported DairyBase datasets, we can't show you here the proportion of the purchased silage fed to the milking platform. However, this value will appear in the 'Strategy Farm' tab's percentage of purchased silage fed on the milking platform white cell.
A163: Strategy farm | B163: I82 | C163: strategy farm!I82 | D163: Percentage of purchased by-products fed on the milking platform | E163: Unlike purchased grains and concentrates, hay and silage, we currently do not allocate any Scope 3 emissions for by-products. This may change in the future. For now, you can either repeat the process as you have done for the other feeds, if you wish to keep a record of this. Alternatively, just enter 100 into the white cell to the right. For any imported DairyBase datasets, we can't show you here the proportion of the purchased by-products fed to the milking platform. However, this value will appear in the 'Strategy Farm' tab's percentage of purchased by-products fed on the milking platform white cell.
A164: Strategy farm
A165: Strategy farm | B165: B85 | C165: strategy farm!B85 | D165: How are you estimating this? | E165: You have four options to select how to estimate carbon sequestration in trees. 1. If you have no trees present on farm, select "No estimation of carbon sequestration" from the drop-down list. 2. If you wish to use the combination of trees and soils built into ADCC to determine the amount of carbon sequestered in trees, select "Based on data entered here". If you select this option, you need to select from the drop-down list in the order they are present here, moving down the sheet by selecting your region first, then type of trees before entering the area and age of the trees. If you do not select in this order, excel may mis-calculate your results. 3. If you have multiple areas of trees on farm, either different species and/or different ages and/or different areas, there is a tab called 'Vegetation'. In here, there is the ability to determine to total CO₂ sequestered across up to four areas. If you wish to estimate total CO₂ this way, select "Carbon sequestered using other tools", enter 1 for "Area of trees (ha)" and then copy the result in cell D32 (bold text) of the 'Vegetation' tab into the "Amount of carbon sequestered using other tools" white cell. You won't need to select your region or tree type or enter an Age of trees so long as you have selected "Carbon sequestered using other tools" from the first drop-down list. 3. If you wish to use some other tool or calculator to estimate (e.g. FullCAM or LOOC-C, select "Carbon sequestered using other tools". When this option is selected, enter the amount of carbon sequestered (t CO₂e/ha) from the other tool, along with the area of trees (ha), for excel to calculate the total amount of carbon for the farm . Remember we are asking for the tonnes of carbon dioxide/ha, so if your result from another tool is reported as t C/ha, multiply that amount of C by 3.67 to convert to t CO₂/ha. For example, 7 t C/ha equates to 25.7 t CO₂e/ha. You are also needing to enter the amount sequestered for only one year (i.e. the carbon flux) from the other tools, not the total over 25 or 100 years.
A166: Strategy farm | B166: B87 | C166: strategy farm!B87 | D166: Choose your region of Australia | E166: If you click on the white cell to the right of this heading, a drop down arrow should appear along with a list of the regions specific to your state. Most states have two or more regions to select from. These selections will only influence the amount of carbon sequestered in tree plantings Victoria: North East VIC refers to farms around Wangaratta and Benalla. Northern VIC refers to farms around Cobram, Shepparton and Echuca. Mallee refers to farms around Kerang. If you are unsure which region your farm is located, in terms of these three northern Victoria regions, compare results between regions to ascertain if there is a substantial difference in terms of the carbon sequestration potential.
A167: Strategy farm | B167: B89 | C167: strategy farm!B89 | D167: Choose the type of trees planted | E167: The tree species will firstly match that of the baseline 'Your farm' system. However, users can explore the effect of selecting another species relevant for the region selected. If a tree species you wish to explore is not present, select the closest species, or select Environmental plantings as a blend of native trees, shrubs and understorey that is endemic to your region.
A168: Strategy farm | B168: H85 | C168: strategy farm!H85 | D168: Age of Trees | E168: Age of trees is this year of analysis and can vary between 1 and 100. The number entered needs to be a whole number and without any decimal point. You can't enter 2.0 or 2.5, you must enter either 2 or 3 in this example.
A169: Strategy farm | B169: G88 | C169: strategy farm!G88 | D169: Amount of carbon sequestered using other tools | E169: If you have estimated the amount of carbon sequestered in tree vegetation using another tool, such as LOOC-C or FullCAM, enter the annual carbon flux here. If the tool you have used reported tonnes of carbon/ha as opposed to tonnes of carbon dioxide/ha, multiply this by 3.67 to convert from t C to t CO₂. If you are importing a DairyBase dataset, this white cell will contain the estimate from that tool, so you will not need to re-enter a value here.
A170: Strategy farm
A171: Strategy farm | B171: E92 | C171: strategy farm!E92 | D171: Choose which option you are using to estimate how animal waste is handled | E171: Each day, cows produce around 4-6 kg of volatile solids (manure). This section is to determine how this manure is handled, as an annual average. Users can either use the state-based fractions and factors as per the methodology or enter their own farm management practices to determine what proportion of waste is handled via each manure management system. The default state-based factors reflect cows spending 80-85% of their time grazing pastures, supplementary fed in the paddock and walking to and from the dairy. This equates to 3-4 hours a day off the paddock and laneways. If your herd spends more time than this at the dairy, on a feedpad or are housed, you must select the user-defined option to reflect how the manure is handled for the 'Strategy farm' system. If you select the User defined option, please make sure you then answer every question, otherwise the estimation of emissions from manure management will be inaccurate. We need to know the number of hours the milkers are at the dairy, how that waste is handled and if the milkers and/or the heifers are on a feedpad area, how that waste is handled. This may be particularly important if a change in feeding regimes means that a feedpad is used for a substantial amount of time over the 12 month assessment period. | F171: The way the spreadsheet is set up, if the manure deposited at the dairy is handled the same way as from a feedpad (e.g., both flushed to a pond system), you can enter the total for both into the dairy section which then frees up the feedpad section for an alternative manure management system (e.g. spread daily from a sump or scraped & stockpiled). For example, TMR housed cows are at the dairy and yards for 3 hours per day for 300 days. They return to the barn and spend another 5 hours per day for 300 days in the feeding lane of the barn, with all this manure flushed to a pond system. This equates to 8 hours per day for 300 days. The balance 16 hours per day, the cows are resting/ruminating while laying on a bedding area where the bedding and manure (compost) is turned periodically, thus remaining aerobic. This 16 hours per day for 300 days is entered into the feedpad section, with the manure scraped & stockpiled option selected. If the cows then go out onto pasture during their dry period, ADCC will allocate the balance 24 hours per day for 65 days to pasture. If there was some form of mechanical separation of the manure as it is flushed to the lagoon system, this material is also considered of scraped & stockpiled consistency. If however, the cows also remain in a compost barn for their dry period, you need to determine the sum of the lactating and non-lactating period. The easiest way to do this would be to calculate the total number of hours per year, subtract the number of hours per year the cow's manure is flushed to a pond system and then divide the remaining hours by 24. For example, 24 hours per day x 365 days = 8,760 hours per annum. The cow's flushed manure is 8 hours per day x 300 days = 2,400 hours per year. Subtracting 2,400 from 8,760 = 6,360 hours per annum the manure is in a compost/ scraped & stockpiled consistency. Divide this by 24 hours per day = 265 days. In this example, the time entered for the feedpad is 24 hours per day for 265 days per annum. The proportion of manure will then be proportionally allocated to anaerobic lagoon and solid storage. If you selected some form of mechanical solids separation of the lagoon-destined manure, 20% of this manure will also be allocated to solid storage.
A172: Strategy farm | B172: I92 | C172: strategy farm!I92 | D172: Volatile solids | E172: The CFI/ERF/ACCU methodology for the 'Destruction of methane generated from dairy manure in covered anaerobic ponds' project required milker volatile solids values (kg VS/head.day). Although this ACCU project is now closed, we have retained this value here.
A173: Strategy farm | B173: E103 | C173: strategy farm!E103 | D173: Number of hours per day and days per annum a milker spends at the dairy and adjacent yards where the waste is flushed with water | E173: The average number of hours that the milkers spend at the dairy depends on when the cows are released post-milking. If the whole herd is retained in yards or laneways and then released back to a paddock at the same time, then it is the time taken to milk the whole herd. If the cows are released from the dairy and either return to a paddock to graze or to a feedpad/ loafing area, it is the mid-point of milking. For example, if total milking time takes 2.5 hours morning and 2 hours at night but the cows return to the paddock after being released from the dairy, then its 2.25 hours per day (half of 4.5 hrs). However, if the whole herd is retained to the end of milking and released as a whole herd, it will be 4.5 hours per day. | F173: If you milk 3 times in 2 days, work out how many hours this would be over the two days and half this to work out the daily rate. Either enter this figure if the whole herd is retained or halve this figure again if the cows return to pasture as they exit the dairy. For example, milking takes 2 hours per shift, there are 3 shifts per 2 days, therefore the cows are present at the dairy for 6 hours in total over the two days. Divide this by 2 to get a daily rate of 3 hours per day. If the cows are retained at the dairy, then enter 3 hours per day. But if they trickle back to the paddock after exiting the dairy, enter 1.5 hours per day. We also need to know the average number of days per annum the milkers are at the dairy. For most farms this will be the same as the average lactation length. However, for cows in a total mixed ration farm where they are retained on concrete during their dry period also, it will be 365 days per annum. Ultimately, we are trying to work out where the 4-6 kg of manure (volatile solids) produced each day are deposited and allocate this accordingly.
A174: Strategy farm | B174: F109 | C174: strategy farm!F109 | D174: Do you pre-treat the waste prior to spreading daily from a sump system or entering the lagoon (e.g. weeping wall, solids trap, mechanical separator to remove a fraction of the solids)? | E174: If you select yes, we assume that 20% of the waste is trapped if there is a means of removing some of the solids prior to being spread daily from a sump or from entering the lagoon. This waste is then assumed to be in a solids storage state with a lower methane emission factor than if the waste went to the lagoon but higher than if it was spread daily from a sump/dispersal system. However, if you have a valid reason to alter the fraction away from 20%, enter that value as a whole number in the next question.
A175: Strategy farm | B175: C110 | C175: strategy farm!C110 | D175: If yes, what percentage of the waste is removed via the pre-treatment process? | E175: Generally the amount of solids removed via weeping walls and solids traps is in the 10-30% range. However, in large intensive dairy systems with modern methods of separating solids from liquids, the percentage may be as high as 40-50% if that manure is then stored to dry. If it is being saturated daily, then the manure is remaining in an anaerobic state for much of the day and so the percentage is lower. We suggest you implement 20% (which is the default if you don't answer this question), unless you have good evidence to support a higher value.
A176: Strategy farm | B176: D113 | C176: strategy farm!D113 | D176: Number of hours per day and days per annum a milker spend on a feedpad or loafing area or are housed (TMR farm) | E176: If you have a compost barn where any manure deposited when cows are in the feeding lane is handled the same way as the manure deposited at the dairy, but then the bedding area is composted, you can include the approx. amount of time per day that the cows would be in the feed lane up with the dairy and adjacent yard question. For example, the cows move to the dairy three times a day and on-average, spend 1 hour per milking at the dairy shed being milked. Any waste deposited in the dairy or yards is flushed to a pond/lagoon system. The milkers also spend 8 hours per day in the feed lane of the compost barn where the manure is also flushed to a pond/lagoon system. Therefore each cow would have the equivalent of 11 hours of manure flushed to the pond every day. The balance 13 hours per day, they spend laying down in the barn where their manure is composted. Enter 11 hours per day for the milker dairy waste and select Flushed to a pond/lagoon system. Then enter 13 hours per day for the milker feedpad waste and select scraped & stockpiled.
A177: Strategy farm | B177: D115 | C177: strategy farm!D115 | D177: Select the option which best describes how the majority of this waste from the feedpad or loafing area is best handled | E177: Select the option that best reflects how the waste from the feedpad is handled. We assume that if you select the Pond/lagoon system for the feedlot waste and above with the milker waste, you included the same manure system and also indicated that the dairy shed waste is pre-treated before going into a pond/ lagoon system, this will be the same for the feedpad waste. If you have a compost barn where the milkers are housed, the more accurate manure management system for this is the scraped & stockpiled option. If any manure deposited when cows are in the feeding lane is handled the same way as the manure deposited at the dairy shed, but then the bedding area is composted, you can include the approx. amount of time per day that the cows would be in the feed lane up with the dairy and adjacent yard question. For example, the cows move to the dairy three times a day and on-average, spend 1 hour per milking at the dairy shed. Any waste deposited in the dairy or yards is flushed to a pond/lagoon system. The milkers also spend 8 hours per day in the feed lane of the compost barn where the manure is also flushed to a pond/lagoon system. Therefore each cow would have the equivalent of 11 hours of manure flushed to the pond every day. The balance 13 hours per day, they spend laying down in the barn where their manure is composted.
A178: Strategy farm | B178: B117 | C178: strategy farm!B117 | D178: Days per annum on the feedpad or loafing area | E178: These questions are generally only relevant for farms where the heifers are retained on concrete for long periods of time per day and throughout the year (e.g. TMR farms where the young stock are housed). We are not concerned with the time that unweaned calves spend in sheds or when heifers spend time in yards for routine management practices (e.g. weighing, vaccinating, pregnancy testing etc).
A179: Strategy farm | B179: D123 | C179: strategy farm!D123 | D179: Select the option which best describes how this waste from the feedpad or loafing area is best handled | E179: Users are only given one option when selecting how the waste from the heifers is handled. If two or more options are used, selected the most relevant. We assume that if the milker waste is pre-treated prior to entering the pond/ lagoon system or spread daily from a sump, this will be the same for the heifer, bull and other stock waste.
A180: Strategy farm | B180: H125 | C180: strategy farm!H125 | D180: Integrated Methane Conversion factor | E180: The Integrated Methane Conversion factor (MCF) is an estimated (as opposed to user entered) number and therefore protected.
A181: Strategy farm
A182: Strategy farm | B182: B133 | C182: strategy farm!B133 | D182: Methane (Scope 1): | E182: Scope 1 emissions are those that occur on farm and the farmer has control over. For example, they can choose how many cows to milk, replacement animals to retain etc
A183: Strategy farm | B183: B135 | C183: strategy farm!B135 | D183: Nitrous oxide (Scope 1): | E183: Scope 1 emissions are those that occur on farm and the farmer has control over. For example, they can choose how many cows to milk, how much N fertiliser to apply etc
A184: Strategy farm | B184: B140 | C184: strategy farm!B140 | D184: Carbon dioxide: | E184: Scope 1 emissions are those that occur on farm and the farmer has control over. For example, they can choose how much urea N fertiliser or lime to apply, or how much diesel to consume on farm. Scope 2 emissions are also those that occur on farm and the farmer has control over. For example, they can elect to generate renewable electricity farm to reduce reliance on grid power. Scope 3 emissions are those that the farmer has no control over but are part of the farm business. There are emissions associated with the production and transmission of electricity to the farm, and in the refining/production of fuel.
A185: Strategy farm | B185: B145 | C185: strategy farm!B145 | D185: Pre-farm gate embedded (Scope 3) | E185: These are the emissions pre-farm gate from the production and/or manufacturing of feeds and fertilisers. They are considered Scope 3 as the farmer has no control over the emissions associated with the production of these feeds and fertilisers.
A186: Strategy farm | B186: B154 | C186: strategy farm!B154 | D186: Net GHG emissions | E186: Net emissions will only be lower than Total emissions if there are trees present on farm and that the estimation of carbon sequestered in these trees have been estimated here, using options 2 or 3 from the tree carbon sequestration listing.
A187: Strategy farm | B187: C156 | C187: =IF(AND(LEN(A187)>0,LEN(B187)>0),_xlfn.CONCAT(TRIM(LOWER(A187)),"!",TRIM(B187)),"") -> strategy farm!C156 | D187: Reduction in net GHG emissions- Positive number in a green cell means a positive outcome, negative number in a red cell means a negative outcome | E187: Note that a negative number means an increase in farm emissions, relative to the baseline 'Your farm' system, and thus the results are in a red box. Alternatively, if the number is positive, this is a decline in farm emissions, relative to the baseline 'Your farm' system, and thus the results are in a green box
A188: Strategy farm | B188: C167 | C188: strategy farm!C167 | D188: Proportion of net emissions allocated to milk | E188: We know that milk is the primary product on dairy farms, but they also produce meat, through cull cows, non-replacement heifers, bull calves and dairy-beef. The International Dairy Federation (IDF) are upgrading the method of allocating net emissions to milk and meat in 2022 and this method is implemented here. The GHG emissions for milking herd, replacement heifers and bulls, along with electricity and supplementary feed (grain and fodder) are all allocated to milk production. The emissions for Other Livestock is allocated to meat production as this group of animals are not raised to join the dairy herd. Then the residual GHG emissions for diesel, fertiliser and carbon sequestration in trees (collectively termed farm emissions) are proportionally allocated to milk and meat, based on the proportion of total energy requirements for milk and meat. This breakdown of GHG emissions aligns with the IDF guidelines for systems separation of emissions. Excel will then determine the energy requirements to produce milk and meat, and allocate the equivalent proportion of emissions to each product. For example, 90% of total energy requirements are for milk production, thus the 90% of the residual farm emissions are allocated to milk and the balance 10%, along with the Other Livestock emissions, are allocated to meat. The total emissions allocated to milk is then divided by the kg of FPCM to determine the emissions intensity of milk production. The number in this caption will indicate what proportion of emissions are allocated to milk production, with the balance allocated to meat production. If the proportion amount is 100%, this means you have not indicated how many stock are sold to estimate meat production. When comparing your results between years, or between farms, it is important that you understand the allocation of emissions between co-products and compare like with like, i.e. you are not comparing your farm results with 100% allocated to milk with another farm that is reporting their results based on a proportion of emissions allocated to meat production.
A189: Strategy farm | B189: C168 | C189: strategy farm!C168 | D189: Proportion of net emissions allocated to meat | E189: We know that milk is the primary product on dairy farms, but they also produce meat, through cull cows, non-replacement heifers, bull calves and dairy-beef. The International Dairy Federation (IDF) are upgrading the method of allocating net emissions to milk and meat in 2022 and this method is implemented here. The GHG emissions for milking herd, replacement heifers and bulls, along with electricity and supplementary feed (grain and fodder) are all allocated to milk production. The emissions for Other Livestock is allocated to meat production as this group of animals are not raised to join the dairy herd. Then the residual GHG emissions for diesel, fertiliser and carbon sequestration in trees (collectively termed farm emissions) are proportionally allocated to milk and meat, based on the proportion of total energy requirements for milk and meat. This breakdown of GHG emissions aligns with the IDF guidelines for systems separation of emissions. Excel will then determine the energy requirements to produce milk and meat, and allocate the equivalent proportion of emissions to each product. For example, 90% of total energy requirements are for milk production, thus the 90% of the residual farm emissions are allocated to milk and the balance 10%, along with the Other Livestock emissions, are allocated to meat. The total emissions allocated to milk is then divided by the kg of FPCM to determine the emissions intensity of milk production. The number in this caption will indicate what proportion of emissions are allocated to milk production, with the balance allocated to meat production. If the proportion amount is 100%, this means you have not indicated how many stock are sold to estimate meat production. When comparing your results between years, or between farms, it is important that you understand the allocation of emissions between co-products and compare like with like, i.e. you are not comparing your farm results with 100% allocated to milk with another farm that is reporting their results based on a proportion of emissions allocated to meat production.
A190: Strategy farm | B190: D133 | C190: strategy farm!D133 | D190: Enteric fermentation | E190: Methane is lost as part of the digestive process as a pathway of removing excess hydrogen from the rumen. Cattle emit approx. 6.5% of their gross energy intake as methane, with this number reducing as the quality of the diet improves. Most of the methane is emitted through the mouth, although a small amount is also emitted through the rear-end too.
A191: Strategy farm | B191: D134 | C191: strategy farm!D134 | D191: Manure management | E191: Methane is produced during the decomposition of manure when deposited onto pastures and collected in pond/lagoon systems under anaerobic conditions. Note that this value is not the amount of methane emitted from a storage system (e.g. lagoons/ponds), but from all manure deposited by the herd, with the majority of manure(> 75%) deposited onto pastures during grazing.
A192: Strategy farm | B192: D135 | C192: strategy farm!D135 | D192: Direct from dung & urine voided onto pastures | E192: As cattle graze pastures and deposit urine and dung, a proportion of the N in these is converted to nitrous oxide and lost to the environment. A national survey determined the proportion of total manure that is deposited on pastures during grazing. This varies between states, and between 79 and 85% for milking cows and 100% for all other stock. If your stock spend substantially longer on non-paddock areas (e.g. feedlotting), we suggest you may wish to enter your own data in the manure management section to ascertain a more realistic value for nitrous oxide losses.
A193: Strategy farm | B193: D136 | C193: =IF(AND(LEN(A193)>0,LEN(B193)>0),_xlfn.CONCAT(TRIM(LOWER(A193)),"!",TRIM(B193)),"") -> strategy farm!D136 | D193: Direct from manure (storage & spread) | E193: A proportion of cattle urine and dung (manure) is captured on hard surfaces, such as at the dairy and generally are either collected in a pond/lagoon system or spread daily through an irrigation system. The calculator uses a state-based average to determine what proportion of manure is captured and how it is handled (i.e. pond/lagoon, spread daily etc), based on national survey data. During storage, the manure (dung and urine) goes through a process of nitrification and denitrification, releasing a proportion of N to the environment in the form of nitrous oxide. Likewise, after the manure is applied to pastures, a proportion of the N will be lost as nitrous oxide. If your stock spend substantially longer on non-paddock areas (e.g. feedlotting), we suggest you may wish to enter your own data in the manure management section to ascertain a more realistic value for nitrous oxide losses.
A194: Strategy farm | B194: D137 | C194: strategy farm!D137 | D194: Indirect N waste | E194: A proportion of the manure N deposited onto paddocks or in storage is assumed to be lost to the environment through volatilisation and/or leaching/runoff. Once this volatilised or leached/runoff N is lost to the environment, it is assumed that a proportion of the N will then be redeposited onto pastures, go through the processes of nitrification and denitrification and converted into nitrous oxide. If your stock spend substantially longer on non-paddock areas (e.g. feedlotting), we suggest you may wish to enter your own data in the manure management section to ascertain a more realistic value for nitrous oxide losses.
A195: Strategy farm | B195: D138 | C195: strategy farm!D138 | D195: Direct N fertiliser | E195: A proportion of the N applied in fertilisers (organic and inorganic) goes through the processes of nitrification and denitrification, with a percentage of this N lost to the environment as nitrous oxide.
A196: Strategy farm | B196: D139 | C196: strategy farm!D139 | D196: Indirect N fertiliser | E196: A proportion of the N fertiliser (organic and inorganic) applied to pastures is lost to the environment through volatilisation and leaching/runoff. Once this N is deposited back onto pastures, a proportion of this N will go through the processes of nitrification and denitrification, with a percentage of the N lost as nitrous oxide to the environment.
A197: Strategy farm | B197: D140 | C197: strategy farm!D140 | D197: Electricity (Scope 2) | E197: Scope 2 electricity emissions are those released to the environment with the generation/consumption of electricity on farm. Scope 3 electricity emissions are those not included in Scope 2. These are associated with the indirect loss of electricity during the transmission and distribution in the grid.
A198: Strategy farm | B198: D141 | C198: strategy farm!D141 | D198: Electricity (Scope 3) | E198: Scope 2 electricity emissions are those released to the environment with the generation/consumption of electricity on farm. Scope 3 electricity emissions are those not included in Scope 2. These are associated with the indirect loss of electricity during the transmission and distribution in the grid.
A199: Strategy farm | B199: D142 | C199: strategy farm!D142 | D199: Diesel and unleaded petrol (Scope 1) | E199: Scope 1 fuel emissions are those associated with the consumption of fuel on farm. Scope 3 fuel emissions are those associated with the extraction and production of fuel. Previous versions of the Australian Dairy Carbon Calculator summed Scope 1 and Scope 3 emissions together and reported these as carbon dioxide emissions from diesel and unleaded petrol.
A200: Strategy farm | B200: D143 | C200: strategy farm!D143 | D200: Diesel and unleaded petrol (Scope 3) | E200: Scope 1 fuel emissions are those associated with the consumption of fuel on farm. Scope 3 fuel emissions are those associated with the extraction and production of fuel. Previous versions of the Australian Dairy Carbon Calculator summed Scope 1 and Scope 3 emissions together and reported these as carbon dioxide emissions from diesel and unleaded petrol.
A201: Strategy farm | B201: D144 | C201: strategy farm!D144 | D201: Urea and lime/dolomite (Scope 1) | E201: Adding urea fertiliser to soils leads to a loss of carbon dioxide that was fixed during the manufacturing process. The bicarbonate in urea is broken down into water and carbon dioxide. Other forms of N fertiliser, such as DAP and SoA are not bicarbonates and therefore do not break down into carbon dioxide. lime and dolomite are added to soils to reduce soi acidity, improve soil structure and improve plant growth. The breakdown of these in the soil results in the production of water and carbon dioxide. As both urea and lime/dolomite break down into carbon dioxide, this release of carbon dioxide needs to be accounted for when estimating the GHG emissions of the dairy farm.
A202: Strategy farm | B202: D145 | C202: strategy farm!D145 | D202: Grain/ concentrates | E202: It is important to understand the GHG emissions associated with key farm inputs, such as purchased feed and fertiliser. These results are a calculation of the CO₂e emitted in the production/ manufacturing of grain/concentrates, forages and fertilisers. It does not include the CO₂e emitted with transport from source (i.e. grain farm, fertiliser manufacturer) to the dairy farm as this can vary widely, depending on source (i.e. hay from a farm next door or urea manufactured in China).
... 328 more rows

Sheet Working (hidden)
A1: Sheet names for Goto menu | G1: Modes for Mode menu | T1: ERAP
B2: Modes | AC2: Better than IA
A3: 1 | B3: Your Farm | C3: Compare | D3: Abatement | E3: All | G3: 4 | T3: Source of emmisions | U3: Bar title | V3: Parameter title | W3: Title from Results | X3: Your Farm | Y3: Industry | Z3: Difference | AA3: Diff % | AB3: Colour
A4: Introduction | B4: 1 | C4: 1 | D4: 1 | E4: 1 | G4: =B3 -> Your Farm | T4: Livestock | U4: =V4 & CHAR(10) & "(YF: " & TEXT(X4,"##0.00") & ")" & CHAR(10) & "(IA: " & TEXT(Y4,"##0.00") & ")" -> Enteric fermentation (YF: 0.54) (IA: 0.54) | V4: Enteric fermentation | W4: ='Your Farm'!O129 -> Enteric fermentation | X4: ='Your Farm'!M129 -> 0.5447310757 | Y4: ='Your Farm'!N129 -> 0.5439821227 | Z4: =X4-Y4 -> 0.000748953028 | AA4: =Z4/Y4 -> 0.001376797135 | AB4: =IF(ISERROR(AA4),"X",IF(AA4<=0.05,"G",IF(AA4<=0.25,"Y","R"))) -> G | AC4: =IF(ISERROR(IF(X4<=Y4,TRUE,FALSE)),FALSE,IF(X4<=Y4,TRUE,FALSE)) -> FALSE
A5: Your Farm | B5: 1 | C5: 1 | D5: 1 | E5: 1 | G5: =C3 -> Compare | T5: Livestock | U5: =V5 & CHAR(10) & "(YF: " & TEXT(X5,"##0.00") & ")" & CHAR(10) & "(IA: " & TEXT(Y5,"##0.00") & ")" -> Grain/conc (YF: 0.04) (IA: 0.05) | V5: Grain/conc | W5: ='Your Farm'!O141 -> Grain/ concentrates | X5: ='Your Farm'!M141 -> 0.03764902661 | Y5: ='Your Farm'!N141 -> 0.0465877727 | Z5: =X5-Y5 -> -0.008938746084 | AA5: =Z5/Y5 -> -0.1918689297 | AB5: =IF(ISERROR(AA5),"X",IF(AA5<=0.05,"G",IF(AA5<=0.25,"Y","R"))) -> G | AC5: =IF(ISERROR(IF(X5<=Y5,TRUE,FALSE)),FALSE,IF(X5<=Y5,TRUE,FALSE)) -> TRUE
A6: Other Livestock Help | B6: 1 | C6: 0 | D6: 0 | E6: 1 | G6: =D3 -> Abatement | T6: Livestock | U6: =V6 & CHAR(10) & "(YF: " & TEXT(X6,"##0.00") & ")" & CHAR(10) & "(IA: " & TEXT(Y6,"##0.00") & ")" -> Forages (YF: 0.01) (IA: 0.01) | V6: Forages | W6: ='Your Farm'!O142 -> Forages | X6: ='Your Farm'!M142 -> 0.008605491798 | Y6: ='Your Farm'!N142 -> 0.005901087772 | Z6: =X6-Y6 -> 0.002704404025 | AA6: =Z6/Y6 -> 0.4582890697 | AB6: R | AC6: FALSE
A7: Feed Quality Table | B7: 1 | C7: 0 | D7: 0 | E7: 1 | G7: =E3 -> All
A8: Fertiliser Rates | B8: 1 | C8: 0 | D8: 0 | E8: 1 | T8: Effluent/manure | U8: =V8 & CHAR(10) & "(YF: " & TEXT(X8,"##0.00") & ")" & CHAR(10) & "(IA: " & TEXT(Y8,"##0.00") & ")" -> Management (YF: 0.08) (IA: 0.08) | V8: Management | W8: ='Your Farm'!O130 -> Manure management | X8: ='Your Farm'!M130 -> 0.08302571135 | Y8: ='Your Farm'!N130 -> 0.07681756159 | Z8: =X8-Y8 -> 0.006208149756 | AA8: =Z8/Y8 -> 0.08081680318 | AB8: =IF(ISERROR(AA8),"X",IF(AA8<=0.05,"G",IF(AA8<=0.25,"Y","R"))) -> Y | AC8: =IF(ISERROR(IF(X8<=Y8,TRUE,FALSE)),FALSE,IF(X8<=Y8,TRUE,FALSE)) -> FALSE
A9: Vegetation | B9: 1 | C9: 0 | D9: 0 | E9: 1 | G9: The four Mode names for the Mode drop down menus can be changed in the cells B3:E3. | T9: Effluent/manure | U9: =V9 & CHAR(10) & "(YF: " & TEXT(X9,"##0.00") & ")" & CHAR(10) & "(IA: " & TEXT(Y9,"##0.00") & ")" -> Dung/urine (YF: 0.08) (IA: 0.07) | V9: Dung/urine | W9: Dung/urine | X9: ='Your Farm'!M131+'Your Farm'!M132+'Your Farm'!M133 -> 0.07518258138 | Y9: ='Your Farm'!N131+'Your Farm'!N132+'Your Farm'!N133 -> 0.06793987601 | Z9: =X9-Y9 -> 0.00724270537 | AA9: =Z9/Y9 -> 0.1066046304 | AB9: Y | AC9: FALSE
A10: Data Summary | B10: 1 | C10: 0 | D10: 0 | E10: 1 | G10: The individual sheet names in the Goto drop down menu can be changed inA4:A27.
A11: Example Farm | B11: 1 | C11: 0 | D11: 0 | E11: 1 | G11: To have a sheet visible in a particular mode set it's cell to value 1. To have it hidden set it to 0. | T11: Fertiliser | U11: N fert (YF: 0.06) (IA: 0.05) | V11: N fert | W11: N fertiliser | X11: ='Your Farm'!M134 + 'Your Farm'!M135 -> 0.05531020421 | Y11: ='Your Farm'!N134 + 'Your Farm'!N135 -> 0.04815956967 | Z11: 0.007150634536 | AA11: 0.1484779574 | AB11: =IF(ISERROR(AA11),"X",IF(AA11<=0.05,"G",IF(AA11<=0.25,"Y","R"))) -> Y | AC11: =IF(ISERROR(IF(X11<=Y11,TRUE,FALSE)),FALSE,IF(X11<=Y11,TRUE,FALSE)) -> FALSE
A12: Strategy Farm | B12: 1 | C12: 0 | D12: 1 | E12: 1 | G12: For example, by default the Strategy farm sheet is visible in mode Your farm and All, but not Compare and Abatement. | T12: Fertiliser | U12: Urea, lime & dolomite (YF: 0.04) (IA: 0.02) | V12: Urea, lime & dolomite | W12: ='Your Farm'!O140 -> Urea and lime/dolomite | X12: ='Your Farm'!M140 -> 0.04014921818 | Y12: ='Your Farm'!N140 -> 0.02143310153 | Z12: 0.01871611665 | AA12: 0.8732341712 | AB12: R | AC12: FALSE
A13: Action Plan | B13: 0 | C13: 0 | D13: 0 | E13: 1 | G13: This means cell B6 = 1, C6 = 0, D6 = 0 and E6 = 1. | T13: Fertiliser | U13: Fertilisers (YF: 0.07) (IA: 0.06) | V13: Fertilisers | W13: ='Your Farm'!O143 -> Fertilisers | X13: ='Your Farm'!M143 -> 0.06507247367 | Y13: ='Your Farm'!N143 -> 0.05754540268 | Z13: 0.007527070984 | AA13: 0.1308022993 | AB13: Y | AC13: FALSE
A14: Action Plan Report | B14: 0 | C14: 0 | D14: 0 | E14: 1
A15: Abatement Schematic | B15: 0 | C15: 0 | D15: 1 | E15: 1 | T15: Energy and fuel | U15: Electricity (S2 & 3) (YF: 0.04) (IA: 0.03) | V15: Electricity (S2 & 3) | W15: ='Your Farm'!O136 -> Electricity (Scope 2 & 3) | X15: ='Your Farm'!M136 -> 0.03642543325 | Y15: ='Your Farm'!N136 -> 0.03449498594 | Z15: 0.001930447306 | AA15: 0.05596312779 | AB15: =IF(ISERROR(AA15),"X",IF(AA15<=0.05,"G",IF(AA15<=0.25,"Y","R"))) -> Y | AC15: =IF(ISERROR(IF(X15<=Y15,TRUE,FALSE)),FALSE,IF(X15<=Y15,TRUE,FALSE)) -> FALSE
A16: Reduce CH4 and or Increase Milk | B16: 0 | C16: 0 | D16: 1 | E16: 1 | T16: Energy and fuel | U16: Diesel and petrol (S1 & 3) (YF: 0.01) (IA: 0.02) | V16: Diesel and petrol (S1 & 3) | W16: ='Your Farm'!O138 -> Diesel and unleaded petrol (Scope 1 & 3) | X16: ='Your Farm'!M138 -> 0.01362424151 | Y16: ='Your Farm'!N138 -> 0.0236567621 | Z16: -0.01003252059 | AA16: -0.4240868023 | AB16: G | AC16: TRUE
A17: Diet Additives | B17: 0 | C17: 0 | D17: 1 | E17: 1 | G17: Your Farm Completed by section | AC17: FALSE
A18: Extended Lactation | B18: 0 | C18: 0 | D18: 1 | E18: 1 | G18: Dairy Australia
A19: Extended Longevity | B19: 0 | C19: 0 | D19: 1 | E19: 1 | G19: Farm owner/manager
A20: Replacing Sup with Dietary Fats | B20: 0 | C20: 0 | D20: 1 | E20: 1 | G20: Farm consultant
A21: Supplementing with Dietary Fats | B21: 0 | C21: 0 | D21: 1 | E21: 1 | G21: Milk company field officer
A22: Improved Diet DMD by Management | B22: 0 | C22: 0 | D22: 1 | E22: 1 | G22: Accountant
A23: Improved Diet DMD by Supplement | B23: 0 | C23: 0 | D23: 1 | E23: 1 | G23: Independent advisor
A24: N Fertiliser Inhibitor Coated | B24: 0 | C24: 0 | D24: 1 | E24: 1 | G24: Other
A25: N Inhibitor Applied to Feed | B25: 0 | C25: 0 | D25: 1 | E25: 1
A26: 1990 Methodology Comparison | B26: 0 | C26: 1 | D26: 0 | E26: 1
A27: 2015 Methodology Comparison | B27: 0 | C27: 1 | D27: 0 | E27: 1
A28: 2022 Methodology Comparison | B28: 0 | C28: 1 | D28: 0 | E28: 1
A31: ERAP Controls
A32: Comparing My Farm Data
A33: Opt001_LowMedHigh | B33: 3
B34: 1 | C34: 2 | D34: 3 | E34: 4 | F34: 5 | G34: 6 | H34: 7 | I34: 8 | J34: 9 | K34: 10
A35: Chk001_Item | B35: FALSE | C35: FALSE | D35: FALSE | E35: FALSE | F35: FALSE | G35: FALSE | H35: FALSE | I35: FALSE | J35: FALSE
A36: Chk002_Item | B36: FALSE | C36: TRUE | D36: FALSE | E36: FALSE | F36: FALSE | G36: FALSE | H36: FALSE | I36: FALSE | J36: FALSE | K36: TRUE
A37: Chk003_Item | B37: TRUE | C37: FALSE | D37: TRUE | E37: TRUE | F37: TRUE | G37: TRUE | H37: TRUE | I37: TRUE | J37: TRUE | K37: FALSE
A38: Chk003_Influence | B38: FALSE | C38: FALSE | D38: FALSE | E38: FALSE | F38: FALSE
A39: Opt003_YesYesButNo | B39: 1
A41: Profitable Emissions Reduction Action Plan | F41: Tip | G41: 1 | H41: 2 | I41: 3 | J41: 4 | K41: 5 | M41: Start | N41: 1 | O41: 2 | P41: 3 | Q41: 4 | R41: 5 | S41: 6 | T41: 7 | U41: 8 | V41: 9 | W41: 10 | X41: 11 | Y41: 12 | Z41: 13 | AA41: 14 | AB41: 15
A42: 1 | B42: FALSE
A43: 1.1 | B43: FALSE
A44: 1.1.1 | B44: FALSE | F44: 1.1.1 | G44: FALSE | H44: FALSE | I44: FALSE | M44: 1.1.1 | N44: FALSE | O44: FALSE | P44: FALSE | Q44: FALSE | R44: FALSE | S44: FALSE | T44: FALSE | U44: FALSE | V44: FALSE | W44: FALSE | X44: FALSE
A45: 1.1.2 | B45: FALSE | F45: 1.1.2 | G45: FALSE | H45: FALSE | M45: 1.1.2 | N45: FALSE | O45: FALSE | P45: FALSE | Q45: FALSE | R45: FALSE | S45: FALSE | T45: FALSE | U45: FALSE | V45: FALSE | W45: FALSE | X45: FALSE
A46: 1.1.3 | B46: FALSE | F46: 1.1.3 | G46: FALSE | H46: FALSE | I46: FALSE | M46: 1.1.3 | N46: FALSE | O46: FALSE | P46: FALSE | Q46: FALSE | R46: FALSE | S46: FALSE | T46: FALSE | U46: FALSE | V46: FALSE | W46: FALSE | X46: FALSE | Y46: FALSE
A47: 1.2 | B47: FALSE
A48: 1.2.1 | B48: FALSE | F48: 1.2.1 | G48: FALSE | H48: FALSE | I48: FALSE | M48: 1.2.1 | N48: FALSE | O48: FALSE | P48: FALSE | Q48: FALSE | R48: FALSE | S48: FALSE | T48: FALSE | U48: FALSE | V48: FALSE | W48: FALSE
A49: 1.3 | B49: FALSE
A50: 1.3.1 | B50: FALSE | F50: 1.3.1 | G50: FALSE | H50: FALSE | I50: FALSE | J50: FALSE | K50: FALSE | M50: 1.3.1 | N50: FALSE | O50: FALSE | P50: FALSE | Q50: FALSE | R50: FALSE | S50: FALSE | T50: FALSE | U50: FALSE | V50: FALSE | W50: FALSE | X50: FALSE | Y50: FALSE | Z50: FALSE | AA50: FALSE | AB50: FALSE
A51: 1.3.2 | B51: FALSE | F51: 1.3.2 | G51: FALSE | H51: FALSE | I51: FALSE | J51: FALSE | M51: 1.3.2 | N51: FALSE | O51: FALSE | P51: FALSE | Q51: FALSE | R51: FALSE | S51: FALSE | T51: FALSE
A52: 2 | B52: FALSE
A53: 2.1 | B53: FALSE
A54: 2.1.1 | B54: FALSE | F54: 2.1.1 | G54: FALSE | H54: FALSE | I54: FALSE | J54: FALSE | K54: FALSE | M54: 2.1.1 | N54: FALSE | O54: FALSE | P54: FALSE | Q54: FALSE | R54: FALSE | S54: FALSE | T54: FALSE | U54: FALSE | V54: FALSE | W54: FALSE | X54: FALSE | Y54: FALSE
A55: 3 | B55: FALSE
A56: 3.1 | B56: FALSE
A57: 3.1.1 | B57: FALSE | F57: 3.1.1 | G57: FALSE | H57: FALSE | I57: FALSE | J57: FALSE | M57: 3.1.1 | N57: FALSE | O57: FALSE | P57: FALSE | Q57: FALSE | R57: FALSE | S57: FALSE | T57: FALSE | U57: FALSE | V57: FALSE | W57: FALSE | X57: FALSE | Y57: FALSE | Z57: FALSE | AA57: FALSE | AB57: FALSE
A58: 4 | B58: FALSE
A59: 4.1 | B59: FALSE
A60: 4.1.1 | B60: FALSE | F60: 4.1.1 | G60: FALSE | H60: FALSE | I60: FALSE | J60: FALSE | M60: 4.1.1 | N60: FALSE | O60: FALSE | P60: FALSE
A61: 4.1.2 | B61: TRUE | F61: 4.1.2 | G61: FALSE | H61: FALSE | M61: 4.1.2 | N61: FALSE | O61: FALSE | P61: FALSE | Q61: FALSE
A62: 5 | B62: FALSE
A63: 5.1 | B63: FALSE
A64: 5.1.1 | B64: FALSE | F64: 5.1.1 | G64: FALSE | H64: FALSE | M64: 5.1.1 | N64: FALSE | O64: FALSE | P64: FALSE | Q64: FALSE | R64: FALSE
A65: 5.1.2 | B65: FALSE | F65: 5.1.2 | M65: 5.1.2 | N65: FALSE | O65: FALSE | P65: FALSE | Q65: FALSE | R65: FALSE | S65: FALSE | T65: FALSE | U65: FALSE | V65: FALSE | W65: FALSE

Sheet Your Farm
A1: Australian Dairy Carbon Calculator - Your Farm System
B4: Enter your farm data in the green cells and select from the drop-down boxes (arrow on right hand side will appear once you go into the green cells)
B5: Additional information for individual questions and any underlining assumptions are given by clicking on the pale blue question mark symbols. | J5: DairyBase import help | K5: Cannot run macro help
B7: Farmer details | M7: NOTES: | N7: Use inside this boxed area to enter any comments, notes, calculations to determine data entry
C8: Owner or sharefarmer ID | D8: Bill and Wendy Smith | G8: Supplier Number | H8: 256758T1 | N8: You can enter notes outside of this box but it will not be deleted if you select the 'Clear input cells' button
C9: Completed by: name and role | D9: K Christie-Whitehead | F9: Other
C10: Address | D10: 1234 Main Rd, Colac VIC 3250 | G10: Year reviewed | H10: 24/25
C12: Choose your state in Australia | D12: Victoria | F12: Choose your region/ farm system comparison | H12: Victoria- South West
B14: Livestock dynamics | D14: Milking cows | E14: Heifers > 1 yr age | F14: Heifers < 1 yr age | G14: Mature bulls | H14: Other stock < 1 yr age | I14: Other stock > 1 yr age | J14: Calves | K14: Calves sold post-weaning
C16: Livestock numbers | D16: 450 | E16: 120 | F16: 125 | G16: 8 | H16: 100 | K16: head
C18: Liveweight | D18: 500 | E18: 350 | F18: 150 | G18: 600 | H18: 200 | K18: kg/head
C20: Liveweight gain | E20: 0.7 | F20: 0.7 | H20: 1 | K20: kg/day
C22: Number of stock sold each year | D22: 115 | E22: 10 | F22: 0 | G22: 4 | H22: 100 | J22: 215 | K22: head
C24: Liveweight at point of sale | D24: 550 | E24: 425 | F24: 0 | G24: 600 | H24: 400 | J24: 105 | K24: kg/head
J26: =SUMPRODUCT(D22:J22,D24:J24)/1000 -> 132.475 | K26: t LW/annum sold
F27: Click here for help with other stock data entry and sales data
B30: Milk production
C31: Select option for milk production | D31: litres per herd per annum | F31: Amount of milk produced | H31: 3000000 | I31: =IF(V236="1","litres of milk per herd per annum","kg milksolids per herd per annum") -> litres of milk per herd per annum
C33: Average annual milk fat (%) | D33: 4.3 | E33: % | F33: Average annual milk protein | H33: 3.2 | I33: %
C35: Average lactation length (days) | D35: 300 | E35: days | F35: Average milk production | H35: =IF(ISERROR(R231),0,R231) -> 22.22222222 | I35: litres per cow per day
B37: Milkers average annual diet intakes and quality | D37: Intake (kg DM/day) | F37: Dry matter digestibility (DMD; %) | H37: Crude protein (CP; %)
C38: Pastures | D38: 12 | F38: 75 | H38: 20
B39: Estimated intake based | C39: Concentrates / Grain | D39: 2.5 | F39: 85 | H39: 12
B40: on data entry | C40: Silage | D40: 1.5 | F40: 70 | H40: 16.5
B41: =R235 &" kg DM/cow.day" -> 17.1 kg DM/cow.day | C41: Hay | D41: 0 | F41: 0 | H41: 0
C42: By-products | D42: 0 | F42: 0 | H42: 0
B43: Click here for help regarding feed quality | C43: Other | D43: 1 | F43: 70 | H43: 22
C44: Total (kg DM/day) or average (%) | D44: =SUM(D38:E43) -> 17 | F44: =IF(ISERROR(SUMPRODUCT(D38:E43,F38:G43)/D44),0,SUMPRODUCT(D38:E43,F38:G43)/D44) -> 75.73529412 | H44: =IF(ISERROR(SUMPRODUCT(D38:E43,H38:I43)/D44),0,SUMPRODUCT(D38:E43,H38:I43)/D44) -> 18.63235294
B46: Average annual dry matter digestibility (DMD) for all other stock (%) | D46: 75 | E46: %
B47: Average annual crude protein (CP) for all other stock (%) | D47: 20 | E47: %
B49: Fertilisers
C50: How do you wish to enter the fertiliser rates? | E50: tonnes of element per annum | I50: Click here to work out fertiliser rates
C52: Area of N fertiliser | G52: Rate of N fertiliser
B53: Area of pastures fertilised with N | D53: ha | E53: Amount of N applied to pastures | G53: 55 | H53: =IF($V$224="1","kg per ha per annum","t per annum") -> t per annum
B55: Area of crops fertilised with N | D55: ha | E55: Amount of N applied to crops | H55: =H53 -> t per annum
E57: Percentage of N fertiliser that is urea | G57: 95 | H57: %
C59: Area of P K S & lime fertiliser | G59: Rate of P fertiliser | H59: Rate of K fertiliser | I59: Rate of S fertiliser | J59: Rate of lime/dolomite
B60: Area of pastures fertilised with P K S & lime | D60: ha | E60: Rate of P K S & lime/dolomite to pastures | G60: 10 | H60: 3 | I60: 3 | J60: 150 | K60: =H53 -> t per annum
B62: Area of crops fertilised with P K S & lime | D62: ha | E62: Rate of P K S & lime/dolomite to crops | K62: =H53 -> t per annum
B64: Energy consumption
B65: Annual electricity use | C65: 175000 | D65: kWh | E65: Annual purchased diesel/ unleaded petrol | G65: 12500 | H65: litres
B67: Where does your electricity come from? | C67: State Grid | E67: Annual contractor diesel/ unleaded petrol | G67: 2500 | H67: litres
B69: What % of electricity is from renewables? | C69: 10 | D69: %
B71: Purchased supplementary feed
B72: Purchased pasture, cereal, lucerne or legume hay (t DM) | C72: 200 | D72: t DM | E72: Purchased pasture, cereal or maize silage (t DM) | I72: t DM
B74: Percentage of purchased hay fed on the milking platform | C74: 15 | D74: % | E74: Percentage of purchased silage fed on the milking platform | I74: %
B76: Purchased grain and concentrates (t DM) | C76: 700 | D76: t DM | E76: Purchased by-products (t DM) | G76: 180 | I76: t DM
B78: Percentage of purchased grain & concentrates fed on the milking platform | C78: 95 | D78: % | E78: Percentage of purchased by-products fed on the milking platform | G78: 95 | I78: %
B80: Carbon sequestration in tree plantations
B81: How are you estimating this? | C81: Based on data entered here | F81: Area of trees (ha) | G81: 10 | H81: Age of trees | I81: 15 | J81: Click here for help with vegetation
B83: Choose your region of Australia | C83: South West VIC
F84: Amount of carbon sequestered using other tools | H84: 6.5 | I84: t CO2e/ha.annum
B85: Choose the type of trees planted | C85: Mixed species (Environmental Plantings)
B87: Manure management
C88: Choose which option you are using to estimate how animal waste is handled | F88: Default state factors and fractions | H88: Volatile solids | I88: =D267 -> 4.503403559 | J88: kg VS/head.day for the milking cows
B90: Percentage waste to each manure system | C90: Anaerobic lagoon | D90: Sump dispersal | E90: Drain to paddock | F90: Solid storage | G90: Pasture | H90: Integrated methane conversion factor%
B91: Milkers | C91: =IF($AE$223=1,AK247,"") -> 10.8 | D91: =IF($AE$223=1,AL247,"") -> 0.9 | E91: =IF($AE$223=1,AM247,"") -> 0.2 | F91: =IF($AE$223=1,AN247,"") -> 4.2 | G91: =IF($AE$223=1,AJ247,"") -> 83.9 | H91: =IF(AE223=1,AO249,"") -> 8.92
B92: All other stock | C92: =IF($AE$223=1,AK250,"") -> 0 | D92: =IF($AE$223=1,AL250,"") -> 0 | E92: =IF($AE$223=1,AM250,"") -> 0 | F92: =IF($AE$223=1,AN250,"") -> 0 | G92: =IF($AE$223=1,AJ250,"") -> 100 | H92: =IF(AE223=1,AO250,"") -> 1
B94: Only answer the following questions if you which to enter your own farm management practices to estimate the percentage of waste to each of the abovementioned manure management systems. In addition, you must have selected the user-defined factors and fractions option in the drop-down list at the beginning of this section, otherwise the results with still reflect the default state-based fractions and factors.
B98: Milkers | G98: Hours per day | H98: Days per annum
B99: Number of hours per day and days per annum a milker spends at the dairy and adjacent yards where the waste is flushed with water | G99: 4 | H99: 300
B101: Percentage of waste that is flushed and then drains to the paddock with no treatment/ removal of solids | G101: 0 | H101: %
B102: Percentage of waste that is flushed and then spread daily from a sump/dispersal system (with or without removal of solids) | G102: 0 | H102: %
B103: Balance assumed to be flushed and then enter a pond/lagoon system | G103: =(100-(G101+G102)) -> 100 | H103: %
B105: Do you pre-treat the waste prior to spreading daily from a sump system or entering the lagoon (e.g. weeping wall, solids trap, mechanical separator) to remove a proportion of solids? | G105: YES
B106: If yes, what percentage of the waste is removed via the pre-treatment process? | G106: 25 | H106: %
G108: Hours per day | H108: Days per annum
B109: Number of hours per day and days per annum a milker spends on a feedpad, loafing area, or housed | G109: 2 | H109: 150
B111: Select the option which best describes how the majority of this waste from the feedpad or loafing area is best handled | F111: Scraped & stockpiled
B113: All other stock
C114: Heifers > 1 yr age | D114: Heifers < 1 yr age | E114: Mature bulls | F114: Other stock < 1 yr age | G114: Other stock > 1 yr age
B115: Hours per day on the feedpad or loafing area | C115: 2 | D115: 1.5 | E115: 0 | F115: 1.5 | G115: 0
B116: Days per annum on the feedpad of loafing area | C116: 150 | D116: 100 | E116: 0 | F116: 100 | G116: 0
B117: Percentage of stock class on feedpad | C117: 100 | D117: 100 | E117: 0 | F117: 100 | G117: 0
B119: Select the option which best describes how this waste from the feedpad or loafing area is best handled | F119: Scraped & stockpiled
H120: Integrated methane
B121: Percentage waste to each manure system | C121: Anaerobic lagoon | D121: Sump dispersal | E121: Drain to paddock | F121: Solid storage | G121: Pasture | H121: conversion factor
B122: Milkers | C122: =IF($AE$223=2,AK248,"") ->  | D122: =IF($AE$223=2,AL248,"") ->  | E122: =IF($AE$223=2,AM248,"") ->  | F122: =IF($AE$223=2,AN248,"") ->  | G122: =IF($AE$223=2,AJ248,"") ->  | H122: =IF($AE$223=2,AO248,"") ->  | I122: %
B123: All other stock (weighted-average based on number of head in each stock class) | C123: =IF($AE$223=2,AK261,"") ->  | D123: =IF($AE$223=2,AL261,"") ->  | E123: =IF($AE$223=2,AM261,"") ->  | F123: =IF($AE$223=2,AN261,"") ->  | G123: =IF($AE$223=2,AJ261,"") ->  | H123: =IF($AE$223=2,AO261,"") ->  | I123: %
B126: Results for your farm system
D127: =D14 -> Milking cows | E127: Heifers > 1 yr age | F127: Heifers < 1 yr age | G127: Mature bulls | H127: Other stock < 1 yr age | I127: Other stock > 1 yr age | J127: N fertiliser | K127: Total GHG (tonnes CO2e/annum) | L127: % of total GHG (exc. C sequestration in trees) | M127: kg CO2e/kg FPCM (your farm) | N127: kg CO2e/kg FPCM (industry comparison) | O127: Source of emissions
B129: Methane (Scope 1): | C129: Enteric fermentation | D129: =D255*'Emission factors'!$C$4*10^3 -> 1648.702604 | E129: =E255*'Emission factors'!$C$4*10^3 -> 181.791974 | F129: =(F255+I255)*'Emission factors'!$C$4*10^3 -> 88.90430742 | G129: =G255*'Emission factors'!$C$4*10^3 -> 14.9589478 | H129: =(H255+J255)*'Emission factors'!$C$4*10^3 -> 91.25497737 | I129: =(K255)*'Emission factors'!$C$4*10^3 -> 0 | K129: =SUM(D129:I129) -> 2025.61281 | L129: =K129/$K$145 -> 0.5675609554 | M129: =K129*1000/$R$229*$Q$288 -> 0.5447310757 | N129: ='Industry averages'!U7 -> 0.5439821227 | O129: Enteric fermentation
C130: Manure management | D130: =D280*'Emission factors'!$C$4*10^3 -> 300.7919517 | E130: =E280*'Emission factors'!$C$4*10^3 -> 3.814936085 | F130: =(F280+I280)*'Emission factors'!$C$4*10^3 -> 1.885611943 | G130: =G280*'Emission factors'!$C$4*10^3 -> 0.3139161124 | H130: =(H280+J280)*'Emission factors'!$C$4*10^3 -> 1.92931083 | I130: =(K280)*'Emission factors'!$C$4*10^3 -> 0 | K130: =SUM(D130:I130) -> 308.7357266 | L130: 0.08650534944 | M130: 0.08302571135 | N130: ='Industry averages'!U8 -> 0.07681756159 | O130: Manure management
B131: Nitrous oxide (Scope 1): | C131: Direct from dung & urine voided onto pastures | D131: =D463*'Emission factors'!$C$5*10^3 -> 96.42571647 | E131: =E463*'Emission factors'!$C$5*10^3 -> 15.81032163 | F131: =(F463+I463)*'Emission factors'!$C$5*10^3 -> 6.840779322 | G131: =G463*'Emission factors'!$C$5*10^3 -> 1.365320267 | H131: =(H463+J463)*'Emission factors'!$C$5*10^3 -> 6.840439843 | I131: =(K463)*'Emission factors'!$C$5*10^3 -> 0 | K131: =SUM(D131:I131) -> 127.2825775 | L131: 0.0356635883 | M131: 0.03422903678 | N131: ='Industry averages'!U9 -> 0.03111617252 | O131: Direct from dung & urine voided onto pastures
C132: Direct from manure (storage & spread) | D132: =(D342+D418)*'Emission factors'!$C$5*10^3 -> 21.71749636 | E132: =(E342+E418)*'Emission factors'!$C$5*10^3 -> 0 | F132: =((F342+I342)+(F418+I418))*'Emission factors'!$C$5*10^3 -> 0 | G132: =(G342+G418)*'Emission factors'!$C$5*10^3 -> 0 | H132: =((H342+J342)+(H418+J418))*'Emission factors'!$C$5*10^3 -> 0 | I132: =((K342+K418))*'Emission factors'!$C$5*10^3 -> 0 | K132: =SUM(D132:I132) -> 21.71749636 | L132: 0.006085073574 | M132: 0.005840304274 | N132: ='Industry averages'!U10 -> 0.004451984244 | O132: Direct from manure (storage & spread)
C133: Indirect N waste | D133: =(D357+D366+D500+D534)*'Emission factors'!$C$5*10^3 -> 103.7250685 | E133: =(E357+E366+E500+E534)*'Emission factors'!$C$5*10^3 -> 13.75497982 | F133: =(F357+F366+F500+F534+I357+I366+I500+I534)*'Emission factors'!$C$5*10^3 -> 5.95147801 | G133: =(G357+G366+G500+G534)*'Emission factors'!$C$5*10^3 -> 1.187828632 | H133: =(H357+H366+H500+H534+J357+J366+J500+J534)*'Emission factors'!$C$5*10^3 -> 5.951182664 | I133: =(K357+K366+K500+K534)*'Emission factors'!$C$5*10^3 -> 0 | K133: =SUM(D133:I133) -> 130.5705376 | L133: 0.03658484914 | M133: 0.03511324033 | N133: ='Industry averages'!U11 -> 0.03237171924 | O133: Indirect N waste
C134: Direct N fertiliser | J134: =C396 -> 135.1310714 | K134: =J134 -> 135.1310714 | L134: 0.03786267525 | M134: 0.03633966646 | N134: ='Industry averages'!U12 -> 0.03126043488 | O134: Direct N fertiliser
C135: Indirect N fertiliser | J135: =(SUM(D495:D496)+SUM(D529:D530))*'Emission factors'!$C$5*10^3 -> 70.543 | K135: =J135 -> 70.543 | L135: 0.01976559996 | M135: 0.01897053775 | N135: ='Industry averages'!U13 -> 0.01689913479 | O135: Indirect N fertiliser
B136: Carbon dioxide: | C136: Electricity (Scope 2) | K136: =J557 -> 121.275 | L136: 0.0339803118 | M136: =(K136+K137)*1000/$R$229*$Q$288 -> 0.03642543325 | N136: ='Industry averages'!U14 -> 0.03449498594 | O136: Electricity (Scope 2 & 3)
C137: Electricity (Scope 3) | K137: =J561 -> 14.175 | L137: 0.003971724755
C138: Diesel and unleaded petrol (Scope 1) | K138: =H549 -> 40.6458 | L138: 0.01138863704 | M138: =(K138+K139)*1000/$R$229*$Q$288 -> 0.01362424151 | N138: ='Industry averages'!U15 -> 0.0236567621 | O138: Diesel and unleaded petrol (Scope 1 & 3)
C139: Diesel and unleaded petrol (Scope 3) | K139: =J549 -> 10.0167 | L139: 0.002806601436
C140: Urea and lime/dolomite (Scope 1) | K140: =C598+C605 -> 149.2971014 | L140: 0.04183188668 | M140: =K140*1000/$R$229*$Q$288 -> 0.04014921818 | N140: ='Industry averages'!U16 -> 0.02143310153 | O140: Urea and lime/dolomite
B141: Pre-farm gate embedded (Scope 3) | C141: Grain/ concentrates | K141: =E574 -> 140 | L141: 0.03922691116 | M141: =K141*1000/$R$229*$Q$288 -> 0.03764902661 | N141: ='Industry averages'!U17 -> 0.0465877727 | O141: Grain/ concentrates
C142: Forages | K142: =SUM(E572:E573) -> 32 | L142: 0.008966151123 | M142: =K142*1000/$R$229*$Q$288 -> 0.008605491798 | N142: ='Industry averages'!U18 -> 0.005901087772 | O142: Forages
C143: Fertilisers | K143: =E591 -> 241.9756135 | L143: 0.06779968497 | M143: =K143*1000/$R$229*$Q$288 -> 0.06507247367 | N143: ='Industry averages'!U19 -> 0.05754540268 | O143: Fertilisers
B145: Total GHG emissions | D145: =SUM(D129:D143) -> 2171.362836 | E145: 215.1722115 | F145: 103.5821767 | G145: 17.82601281 | H145: 105.9759107 | I145: 0 | J145: 205.6740714 | K145: =SUM(K129:K143) -> 3568.978435 | L145: t CO2e/annum
B146: % of total GHG emissions (before carbon sequestration is taken into account) | D146: =D145/$K$145 -> 0.6083989792 | E146: =E145/$K$145 -> 0.06028958019 | F146: 0.02902292031 | G146: 0.00499471015 | H146: 0.02969362596 | I146: 0 | J146: 0.0576282752
B148: Carbon sequestration | C148: Tree plantings, with negative figures representing amount of carbon sequestered | K148: =IF(C81="",0,IF(V231=1,0,IF(V231=3,H84*G81*-1,F616*-1))) -> -29.36 | L148: t CO2e/annum
B150: Net GHG emissions | K150: =K145+K148 -> 3539.618435 | L150: t CO2e/annum
B152: GHG emissions intensity (kg CO2e/kg fat and protein corrected milk (FPCM)) | M152: =S285 -> 0.9518799189 | N152: ='Industry averages'!U4 -> 0.9214223498 | O152: kg CO2e/kg FPCM (post carbon sequestration)
B153: GHG emissions intensity (kg CO2e/kg milksolids) | M153: =S286 -> 13.45027901 | N153: ='Industry averages'!U6 -> 12.80734872 | O153: kg CO2e/kg milksolids (post-carbon sequestration)
B154: GHG emissions intensity (kg CO2e/kg liveweight) | M154: =S287 -> 3.874736037 | N154: ='Industry averages'!U5 -> 5.077221833 | O154: kg CO2e/kg liveweight meat (post-carbon sequestration)
B156: Proportion of net emissions allocated to milk | M156: =Q288 -> 0.8549827712 | N156: ='Industry averages'!U20 -> 0.8722180451 | O156: Proportion of emissions allocated to milk
B157: Proportion of net emissions allocated to meat | M157: =Q289 -> 0.1450172288 | N157: ='Industry averages'!U21 -> 0.1277819549 | O157: Proportion of emissions allocated to meat
B162: Note: Total GHG emissions for each stock class does not include carbon sequestered in trees. However, Net GHG emissions and emissions intensities includes any carbon sequestration in tree plantings.
B164: Typical GHG emissions intensity, based on 70-90% of net emissions allocated to milk production, should range between 0.6 and 1.2 kg CO2e/ kg FPCM or between 8 and 18 kg CO2e/kg milksolids. If your emissions intensity is outside these ranges, review your data entry for potential errors.
B195: Click here to progress to the 'Abatement Schematic' worksheet
B209: State and dairy region for tree plantings
C211: State | D211: Victoria | E211: New South Wales | F211: Tasmania | G211: Queensland | H211: South Australia | I211: Western Australia
B212: 1 | C212: Victoria | D212: Mallee region VIC | E212: Northern coastal NSW | F212: North East TAS | G212: Northern QLD | H212: South East SA | I212: South West WA
B213: 2 | C213: New.South.Wales | D213: Northern region VIC | E213: Southern coastal NSW | F213: Central North & Midlands TAS | G213: Southern QLD | H213: Murray River SA
B214: 3 | C214: Tasmania | D214: North East region VIC | E214: Central Inland & Riverina NSW | F214: Southern TAS
B215: 4 | C215: Queensland | D215: East Gippsland | F215: North West TAS
B216: 5 | C216: South.Australia | D216: South & West Gippsland
B217: 6 | C217: Western.Australia | D217: South West VIC
K219: RDPs for linking to Industry average farm
J220: 1 | K220: Australia-wide | AJ220: Milkers- dairy | AS220: Milkers | AX220: R2s | AY220: R1s | AZ220: Bulls | BA220: Other stock < 1 | BB220: Other stock > 1
B221: Selected State | C221: =D12 -> Victoria | D221: Selected Region | E221: =C83 -> South West VIC | G221: Calves sold | H221: Calves sold soon after birth | J221: 2 | K221: Victoria | P221: Milk production | T221: N fertiliser rates | U221: kg of element per ha per annum | W221: Graphs | AC221: Manure management | AD221: 1 | AE221: Default state factors and fractions | AJ221: Hours per day at dairy | AK221: =G99 -> 4 | AS221: % to grazing | AU221: =1-((G99/24*H99/365)+(G109/24*H109/365)) -> 0.8287671233 | AW221: % to grazing | AX221: =1-SUM(AX228:AX231) -> 0.9657534247 | AY221: =1-SUM(AY228:AY231) -> 0.9828767123 | AZ221: =1-SUM(AZ228:AZ231) -> 1 | BA221: =1-SUM(BA228:BA231) -> 0.9828767123 | BB221: =1-SUM(BB228:BB231) -> 1
H222: Calves sold post-weaning | J222: 3 | K222: Victoria- Gippsland | U222: tonnes of element per annum | W222: Enteric methane | X222: =L129 -> 0.5675609554 | AD222: 2 | AE222: User-defined factors and fractions | AJ222: Days per annum at dairy | AK222: =H99 -> 300 | AS222: % from dairy & drains to paddock | AU222: =(AK221/24)*(AK222/365)*(AK223/100) -> 0 | AW222: % drains to paddock | AX222: =IF(AF234="YES",IF($AO$235=1,((C115/24)*(C116/365)*C117%),0),0) -> 0 | AY222: =IF(AF236="YES",IF($AO$235=1,((D115/24)*(D116/365))*D117%,0),0) -> 0 | AZ222: =IF(AF238="YES",IF($AO$235=1,((E115/24)*(E116/365))*E117%,0),0) -> 0 | BA222: =IF(AF240="YES",IF($AO$235=1,((F115/24)*(F116/365))*F117%,0),0) -> 0 | BB222: =IF(AF242="YES",IF($AO$235=1,((G115/24)*(G116/365))*G117%,0),0) -> 0
G223: Selected | H223: =IF(K14=H221,1,2) -> 2 | J223: 4 | K223: Victoria- Northern | P223: Litres per annum | R223: =IF(V236="1",H31,0) -> 3000000 | W223: Waste methane | X223: =L130 -> 0.08650534944 | AD223: Selected | AE223: =IF(F88="",1,IF(F88=AE221,1,2)) -> 1 | AJ223: % drained daily from sump | AK223: =G101 -> 0 | AS223: % from dairy & spread daily | AU223: =(AK221/24*AK222/365*AK224/100)*IF(AE228=2,(1-AE231),1) -> 0 | AW223: % spread sump/dispersal system | AX223: =IF(AF234="YES",IF($AO$235=2,(C115/24*C116/365*C117%)*IF($AE$228=2,(1-$AE$231),1),0),0) -> 0 | AY223: =IF(AF236="YES",IF($AO$235=2,(D115/24*D116/365*D117%)*IF($AE$228=2,(1-$AE$231),1),0),0) -> 0 | AZ223: =IF(AF238="YES",IF($AO$235=2,(E115/24*E116/365*E117%)*IF($AE$228=2,(1-$AE$231),1),0),0) -> 0 | BA223: =IF(AF240="YES",IF($AO$235=2,(F115/24*F116/365*F117%)*IF($AE$228=2,(1-$AE$231),1),0),0) -> 0 | BB223: =IF(AF242="YES",IF($AO$235=2,(G115/24*G116/365*G117%)*IF($AE$228=2,(1-$AE$231),1),0),0) -> 0
H224: =IF(H223=1,H221,H222) -> Calves sold post-weaning | J224: 5 | K224: Victoria- South West | P224: MS per annum | R224: =IF(V236="2",H31,0) -> 0 | T224: Selected | U224: =E50 -> tonnes of element per annum | V224: =IF(U224="kg of element per ha per annum","1","2") -> 2 | W224: Direct N2O waste | X224: =L131+L132 -> 0.04174866187 | AJ224: % spread daily from sump | AK224: =G102 -> 0 | AS224: % from dairy & spread daily & treated so its solid storage | AU224: =(AK221/24*AK222/365*AK224/100)*IF(AE228=1,0,AE231) -> 0 | AW224: % of spread daily from sump to SS | AX224: =IF(AF234="YES",IF($AO$235=2,(C115/24*C116/365*C117%)*IF($AE$228=2,$AE$231,0),0)) -> 0 | AY224: =IF(AF236="YES",IF($AO$235=2,D115/24*D116/365*D117%)*IF($AE$228=2,$AE$231,0),0) -> 0 | AZ224: =IF(AF238="YES",IF($AO$235=2,E115/24*E116/365*E117%)*IF($AE$228=2,$AE$231,0),0) -> 0 | BA224: =IF(AF240="YES",IF($AO$235=2,F115/24*F116/365*F117%)*IF($AE$228=2,$AE$231,0),0) -> 0 | BB224: =IF(AF242="YES",IF($AO$235=2,G115/24*G116/365*G117%)*IF($AE$228=2,$AE$231,0),0) -> 0
J225: 6 | K225: New South Wales | P225: Fat % | R225: =(IF(D33="",4,D33)) -> 4.3 | W225: Direct N2O N fertiliser | X225: =L134 -> 0.03786267525 | AJ225: % to lagoon | AK225: =G103 -> 100 | AS225: % from dairy & to lagoon (no pre-treatment) | AU225: =IF(AE228=1,(AK221/24*AK222/365*AK225/100),(AK221/24*AK222/365*AK225/100)*(1-AE231)) -> 0.102739726 | AW225: % to lagoon (no pre-treatment) | AX225: =IF(AF234="YES",IF($AO$235=3,(C115/24*C116/365*C117%)*IF($AE$228=2,(1-$AE$231),1),0),0) -> 0 | AY225: =IF(AF236="YES",IF($AO$235=3,(D115/24*D116/365*D117%)*IF($AE$228=2,(1-$AE$231),1),0),0) -> 0 | AZ225: =IF(AF238="YES",IF($AO$235=3,(E115/24*E116/365*E117%)*IF($AE$228=2,(1-$AE$231),1),0),0) -> 0 | BA225: =IF(AF240="YES",IF($AO$235=3,(F115/24*F116/365*F117%)*IF($AE$228=2,(1-$AE$231),1),0),0) -> 0 | BB225: =IF(AF242="YES",IF($AO$235=3,(G115/24*G116/365*G117%)*IF($AE$228=2,(1-$AE$231),1),0),0) -> 0
J226: 7 | K226: NSW- North | P226: Protein % | R226: =IF(H33="",3.3,H33) -> 3.2 | W226: Indirect N2O waste | X226: =L133 -> 0.03658484914 | AC226: Pre-treat | AD226: 1 | AE226: NO | AJ226: Hours per day on feedpad | AK226: =G109 -> 2 | AS226: % from dairy & to lagoon (pre-treated & to solid storage fraction) | AU226: =IF(AE228=1,0,(AK221/24*AK222/365*AK225/100)*AE231) -> 0.03424657534 | AW226: % to lagoon (pre-treated & to solid storage) | AX226: =IF(AF234="YES",IF($AO$235=3,(C115/24*C116/365*C117%*IF($AE$228=2,$AE$231,0)),0),0) -> 0 | AY226: =IF(AF236="YES",IF($AO$235=3,(D115/24*D116/365*D117%*IF($AE$228=2,$AE$231,0)),0),0) -> 0 | AZ226: =IF(AF238="YES",IF($AO$235=3,(E115/24*E116/365*E117%*IF($AE$228=2,$AE$231,0)),0),0) -> 0 | BA226: =IF(AF240="YES",IF($AO$235=3,(F115/24*F116/365*F117%*IF($AE$228=2,$AE$231,0)),0),0) -> 0 | BB226: =IF(AF242="YES",IF($AO$235=3,(G115/24*G116/365*G117%*IF($AE$228=2,$AE$231,0)),0),0) -> 0
J227: 8 | K227: NSW- South | P227: DGAS estimated kg MS if litres entered | R227: =IF(R223=0,R224,(R223*(R225+R226)/100)) -> 225000 | T227: Tree sequestration | U227: No estimate of carbon sequestration | W227: Indirect N2O N fertiliser | X227: =L135 -> 0.01976559996 | AD227: 2 | AE227: YES | AJ227: Days per annum on feedpad | AK227: =H109 -> 150 | AS227: % from feedpad and drains to paddock | AU227: =IF(AJ235=1,(AK226/24*AK227/365),0) -> 0 | AW227: % to solid storage | AX227: =IF(AF234="YES",IF($AO$235=4,C115/24*C116/365*C117%,0),0) -> 0.03424657534 | AY227: =IF(AF236="YES",IF($AO$235=4,D115/24*D116/365*D117%,0),0) -> 0.01712328767 | AZ227: =IF(AF238="YES",IF($AO$235=4,E115/24*E116/365*E117%,0),0) -> 0 | BA227: =IF(AF240="YES",IF($AO$235=4,F115/24*F116/365*F117%,0),0) -> 0.01712328767 | BB227: =IF(AF242="YES",IF($AO$235=4,G115/24*G116/365*G117%,0),0) -> 0
J228: 9 | K228: Queensland | P228: DGAS estimated litres per annum | R228: =IF(R223=0,(R224/((R225+R226)/100)),R223) -> 3000000 | U228: Based on data entered here | W228: Energy consumption | X228: =L136+L138 -> 0.04536894884 | AD228: Selected | AE228: =IF(G105="",1,IF(G105=AE226,1,2)) -> 2 | AS228: % from feedpad spread daily | AU228: =IF(AJ235=2,(AK226/24*AK227/365),0)*IF(AE228=2,(1-AE231),1) -> 0 | AW228: % sum solid storage | AX228: =AX224+AX226+AX227 -> 0.03424657534 | AY228: =AY224+AY226+AY227 -> 0.01712328767 | AZ228: =AZ224+AZ226+AZ227 -> 0 | BA228: =BA224+BA226+BA227 -> 0.01712328767 | BB228: =BB224+BB226+BB227 -> 0
J229: 10 | K229: QLD- North | P229: FPCM (kg per annum; IDF equation) | R229: =(R228*1.03)*(0.2534+0.1226*R225+0.0776*R226) -> 3179301 | U229: Carbon sequestered using other tools | W229: Pre-farm embedded | X229: =SUM(L141:L143) -> 0.1159927473 | AJ229: Milkers- feedpad | AM229: Heifers- feedpad | AS229: % of feedpad spread daily going to SS | AU229: =IF(AJ235=2,(AK226/24*AK227/365)*IF(AE228=2,AE231,0),0) -> 0 | AW229: % sum drains to paddock | AX229: =AX222 -> 0 | AY229: =AY222 -> 0 | AZ229: =AZ222 -> 0 | BA229: =BA222 -> 0 | BB229: =BB222 -> 0
J230: 11 | K230: QLD- South | P230: kg milk per cow per day | R230: =ROUND((R229/D16/D35),1) -> 23.6 | AS230: % from feedpad to lagoon without treatment | AU230: =IF(AJ235=3,(AK226/24*AK227/365*IF(AE228=2,(1-AE231),1)),0) -> 0 | AW230: % sum lagoon | AX230: =AX225 -> 0 | AY230: =AY225 -> 0 | AZ230: =AZ225 -> 0 | BA230: =BA225 -> 0 | BB230: =BB225 -> 0
J231: 12 | K231: South Australia | P231: litres per cow per day | R231: =(R228/D16/D35) -> 22.22222222 | T231: Selected | U231: =C81 -> Based on data entered here | V231: =IF(C81="",0,IF(C81=U227,1,IF(C81=U228,2,3))) -> 2 | AC231: Pre-treat percentage | AE231: =IF(G106="",0.2,G106/100) -> 0.25 | AI231: 1 | AJ231: Flushed & drains daily to the paddock | AM231: Feedpad waste- heifers | AN231: 1 | AO231: Flushed & drains daily to the paddock | AS231: % from feedpad and to lagoon but with pre-treatment to make it solid storage | AU231: =(IF(AJ235=3,(AK226/24*AK227/365*IF(AE228=2,AE231,0)),0)) -> 0 | AW231: % sum sump and dispersal | AX231: =AX223 -> 0 | AY231: =AY223 -> 0 | AZ231: =AZ223 -> 0 | BA231: =BA223 -> 0 | BB231: =BB223 -> 0
J232: 13 | K232: Tasmania | P232: kg MS per cow per day | R232: =(R231*((R225+R226)/100)) -> 1.666666667 | AI232: 2 | AJ232: Flushed & spread daily from a sump | AN232: 2 | AO232: Flushed & spread daily from a sump | AS232: % from feedpad wet-lotted (solid storage) | AU232: =(IF(AJ235=4,(AK226/24*AK227/365),0)) -> 0.03424657534
J233: 14 | K233: Western Australia | P233: Average DMD | R233: =((D38*F38)+(D39*F39)+(D40*F40)+(D41*F41)+(D42*F42)+(D43*F43))/D44 -> 75.73529412 | T233: Milk production | U233: litres per herd per annum | AF233: On feedpad | AI233: 3 | AJ233: Flushed to a pond/lagoon system | AN233: 3 | AO233: Flushed to a pond/lagoon system | AS233: % sum solid storage | AU233: =AU224+AU229+AU232+AU226+AU231 -> 0.06849315068
J234: 15 | K234: Low grain (< 1 t DM/cow.annum) | P234: Average CP | R234: =((D38*H38)+(D39*H39)+(D40*H40)+(D41*H41)+(D42*H42)+(D43*H43))/D44 -> 18.63235294 | U234: kg milksolids per herd per annum | AC234: Heifers > 1 feedlot | AF234: =IF(C115>0,"Yes","No") -> Yes | AI234: 4 | AJ234: Scraped & stockpiled | AN234: 4 | AO234: Scraped & stockpiled | AS234: % drains to paddock | AU234: =AU222+AU227 -> 0
J235: 16 | K235: Medium grain (1-2 t DM/cow.annum) | P235: Average intake required | R235: =ROUND((1.185+(0.00454*D18)-(0.0000026*(D18)^2)+((0.315*0)))^2*1.1+((R231*D35/365)*3.054/0.6/(0.00795*R233-0.0014)/18.4),1) -> 17.1 | AI235: Selected | AJ235: =IF(F111=AJ231,1,IF(F111=AJ232,2,IF(F111=AJ233,3,4))) -> 4 | AN235: Selected | AO235: =IF(F119=AO231,1,IF(F119=AO232,2,IF(F119=AO233,3,4))) -> 4 | AS235: % sum lagoon | AU235: =AU225+AU230 -> 0.102739726
J236: 17 | K236: High grain (> 2 t DM/cow.annum) | T236: Selected | U236: =D31 -> litres per herd per annum | V236: =IF(D31=U233,"1","2") -> 1 | AC236: Heifers < 1 feedlot | AF236: =IF(D115>0,"Yes","No") -> Yes | AS236: % sum sump and dispersal | AU236: =AU223+AU228 -> 0
J237: Selected | K237: =H12 -> Victoria- South West | P237: Net GHG emissions (kg) | R237: =K150*1000 -> 3539618.435
P238: EI (litres FPCM) | R238: =R237/R229 -> 1.113332281 | AC238: Bulls feedlot | AF238: =IF(E115>0,"Yes","No") -> No | AJ238: Pasture | AK238: Lagoon | AL238: Sump/dispersal | AM238: Drain to paddock | AN238: Solid storage | AO238: Integrated MCF | AW238: MCF calculations- milkers
B239: Methane Calculation | C239: Seasons | D239: =D14 -> Milking cows | E239: =E14 -> Heifers > 1 yr age | F239: =F14 -> Heifers < 1 yr age | G239: =G14 -> Mature bulls | H239: =H14 -> Other stock < 1 yr age | I239: Unweaned heifers | J239: Unweaned bulls | K239: Bulls/steers (1-2 yrs) | L239: Units | M239: Inventory reference | P239: EI (kg MS) | R239: =R237/R227 -> 15.73163749 | AH239: 1 | AI239: Victoria | AJ239: 83.9 | AK239: 10.8 | AL239: 0.9 | AM239: 0.2 | AN239: 4.2 | AO239: 8.92 | AX239: Lagoon | AY239: Sump and dispersal | AZ239: Drains to paddock | BA239: Solids storage | BB239: Voided pasture | BC239: Integrated MCF
AC240: Other stock < 1 feedlot | AF240: =IF(F115>0,"Yes","No") -> Yes | AH240: 2 | AI240: New.South.Wales | AJ240: 78.7 | AK240: 9 | AL240: 2 | AM240: 1.9 | AN240: 8.4 | AO240: 8.05 | AV240: 1 | AW240: Victoria | AX240: 73 | AY240: 0.5 | AZ240: 17 | BA240: 2 | BB240: 1
B241: Feed Intake | D241: I = (1.185 +(0.00454 x W) - (0.0000026 x (W)^2) + ((0.315 x LWG)))^2 x MR + MI | M241: 3A.1a_1 | P241: FPCM (kg per annum based on IDF equation) | R241: =R229 -> 3179301 | AH241: 3 | AI241: Tasmania | AJ241: 86.5 | AK241: 8.4 | AL241: 2.4 | AM241: 0.8 | AN241: 2 | AO241: 6.9 | AV241: 2 | AW241: New.South.Wales | AX241: 76 | AY241: 0.5 | AZ241: 18 | BA241: 2 | BB241: 1
C242: Annual | D242: =(1.185+(0.00454*D18)-(0.0000026*(D18)^2)+((0.315*D20)))^2*1.1+D246 -> 17.318432 | E242: =(1.185+(0.00454*E18)-(0.0000026*(E18)^2)+((0.315*E20)))^2*1+E246 -> 7.160976 | F242: =(1.185+(0.00454*F18)-(0.0000026*(F18)^2)+((0.315*F20)))^2*1+F246 -> 4.112784 | G242: =(1.185+(0.00454*G18)-(0.0000026*(G18)^2)+((0.315*G20)))^2*1+G246 -> 8.838729 | H242: =(1.185+(0.00454*H18)-(0.0000026*(H18)^2)+((0.315*H20)))^2*1+H246 -> 5.308416 | K242: =(1.185+(0.00454*I18)-(0.0000026*(I18)^2)+((0.315*I20)))^2*1+K246 -> 1.404225 | L242: kg DM/head/day | P242: Meat production | R242: Cull cows | S242: Heifers < 1 | T242: Heifers > 1 | U242: Bulls | V242: Other stock < 1 | W242: Other stock > 1 | AC242: Other stock > 1 feedlot | AF242: =IF(G115>0,"Yes","No") -> No | AH242: 4 | AI242: Queensland | AJ242: 78.7 | AK242: 7.3 | AL242: 3.3 | AM242: 2.4 | AN242: 8.4 | AO242: 7.99 | AV242: 3 | AW242: Tasmania | AX242: 69 | AY242: 0.1 | AZ242: 13 | BA242: 2 | BB242: 1
P243: Cull cows | R243: =IF(AND(D22>0,D24=""),(D22*D18),(D22*D24)) -> 63250 | S243: 4250 | T243: 0 | U243: 2400 | V243: 40000 | W243: 0 | AH243: 5 | AI243: South.Australia | AJ243: 80.5 | AK243: 10.4 | AL243: 1.4 | AM243: 0.8 | AN243: 6.9 | AO243: 2.55 | AV243: 4 | AW243: Queensland | AX243: 78 | AY243: 0.5 | AZ243: 24 | BA243: 2 | BB243: 1
B244: Additional intake for milk production | D244: MI = MP x 1.03 x NE / k / qm / 18.4 | P244: Total meat | R244: =SUM(R243:W243) -> 109900 | AH244: 6 | AI244: Western.Australia | AJ244: 79.9 | AK244: 10 | AL244: 1.9 | AM244: 0.9 | AN244: 7.4 | AO244: 8.6 | AV244: 5 | AW244: South.Australia | AX244: 74 | AY244: 0.5 | AZ244: 17 | BA244: 2 | BB244: 1
D245: MP x 1.03 (convert litres to kg milk) x 3.054 (MJ net energy/kg milk) / 0.6 / (0.00795 x DMD - 0.0014) / 18.4 | M245: 3A.1a_2 | AV245: 6 | AW245: Western.Australia | AX245: 76 | AY245: 0.5 | AZ245: 18 | BA245: 2 | BB245: 1
C246: Annual | D246: =(R231*1.03*D35/365)*3.054/0.6/((0.00795*F44)-0.0014)/18.4 -> 8.6636045 | E246: =0*3.054/0.6/(0.00795*$R$247-0.0014)/18.4 -> 0 | F246: =0*3.054/0.6/(0.00795*$R$247-0.0014)/18.4 -> 0 | G246: =0*3.054/0.6/(0.00795*$R$247-0.0014)/18.4 -> 0 | H246: =0*3.054/0.6/(0.00795*$R$247-0.0014)/18.4 -> 0 | K246: =0*3.054/0.6/(0.00795*$R$247-0.0014)/18.4 -> 0 | L246: kg DM/head/day
P247: Other livestock DMD | R247: =IF(FeedFedOtherStockDigestibilityPercent="",75,FeedFedOtherStockDigestibilityPercent) -> 75 | AH247: Default fractions: milkers | AI247: =C221 -> Victoria | AJ247: =VLOOKUP($D$12,$AI$239:$AQ$245,2,FALSE) -> 83.9 | AK247: =VLOOKUP($D$12,$AI$239:$AQ$245,3,FALSE) -> 10.8 | AL247: =VLOOKUP($D$12,$AI$239:$AQ$245,4,FALSE) -> 0.9 | AM247: =VLOOKUP($D$12,$AI$239:$AQ$245,5,FALSE) -> 0.2 | AN247: =VLOOKUP($D$12,$AI$239:$AQ$245,6,FALSE) -> 4.2 | AO247: =VLOOKUP($D$12,$AI$239:$AO$244,7,FALSE) -> 8.92 | AV247: Selected | AW247: =VLOOKUP($D$12,$AW$240:$BB$246,1,FALSE) -> Victoria | AX247: =VLOOKUP($D$12,$AW$240:$BB$245,2,FALSE) -> 73 | AY247: =VLOOKUP($D$12,$AW$240:$BB$246,3,FALSE) -> 0.5 | AZ247: =VLOOKUP($D$12,$AW$240:$BB$246,4,FALSE) -> 17 | BA247: =VLOOKUP($D$12,$AW$240:$BB$246,5,FALSE) -> 2 | BB247: =VLOOKUP($D$12,$AW$240:$BB$246,6,FALSE) -> 1
B248: Daily Methane Yield (M) | D248: M = 20.7 x I/1000 | M248: 3A.1a_3 | P248: Other livestock CP | R248: =IF(FeedFedOtherStockProteinPercent="",20,FeedFedOtherStockProteinPercent) -> 20 | AH248: User defined: milkers | AJ248: =AU221*100 -> 82.87671233 | AK248: =AU235*100 -> 10.2739726 | AL248: =AU236*100 -> 0 | AM248: =AU234*100 -> 0 | AN248: =AU233*100 -> 6.849315068 | AO248: =BC249 -> 8.465753425
AH249: Which fractions and MCF to use for milkers | AJ249: =IF($AE$223=1,AJ247,AJ248) -> 83.9 | AK249: 10.8 | AL249: 0.9 | AM249: 0.2 | AN249: 4.2 | AO249: 8.92 | AV249: Milker MCF | AX249: =AX247*AU235 -> 7.5 | AY249: =AY247*AU236 -> 0 | AZ249: =AZ247*AU234 -> 0 | BA249: =BA247*AU233 -> 0.1369863014 | BB249: =BB247*AU221 -> 0.8287671233 | BC249: =SUM(AX249:BB249) -> 8.465753425
C250: Annual | D250: =20.7*D242/1000 -> 0.3584915424 | E250: =20.7*E242/1000 -> 0.1482322032 | F250: =20.7*F242/1000 -> 0.0851346288 | G250: =20.7*G242/1000 -> 0.1829616903 | H250: =20.7*H242/1000 -> 0.1098842112 | I250: 0.0176 | J250: 0.0204 | K250: =20.7*K242/1000 -> 0.0290674575 | L250: kg CH4/head/day | AH250: Default other stock fractions | AJ250: 100 | AK250: 0 | AL250: 0 | AM250: 0 | AN250: 0 | AO250: 1
AH251: R2 User defined fraction | AJ251: =AX221*100 -> 96.57534247 | AK251: =AX230*100 -> 0 | AL251: =AX231*100 -> 0 | AM251: =AX229*100 -> 0 | AN251: =AX228*100 -> 3.424657534 | AO251: =BC252 -> 1.034246575 | AV251: Non-milkers MCF
B252: Annual Australian methane production (Gg) for all classes of dairy cattle across all states | AH252: R1 User defined fraction | AJ252: =AY221*100 -> 98.28767123 | AK252: =AY230*100 -> 0 | AL252: =AY231*100 -> 0 | AM252: =AY229*100 -> 0 | AN252: =AY228*100 -> 1.712328767 | AO252: =BC253 -> 1.017123288 | AV252: R2s | AX252: =AX230*$AX247 -> 0 | AY252: =AX231*AY247 -> 0 | AZ252: =AX229*AZ247 -> 0 | BA252: =AX228*BA247 -> 0.06849315068 | BB252: =AX221*BB247 -> 0.9657534247 | BC252: =SUM(AX252:BB252) -> 1.034246575
D253: E =(365 x N x M) x 10^-6 for > 1, (281 x N x M) x 10^-6 for weaned 0-1 years and (84 x N x M) x 10^-6 for unweaned | M253: 3A.1a_4 | AH253: Bulls User defined fraction | AJ253: =AZ221*100 -> 100 | AK253: =AZ230*100 -> 0 | AL253: =AZ231*100 -> 0 | AM253: =AZ229*100 -> 0 | AN253: =AZ228*100 -> 0 | AO253: =BC254 -> 1 | AV253: R1s | AX253: =AY230*AX247 -> 0 | AY253: =AY231*AY247 -> 0 | AZ253: =AY229*AZ247 -> 0 | BA253: =AY228*BA247 -> 0.03424657534 | BB253: =AY221*BB247 -> 0.9828767123 | BC253: =SUM(AX253:BB253) -> 1.017123288
AH254: Other stock < 1 defined fraction | AJ254: =BA221*100 -> 98.28767123 | AK254: =BA230*100 -> 0 | AL254: =BA231*100 -> 0 | AM254: =BA229*100 -> 0 | AN254: =BA228*100 -> 1.712328767 | AO254: =BC255 -> 1.017123288 | AV254: Bulls | AX254: =AZ230*AX247 -> 0 | AY254: =AZ231*AY247 -> 0 | AZ254: =AZ229*AZ247 -> 0 | BA254: =AZ228*BA247 -> 0 | BB254: =AZ221*BB247 -> 1 | BC254: =SUM(AX254:BB254) -> 1
C255: Annual | D255: =(365*D16*D250)*10^-6 -> 0.05888223584 | E255: =(365*E16*E250)*10^-6 -> 0.0064925705 | F255: =(281*F16*F250)*10^-6 -> 0.002990353837 | G255: =(365*G16*G250)*10^-6 -> 0.0005342481357 | H255: =(281*H16*H250)*10^-6 -> 0.003087746335 | I255: =(84*F16*I250)*10^-6 -> 0.0001848 | J255: =(84*H16*J250)*10^-6 -> 0.00017136 | K255: =(365*I16*K250)*10^-6 -> 0 | L255: Gg CH4/farm/annum | AH255: Other stock > 1 defined fraction | AJ255: =BB221*100 -> 100 | AK255: =BB230*100 -> 0 | AL255: =BB231*100 -> 0 | AM255: =BB229*100 -> 0 | AN255: =BB228*100 -> 0 | AO255: =BC256 -> 1 | AP255: No. head for weighted average | AV255: Other stock < 1 | AX255: =BA230*AX247 -> 0 | AY255: =BA231*AY247 -> 0 | AZ255: =BA229*AZ247 -> 0 | BA255: =BA228*BA247 -> 0.03424657534 | BB255: =BA221*BB247 -> 0.9828767123 | BC255: =SUM(AX255:BB255) -> 1.017123288
P256: New IDF (2022)-aligned method of estimating milk and meat allocations and emissions intensities | AH256: Which fractions and MCF to use for R2s | AJ256: =IF($AE$223=1,AJ250,AJ251) -> 100 | AK256: =IF($AE$223=1,AK250,AK251) -> 0 | AL256: 0 | AM256: 0 | AN256: 0 | AO256: 1 | AP256: =Rising2HeiferNumber -> 120 | AV256: Other stock > 1 | AX256: =BB230*AX247 -> 0 | AY256: =BB231*AY247 -> 0 | AZ256: =BB229*AZ247 -> 0 | BA256: =BB228*BA247 -> 0 | BB256: =BB221*BB247 -> 1 | BC256: =SUM(AX256:BB256) -> 1
B257: Grand Total | C257: =SUM(D255:K255) -> 0.07234331465 | H257: =H255 -> 0.003087746335 | J257: =J255 -> 0.00017136 | L257: Gg CH4/year/farm | AH257: Which fractions and MCF to use for R1s | AJ257: =IF($AE$223=1,AJ250,AJ252) -> 100 | AK257: =IF($AE$223=1,AK250,AK252) -> 0 | AL257: 0 | AM257: 0 | AN257: 0 | AO257: 1 | AP257: =Rising1HeiferNumber -> 125
B258: Grand Total | C258: =C257*'Emission factors'!$C$4 -> 2.02561281 | H258: =H257*'Emission factors'!$C$4 -> 0.08645689737 | J258: =J257*'Emission factors'!$C$4 -> 0.00479808 | L258: Gg CO2-e/year/farm | P258: Liveweight Cull Cows (inc bulls) | Q258: =D22*D24+BullSalesNumber*BullSalesLiveweight -> 65650 | AH258: Which fractions and MCF to use for bulls | AJ258: =IF($AE$223=1,AJ250,AJ253) -> 100 | AK258: =IF($AE$223=1,AK250,AK253) -> 0 | AL258: 0 | AM258: 0 | AN258: 0 | AO258: 1 | AP258: =BullNumber -> 8
B259: Grand Total | C259: =C258*10^3 -> 2025.61281 | H259: =H258*10^3 -> 86.45689737 | J259: =J258*10^3 -> 4.79808 | K259: =J259+H259 -> 91.25497737 | L259: t CO2-e/year/farm | P259: Liveweight Calves at Birth | Q259: =IF(H223=1,J22*J24,0) -> 0 | AH259: Which fractions and MCF to use for other stock < 1 | AJ259: =IF($AE$223=1,AJ250,AJ254) -> 100 | AK259: 0 | AL259: 0 | AM259: 0 | AN259: 0 | AO259: 1 | AP259: =OtherLivestockNumber -> 100
P260: Liveweight Calves Weaned | Q260: =IF(H223=2,J22*J24,0) -> 22575 | AH260: Which fractions and MCF to use for other stock > 1 | AJ260: =IF($AE$223=1,AJ250,AJ255) -> 100 | AK260: =IF($AE$223=1,AK250,AK255) -> 0 | AL260: 0 | AM260: 0 | AN260: 0 | AO260: 1 | AP260: =OtherLivestockNotImportedNumber -> 0
B261: Methane from waste | D261: =D239 -> Milking cows | E261: Heifers > 1 yr age | F261: Heifers < 1 yr age | G261: Mature bulls | H261: Other stock < 1 yr age | I261: Unweaned heifers | J261: Unweaned bulls | K261: Bulls/steers (1-2 yrs) | L261: Units | M261: Inventory reference | P261: Liveweight Fattened Dairy Livestock | Q261: =SUMPRODUCT(E22:F22,E24:F24) -> 4250 | AH261: Weighted average | AJ261: =SUMPRODUCT(AJ256:AJ260,$AP$256:$AP$260)/SUM($AP$256:$AP$260) -> 100 | AK261: 0 | AL261: 0 | AM261: 0 | AN261: 0 | AO261: 1
B262: Ash content (A) | C262: 0.08 | L262: fraction | P262: Liveweight Fattened Other Livestock | Q262: =SUMPRODUCT(H22:I22,H24:I24) -> 40000
B263: Emission potential (Bo) | C263: 0.24 | L263: m3 CH4/kg VS | P263: Total Liveweight Sold | Q263: =SUM(Q258:Q262) -> 132475
B264: Density of methane (r) | C264: 0.6784 | L264: kg/m3
Q265: Factor | R265: Dairy | S265: % of Dairy Meat | T265: All Meat | U265: % of All Meat
B266: Volatile solids (VS) | C266: VS = (I x (1 - DMD) + (0.04 x I)) x (1 - A) | M266: 3B.1a_1 | P266: Energy Demand Cull Cows | Q266: 15 | R266: =Q258*Q266 -> 984750 | S266: =R266/$R$271 -> 0.7187300429 | T266: =Q258*Q266 -> 984750 | U266: =T266/$T$271 -> 0.5440232028
C267: Annual | D267: =(D242*(1-(F44/100))+(0.04*D242))*(1-$C$262) -> 4.503403559 | E267: =(E242*(1-($R$247/100))+(0.04*E242))*(1-$C$262) -> 1.910548397 | F267: =(F242*(1-($R$247/100))+(0.04*F242))*(1-$C$262) -> 1.097290771 | G267: =(G242*(1-($R$247/100))+(0.04*G242))*(1-$C$262) -> 2.358172897 | H267: =(H242*(1-($R$247/100))+(0.04*H242))*(1-$C$262) -> 1.416285389 | I267: 0.2685 | J267: 0.3003 | K267: =(K242*(1-($R$247/100))+(0.04*K242))*(1-$C$262) -> 0.37464723 | L267: kg/head/day | P267: Energy Demand Calves at Birth | Q267: 27.5 | R267: =Q259*Q267 -> 0 | S267: =R267/$R$271 -> 0 | T267: =Q259*Q267 -> 0 | U267: =T267/$T$271 -> 0
P268: Energy Demand Calves Weaned | Q268: 15 | R268: =Q260*Q268 -> 338625 | S268: =R268/$R$271 -> 0.2471489828 | T268: =Q260*Q268 -> 338625 | U268: =T268/$T$271 -> 0.187072716
B269: Methane production from manure | C269: M = VS x Bo x MCF x r | M269: 3B.1a_2 | P269: Energy Demand Fattened Dairy Livestock | Q269: 11 | R269: =Q261*Q269 -> 46750 | S269: =R269/$R$271 -> 0.03412097436 | T269: =Q261*Q269 -> 46750 | U269: =T269/$T$271 -> 0.02582694565
C270: MCF = Integrated methane conversion factor - based on the proportion of different manure management regimes | P270: Energy Demand Fattened Other Livestock | Q270: 11 | S270: =R270/$R$271 -> 0 | T270: =Q262*Q270 -> 440000 | U270: =T270/$T$271 -> 0.2430771356
P271: Total Energy Demand Meat | R271: =SUM(R266:R270) -> 1370125 | S271: =SUM(S266:S270) -> 1 | T271: =SUM(T266:T270) -> 1810125 | U271: =SUM(U266:U270) -> 1
C273: Methane for each manure management system and MCF associated, for each class of cattle separately | P273: Energy Demand Milk | Q273: 3.1 | R273: =R241*Q273 -> 9855833.1 | T273: =R273 -> 9855833.1
C275: Annual | D275: =D267*$C$263*$C$264*AO249% -> 0.06540377292 | E275: =E267*$C$263*$C$264*AO256% -> 0.003110678478 | F275: =F267*$C$263*$C$264*AO257% -> 0.001786564942 | G275: =G267*$C$263*$C$264*AO258% -> 0.003839482784 | H275: =H267*$C$263*$C$264*AO259% -> 0.002305939219 | I275: =I267*$C$263*$C$264*AO257% -> 0.00043716096 | J275: =J267*$C$263*$C$264*AO259% -> 0.000488936448 | K275: =K267*$C$263*$C$264*AO260% -> 0.000609985634 | L275: kg CH4/head/day | P275: Total Energy Demand | R275: =R273+R271 -> 11225958.1 | T275: =T273+T271 -> 11665958.1
B277: The annual methane production (Gg) from the manure of dairy cattle | P277: % Milk of Energy | R277: =R273/R275 -> 0.8779502838 | T277: =T273/T275 -> 0.8448370049
C278: Total = (365 x N x M) x 10^-6 for > 1 yr olds, (281 x N x M) x 10^-6 for 0 to 1 yr olds and (84 x N x M) x 10^-6 for unweaned | M278: 3B.1a_3
P279: Milk only C02 (Electricity + Pre-farmgate milk platform feed + purchased females) | Q279: =K136+K137+D583+AG269 -> 273.25
C280: Annual | D280: =(365*D16*D275)*10^-6 -> 0.0107425697 | E280: =(365*E16*E275)*10^-6 -> 0.0001362477173 | F280: =(281*F16*F275)*10^-6 -> 6.275309359e-05 | G280: =(365*G16*G275)*10^-6 -> 1.121128973e-05 | H280: =(281*H16*H275)*10^-6 -> 6.479689204e-05 | I280: =(84*F16*I275)*10^-6 -> 4.59019008e-06 | J280: =(84*H16*J275)*10^-6 -> 4.107066163e-06 | K280: =(365*I16*K275)*10^-6 -> 0 | L280: Gg CH4/farm/annum | P280: Meat only CO2 (Other Livestock + purchased bulls and other stock (mainly steers but could be heifers)) | Q280: =H145+I145+AI269 -> 105.9759107
P281: Dairy Livestock CO2 (Dairy Livestock) | Q281: =D145+E145+F145+G145 -> 2507.943238
B282: Grand total | C282: =SUM(D280:K280) -> 0.01102627595 | L282: Gg CH4/farm/year | P282: General Farm CO2 (Fertiliser + Fuel + Support block supp feed - Trees) | Q282: =SUM(K134:K135)+SUM(K138:K140)+K143+E583+K148 -> 652.4492864
B283: Grand total | C283: =C282*'Emission factors'!$C$4 -> 0.3087357266 | L283: Gg CO2-e/farm/year | P283: Total Farm CO2 | Q283: =SUM(Q279:Q282) -> 3539.618435
B284: Grand total | C284: =C283*10^3 -> 308.7357266 | L284: t CO2-e/farm/year | S284: Calculated from spreadsheet data
P285: Total milk CO2 allocated emissions | Q285: =Q279+Q281*R277+Q282*T277 -> 3026.312778 | S285: =Q285*1000/R241 -> 0.9518799189 | T285: kg CO2 / kg FPCM
B286: Faecal nitrous oxide calculation | C286: Seasons | D286: =D261 -> Milking cows | E286: =E261 -> Heifers > 1 yr age | F286: Heifers < 1 yr age | G286: Mature bulls | H286: Other stock < 1 yr age | I286: Unweaned heifers | J286: Unweaned bulls | K286: Bulls/steers (1-2 yrs) | L286: Units | M286: Inventory reference | P286: Total meat CO2 allocated emissions | Q286: =Q280+Q281*(1-R277)+Q282*(1-T277) -> 513.3056565 | S286: =Q285*1000/R227 -> 13.45027901 | T286: kg CO2 / kg MS
S287: =Q286*1000/Q263 -> 3.874736037 | T287: kg CO2 / kg LW
B288: The crude protein intake of dairy cattle | D288: CPI = I x CP | M288: 3B.1a_4 | P288: % of total CO2 allocated to milk | Q288: =Q285/Q283 -> 0.8549827712
C289: Annual | D289: =D242*H44% -> 3.226831374 | E289: =E242*$R$248% -> 1.4321952 | F289: =F242*$R$248% -> 0.8225568 | G289: =G242*R248% -> 1.7677458 | H289: =H242*R248% -> 1.0616832 | K289: =K242*R248% -> 0.280845 | L289: kg/head/day | P289: % of total CO2 allocated to meat | Q289: =Q286/Q283 -> 0.1450172288
B291: Nitrogen excreted in faeces (F) | D291: F = {0.3 x (CPI x (1 - [(DMD + 10) / 100])) + 0.105 x (ME x I x 0.008) + (0.0152 x I)} / 6.25 | M291: 3B.1a_6 | P291: Meat Allocation Detail | Q291: kg LW sold | S291: tonnes of CO2 | T291: % of Meat | U291: % of CO2 | V291: kg CO2 / kg LW
D292: ME (Metabolisable energy) = 0.1604 x DMD - 1.037 | P292: Cull Cows/bulls | Q292: =Q258 -> 65650 | S292: =$Q$281*(1-$R$277)*S266+Q$282*(1-$T$277)*U266 -> 275.0735065 | T292: =S292/$S$297 -> 0.5358863731 | U292: =T292*$Q$289 -> 0.07771275679 | V292: =S292*1000/Q292 -> 4.1900001
D293: 1 / 6.25 = Factor for converting crude protein into nitrogen | P293: Calves at Birth | Q293: 0 | S293: =$Q$281*(1-$R$277)*S267+Q$282*(1-$T$277)*U267 -> 0 | T293: =S293/$S$297 -> 0 | U293: =T293*$Q$289 -> 0
C294: Annual | D294: =(0.3*((D289*(1-((F44+10)/100))))+(0.105*((0.1604*F44-1.037)*D242*0.008))+(0.0152*D242))/6.25 -> 0.0900745271 | E294: =(0.3*((E289*(1-(($R$247+10)/100))))+(0.105*((0.1604*D46-1.037)*E242*0.008))+(0.0152*E242))/6.25 -> 0.03830734894 | F294: =(0.3*((F289*(1-(($R$247+10)/100))))+(0.105*((0.1604*D46-1.037)*F242*0.008))+(0.0152*F242))/6.25 -> 0.02200117021 | G294: =(0.3*((G289*(1-(($R$247+10)/100))))+(0.105*((0.1604*D46-1.037)*G242*0.008))+(0.0152*G242))/6.25 -> 0.04728242017 | H294: =(0.3*((H289*(1-(($R$247+10)/100))))+(0.105*((0.1604*D46-1.037)*H242*0.008))+(0.0152*H242))/6.25 -> 0.02839715481 | I294: 0.0055 | J294: 0.005 | K294: =(0.3*((K289*(1-(($R$247+10)/100))))+(0.105*((0.1604*D46-1.037)*K242*0.008))+(0.0152*K242))/6.25 -> 0.007511844345 | L294: kg/head/day | P294: Calves Weaned | Q294: 22575 | S294: =$Q$281*(1-$R$277)*S268+Q$282*(1-$T$277)*U268 -> 94.58925225 | T294: =S294/$S$297 -> 0.1842747124 | U294: =T294*$Q$289 -> 0.02672300814 | V294: 4.1900001
P295: Fattened Dairy Livestock | Q295: 4250 | S295: =$Q$281*(1-$R$277)*S269+Q$282*(1-$T$277)*U269 -> 13.05883364 | T295: =S295/$S$297 -> 0.02544065798 | U295: =T295*$Q$289 -> 0.003689333719 | V295: 3.07266674
B296: Nitrogen retained (NR) by the body | D296: NR = {(0.032 x MP x 1.03/6.38) + {0.212-0.008 x (L - 2) - [(0.140 - 0.008 x (L - 2)) / (1+exp x (-6 x (Z - 0.4)))]} x (LWG x 0.92)} /6.25 | M296: 3B.1a_5 | P296: Fattened Other Livestock | Q296: 40000 | S296: =Q280+Q282*(1-T277)*U270 -> 130.5840641 | T296: =S296/$S$297 -> 0.2543982565 | U296: =T296*$Q$289 -> 0.03689213018 | V296: 3.264601602
P297: Total Meat | Q297: 132475 | S297: =SUM(S292:S296) -> 513.3056565 | T297: =SUM(T292:T296) -> 1 | U297: =SUM(U292:U296) -> 0.1450172288 | V297: 3.874736037
C298: Dairy cattle standard reference weight to calculate relative size (Z) | M298: Table 5.A.3
D299: Milking Cows | E299: Heifers >1 | F299: Heifers <1 | G299: Mature bulls | H299: Dairy Bulls <1 | I299: Dairy Bulls >1
B300: 1 | C300: Victoria | D300: 590 | E300: 590 | F300: 590 | G300: 770 | H300: 770 | I300: 770
B301: 2 | C301: New.South.Wales | D301: 590 | E301: 590 | F301: 590 | G301: 770 | H301: 770 | I301: 770
B302: 3 | C302: Tasmania | D302: 590 | E302: 590 | F302: 590 | G302: 770 | H302: 770 | I302: 770
B303: 4 | C303: Queensland | D303: 590 | E303: 590 | F303: 590 | G303: 770 | H303: 770 | I303: 770
B304: 5 | C304: South.Australia | D304: 590 | E304: 590 | F304: 590 | G304: 770 | H304: 770 | I304: 770
B305: 6 | C305: Western.Australia | D305: 590 | E305: 590 | F305: 590 | G305: 770 | H305: 770 | I305: 770
B306: 7 | C306: Northern.Territory | D306: 590 | E306: 590 | F306: 590 | G306: 770 | H306: 770 | I306: 770
... 417 more rows

Sheet Other Livestock Help
C1: Help with the Other stock classes average number, liveweight and liveweight gain along with sales data
B5: Determining the average number of Other Livestock and their corresponding liveweight data can be difficult. This sheet is designed to estimate the data required for the 'Your farm' sheet given a few critical input values (green cells).
B6: This sheet is only for the non-replacement heifers and all steers for the Other stock classes in the 'Your farm' tab.
B7: We assumed here that all non-replacement animals are sold by 30 months of age. Use the Other stock > 1 year olds category for any animals between 24 and 30 months of age.
B8: Any calves sold immediately post-weaning should not be entered here, rather select 'Calves sold post-weaning' in cell K22 of the 'Your farm' sheet and enter them there.
B9: Enter your values in the green cells as appropriate and transfer results (rows 62 to 67) to the 'Your farm' tab once completed.
B10: Keep in mind that these values are also indicative based on a series of assumptions and estimates. If you have more accurate data, you should enter the data entry manually into the 'Your farm' tab.
B12: Your farm data
B14: Mature cow liveweight (kg) | G14: kg
B16: Relative weight advantage of steers vs heifers at same age (%) | G16: %
D18: Other stock < 1 year olds | I18: Other stock > 1 year olds
B19: MOB 1 sold | D19: Heifers | F19: Steers | I19: MOB 1 sold | K19: Heifers | M19: Steers
B20: Number of animals sold | I20: Number of animals sold
B21: Age when sold (months) | I21: Age when sold (months)
B22: LW when born | D22: =$D$145 -> 0 | F22: =$E$145 -> 0 | I22: LW at 12 months | K22: =$D$157 -> 0 | M22: =$E$157 -> 0
B23: ADCC estimated LW (kg) | D23: =VLOOKUP(D21,$B$144:$E$175,3,FALSE) -> 0 | F23: =VLOOKUP(F21,$B$144:$E$175,4,FALSE) -> 0 | I23: ADCC estimated LW (kg) | K23: =VLOOKUP(K21,$B$144:$E$175,3,FALSE) -> 0 | M23: =VLOOKUP(M21,$B$144:$E$175,4,FALSE) -> 0
B24: ADCC estimated LWG (kg/day) | D24: =$F$145 -> 0 | F24: =$G$145 -> 0 | I24: ADCC estimated LWG (kg/day) | K24: =$F$145 -> 0 | M24: =$G$145 -> 0
B25: LW gain | D25: =D23-D22 -> 0 | F25: =F23-F22 -> 0 | I25: LW gain | K25: =K23-K22 -> 0 | M25: =M23-M22 -> 0
B27: MOB 2 sold | D27: Heifers | F27: Steers | I27: MOB 2 sold | K27: Heifers | M27: Steers
B28: Number of animals sold | I28: Number of animals sold
B29: Age when sold (months) | I29: Age when sold (months)
B30: LW when born | D30: =$D$145 -> 0 | F30: =$E$145 -> 0 | I30: LW at 12 months | K30: =$D$157 -> 0 | M30: =$E$157 -> 0
B31: ADCC estimated LW (kg) | D31: =VLOOKUP(D29,$B$144:$E$175,3,FALSE) -> 0 | F31: =VLOOKUP(F29,$B$144:$E$175,4,FALSE) -> 0 | I31: ADCC estimated LW (kg) | K31: =VLOOKUP(K29,$B$144:$E$175,3,FALSE) -> 0 | M31: =VLOOKUP(M29,$B$144:$E$175,4,FALSE) -> 0
B32: ADCC estimated LWG (kg/day) | D32: =$F$145 -> 0 | F32: =$G$145 -> 0 | I32: ADCC estimated LWG (kg/day) | K32: =$F$145 -> 0 | M32: =$G$145 -> 0
B33: LW gain | D33: =D31-D30 -> 0 | F33: =F31-F30 -> 0 | I33: LW gain | K33: =K31-K30 -> 0 | M33: =M31-M30 -> 0
B35: MOB 3 sold | D35: Heifers | F35: Steers | I35: MOB 3 sold | K35: Heifers | M35: Steers
B36: Number of animals sold | I36: Number of animals sold
B37: Age when sold (months) | I37: Age when sold (months)
B38: LW when born | D38: =$D$145 -> 0 | F38: =$E$145 -> 0 | I38: LW at 12 months | K38: =$D$157 -> 0 | M38: =$E$157 -> 0
B39: ADCC estimated LW (kg) | D39: =VLOOKUP(D37,$B$144:$E$175,3,FALSE) -> 0 | F39: =VLOOKUP(F37,$B$144:$E$175,4,FALSE) -> 0 | I39: ADCC estimated LW (kg) | K39: =VLOOKUP(K37,$B$144:$E$175,3,FALSE) -> 0 | M39: =VLOOKUP(M37,$B$144:$E$175,4,FALSE) -> 0
B40: ADCC estimated LWG (kg/day) | D40: =$F$145 -> 0 | F40: =$G$145 -> 0 | I40: ADCC estimated LWG (kg/day) | K40: =$F$145 -> 0 | M40: =$G$145 -> 0
B41: LW gain | D41: =D39-D38 -> 0 | F41: =F39-F38 -> 0 | I41: LW gain | K41: =K39-K38 -> 0 | M41: =M39-M38 -> 0
B43: MOB 4 sold | D43: Heifers | F43: Steers | I43: MOB 4 sold | K43: Heifers | M43: Steers
B44: Number of animals sold | I44: Number of animals sold
B45: Age when sold (months) | I45: Age when sold (months)
B46: LW when born | D46: =$D$145 -> 0 | F46: =$E$145 -> 0 | I46: LW at 12 months | K46: =$D$157 -> 0 | M46: =$E$157 -> 0
B47: ADCC estimated LW (kg) | D47: =VLOOKUP(D45,$B$144:$E$175,3,FALSE) -> 0 | F47: =VLOOKUP(F45,$B$144:$E$175,4,FALSE) -> 0 | I47: ADCC estimated LW (kg) | K47: =VLOOKUP(K45,$B$144:$E$175,3,FALSE) -> 0 | M47: =VLOOKUP(M45,$B$144:$E$175,4,FALSE) -> 0
B48: ADCC estimated LWG (kg/day) | D48: =$F$145 -> 0 | F48: =$G$145 -> 0 | I48: ADCC estimated LWG (kg/day) | K48: =$F$145 -> 0 | M48: =$G$145 -> 0
B49: LW gain | D49: =D47-D46 -> 0 | F49: =F47-F46 -> 0 | I49: LW gain | K49: =K47-K46 -> 0 | M49: =M47-M46 -> 0
B51: Retained stock | D51: Heifers | F51: Steers
B52: Number of head retained for full 12 months | I52: Click here to return to the 'Your Farm' worksheet
B53: Estimated LW at 6 months | D53: =IF(D52=0,0,IF(D52="","",D151)) -> 0 | F53: =IF(F52=0,0,IF(F52="","",E151)) -> 0
I54: Click here to return to the 'Strategy Farm' worksheet
B55: Data entry check | D55: =IF(D139>(CowMilkerNumber/2-Rising1HeiferNumber),"Check data entry","") ->  | F55: =IF(F139>(CowMilkerNumber/2),"Check data entry","") -> 
B57: Overall averages for each co-hort of animals
B58: Average number of head | D58: =IFERROR((D141/12*D139),0) -> 0 | F58: =IFERROR((F141/12*F139),0) -> 0 | I58: Average number of head | K58: =IFERROR((K141/12*K139),0) -> 0 | M58: =IFERROR((M141/12*M139),0) -> 0
B59: Average LW (kg) | D59: =IFERROR(((((D25/2+D22)*D20)+((D33/2+D30)*D28)+((D41/2+D38)*D36)+((D49/2+D46)*D44))+(D52*D53))/SUM(D20,D28,D36,D44,D52),0) -> 0 | F59: =IFERROR(((((F25/2+F22)*F20)+((F33/2+F30)*F28)+((F41/2+F38)*F36)+((F49/2+F46)*F44))+(F52*F53))/SUM(F20,F28,F36,F44,F52),0) -> 0 | I59: Average LW (kg) | K59: =IFERROR(((((K25/2+K22)*K20)+((K33/2+K30)*K28)+((K41/2+K38)*K36)+((K49/2+K46)*K44)))/SUM(K20,K28,K36,K44),0) -> 0 | M59: =IFERROR(((((M25/2+M22)*M20)+((M33/2+M30)*M28)+((M41/2+M38)*M36)+((M49/2+M46)*M44)))/SUM(M20,M28,M36,M44),0) -> 0
B60: Average LWG (kg/day) | D60: =IF(D139=0,0,D24) -> 0 | F60: =IF(F139=0,0,F24) -> 0 | I60: Average LWG (kg/day) | K60: =IF(K139=0,0,K24) -> 0 | M60: =IF(M139=0,0,M24) -> 0
B62: Total number sold | D62: =IF(D139-D52=0,0,D139-D52) -> 0 | F62: =IF(F139-F52=0,0,F139-F52) -> 0 | I62: Total number sold | K62: =IF(K139-K52=0,0,K139-K52) -> 0 | M62: =IF(M139-M52=0,0,M139-M52) -> 0
B63: Average LW when sold (kg) | D63: =IFERROR((((D20*D23)+(D28*D31)+(D36*D39)+(D44*D47))/D62),0) -> 0 | F63: =IFERROR((((F20*F23)+(F28*F31)+(F36*F39)+(F44*F47))/F62),0) -> 0 | I63: Average LW when sold (kg) | K63: =IFERROR((((K20*K23)+(K28*K31)+(K36*K39)+(K44*K47))/K62),0) -> 0 | M63: =IFERROR((((M20*M23)+(M28*M31)+(M36*M39)+(M44*M47))/M62),0) -> 0
B65: Data for 'Your Farm' system tab | D65: Other stock < 1 year olds | K65: Other stock > 1 year olds
B66: Number of head | D66: =IFERROR(IF(D58+F58>0,D58+F58,""),"") ->  | K66: =IFERROR(IF(K58+M58>0,K58+M58,""),"") -> 
B67: Average LW (kg) | D67: =IFERROR(((D58*D59)+(F58*F59))/D66,"") ->  | G67: Use the 'YF' and 'SF' buttons to copy the totals to the 'Your Farm' or 'Strategy Farm' sheets. Copying to the 'Strategy Farm' tab will remove the 'Your Farm' equation links | K67: =IFERROR(((K58*K59)+(M58*M59))/K66,"") -> 
B68: Average LWG (kg) | D68: =IFERROR(((D58*D60)+(F58*F60))/D66,"") ->  | K68: =IFERROR(((K58*K60)+(M58*M60))/K66,"") -> 
B70: Total number sold | D70: =IFERROR(IF(D62+F62>0,D62+F62,""),"") ->  | K70: =IFERROR(IF(K62+M62>0,K62+M62,""),"") -> 
B71: Average LW when sold (kg/head) | D71: =IFERROR(((D62*D63)+(F62*F63))/(D62+F62),"") ->  | K71: =IFERROR(((K62*K63)+(M62*M63))/(K62+M62),"") -> 
B73: Example of data entry (not related to the Example farm in ADCC)
B75: Mature cow liveweight (kg) | F75: 500 | G75: kg
B77: Relative weight advantage of steers vs heifers at same age (%) | F77: 15 | G77: %
D79: Other stock < 1 year olds | I79: Other stock > 1 year olds
B80: MOB 1 sold | D80: Heifers | F80: Steers | I80: MOB 1 sold | K80: Heifers | M80: Steers
B81: Number of animals sold | D81: 15 | F81: 50 | I81: Number of animals sold | K81: 85 | M81: 20
B82: Age when sold (months) | D82: 8 | F82: 8 | I82: Age when sold (months) | K82: 16 | M82: 22
B83: LW when born | D83: =$D$145 -> 0 | F83: =$E$145 -> 0 | I83: LW at 12 months | K83: =$D$157 -> 0 | M83: =$E$157 -> 0
B84: ADCC estimated LW (kg) | D84: =VLOOKUP(D82,$B$144:$E$175,3,FALSE) -> 0 | F84: =VLOOKUP(F82,$B$144:$E$175,4,FALSE) -> 0 | I84: ADCC estimated LW (kg) | K84: =VLOOKUP(K82,$B$144:$E$175,3,FALSE) -> 0 | M84: =VLOOKUP(M82,$B$144:$E$175,4,FALSE) -> 0
B85: ADCC estimated LWG (kg/day) | D85: =$F$145 -> 0 | F85: =$G$145 -> 0 | I85: ADCC estimated LWG (kg/day) | K85: =$F$145 -> 0 | M85: =$G$145 -> 0
B86: LW gain | D86: =D84-D83 -> 0 | F86: =F84-F83 -> 0 | I86: LW gain | K86: =K84-K83 -> 0 | M86: =M84-M83 -> 0
B88: MOB 2 sold | D88: Heifers | F88: Steers | I88: MOB 2 sold | K88: Heifers | M88: Steers
B89: Number of animals sold | F89: 150 | I89: Number of animals sold
B90: Age when sold (months) | F90: 10 | I90: Age when sold (months)
B91: LW when born | D91: =$D$145 -> 0 | F91: =$E$145 -> 0 | I91: LW at 12 months | K91: =$D$157 -> 0 | M91: =$E$157 -> 0
B92: ADCC estimated LW (kg) | D92: =VLOOKUP(D90,$B$144:$E$175,3,FALSE) -> 0 | F92: =VLOOKUP(F90,$B$144:$E$175,4,FALSE) -> 0 | I92: ADCC estimated LW (kg) | K92: =VLOOKUP(K90,$B$144:$E$175,3,FALSE) -> 0 | M92: =VLOOKUP(M90,$B$144:$E$175,4,FALSE) -> 0
B93: ADCC estimated LWG (kg/day) | D93: =$F$145 -> 0 | F93: =$G$145 -> 0 | I93: ADCC estimated LWG (kg/day) | K93: =$F$145 -> 0 | M93: =$G$145 -> 0
B94: LW gain | D94: =D92-D91 -> 0 | F94: =F92-F91 -> 0 | I94: LW gain | K94: =K92-K91 -> 0 | M94: =M92-M91 -> 0
B96: MOB 3 sold | D96: Heifers | F96: Steers | I96: MOB 3 sold | K96: Heifers | M96: Steers
B97: Number of animals sold | I97: Number of animals sold
B98: Age when sold (months) | I98: Age when sold (months)
B99: LW when born | D99: =$D$145 -> 0 | F99: =$E$145 -> 0 | I99: LW at 12 months | K99: =$D$157 -> 0 | M99: =$E$157 -> 0
B100: ADCC estimated LW (kg) | D100: =VLOOKUP(D98,$B$144:$E$175,3,FALSE) -> 0 | F100: =VLOOKUP(F98,$B$144:$E$175,4,FALSE) -> 0 | I100: ADCC estimated LW (kg) | K100: =VLOOKUP(K98,$B$144:$E$175,3,FALSE) -> 0 | M100: =VLOOKUP(M98,$B$144:$E$175,4,FALSE) -> 0
B101: ADCC estimated LWG (kg/day) | D101: =$F$145 -> 0 | F101: =$G$145 -> 0 | I101: ADCC estimated LWG (kg/day) | K101: =$F$145 -> 0 | M101: =$G$145 -> 0
B102: LW gain | D102: =D100-D99 -> 0 | F102: =F100-F99 -> 0 | I102: LW gain | K102: =K100-K99 -> 0 | M102: =M100-M99 -> 0
B104: MOB 4 sold | D104: Heifers | F104: Steers | I104: MOB 4 sold | M104: Steers
B105: Number of animals sold | I105: Number of animals sold
B106: Age when sold (months) | I106: Age when sold (months)
B107: LW when born | D107: =$D$145 -> 0 | F107: =$E$145 -> 0 | I107: LW at 12 months | K107: =$D$157 -> 0 | M107: =$E$157 -> 0
B108: ADCC estimated LW (kg) | D108: =VLOOKUP(D106,$B$144:$E$175,3,FALSE) -> 0 | F108: =VLOOKUP(F106,$B$144:$E$175,4,FALSE) -> 0 | I108: ADCC estimated LW (kg) | K108: =VLOOKUP(K106,$B$144:$E$175,3,FALSE) -> 0 | M108: =VLOOKUP(M106,$B$144:$E$175,4,FALSE) -> 0
B109: ADCC estimated LWG (kg/day) | D109: =$F$145 -> 0 | F109: =$G$145 -> 0 | I109: ADCC estimated LWG (kg/day) | K109: =$F$145 -> 0 | M109: =$G$145 -> 0
B110: LW gain | D110: =D108-D107 -> 0 | F110: =F108-F107 -> 0 | I110: LW gain | K110: =K108-K107 -> 0 | M110: =M108-M107 -> 0
B112: Retained stock | D112: Heifers | F112: Steers
B113: Number of head retained for full 12 months | D113: 85 | F113: 20
B114: Estimated LW at 6 months | D114: =IF(D113=0,0,IF(D113="","",W151)) -> 0 | F114: =IF(F113=0,0,IF(F113="","",Y151)) -> 0
B116: Data entry check | D116: =IF(W139>(CowMilkerNumber/2-Rising1HeiferNumber),"Check data entry","") ->  | F116: =IF(Y139>(CowMilkerNumber/2),"Check data entry","") ->  | I116: =IF(AD139>(CowMilkerNumber/2-Rising2HeiferNumber),"Check data entry","") ->  | K116: =IF(AD139>((CowMilkerNumber-Rising1HeiferNumber)/2),"Check data entry","") ->  | M116: =IF(AF139>(CowMilkerNumber/2),"Check data entry","") -> 
B118: Overall averages for each co-hort of animals
B119: Average number of head | D119: 95 | F119: 178.3333333 | I119: Average number of head | K119: 28.33333333 | M119: 16.66666667
B120: Average LW (kg) | D120: 144.375 | F120: 133.2954545 | I120: Average LW (kg) | K120: 302.5 | M120: 398.1875
B121: Average LWG (kg/day) | D121: 0.5684931507 | F121: 0.6537671233 | I121: Average LWG (kg/day) | K121: 0.5684931507 | M121: 0.6537671233
B123: Total number sold | D123: 15 | F123: 200 | I123: Total number sold | K123: 85 | M123: 20
B124: Average LW when sold (kg) | D124: 190 | F124: 253 | I124: Average LW when sold (kg) | K124: 337.5 | M124: 488.75
B126: Data for 'Your Farm' system tab | D126: Other stock < 1 year olds | K126: Other stock > 1 year olds
B127: Number of head | D127: 273.3333333 | K127: 45
B128: Average LW (kg) | D128: 147.4 | K128: 337.9398148
B129: Average LWG (kg) | D129: 0.6241292182 | K129: 0.6000761035
B131: Total number sold | D131: 215 | K131: 105
B132: Average LW when sold (kg/head) | D132: 248.6046512 | K132: 366.3095238
B139: Total number of head present | D139: =D20+D28+D36+D44+D52 -> 0 | F139: =F20+F28+F36+F44+F52 -> 0 | I139: Total number of head present | K139: =K20+K28+K36+K44 -> 0 | M139: =M20+M28+M36+M44 -> 0
B140: Total number of head.months | D140: =((D20*D21)+(D28*D29)+(D36*D37)+(D44*D45)+(D52*12)) -> 0 | F140: =((F20*F21)+(F28*F29)+(F36*F37)+(F44*F45)+(F52*12)) -> 0 | I140: Total number of head.months | K140: =((K20*K21)+(K28*K29)+(K36*K37)+(K44*K45)+(K52*12)) -> 0 | M140: =((M20*M21)+(M28*M29)+(M36*M37)+(M44*M45)+(M52*12)) -> 0
B141: Average time on farm in this age group (months) | D141: =D140/D139 ->  | F141: =F140/F139 ->  | I141: Average time on farm in this age group (months) | K141: =(K140/K139)-12 ->  | M141: =(M140/M139)-12 -> 
B144: Month | C144: % of mature animal bodyweight | D144: Heifers | E144: Steers | F144: LWG- heifers | G144: LWG- steers | I144: Relative LW % for steers
B145: 0 | C145: 0.07 | D145: =C145*$F$14 -> 0 | E145: =D145*(1+$I$145%) -> 0 | F145: =(D169-D145)/(2*365) -> 0 | G145: =(E169-E145)/(2*365) -> 0 | I145: =IF(F16="",10,F16) -> 10
B146: 1 | C146: 0.1 | D146: 0 | E146: =D146*(1+$I$145%) -> 0
B147: 2 | C147: 0.14 | D147: 0 | E147: 0
B148: 3 | C148: 0.18 | D148: 0 | E148: 0
B149: 4 | C149: 0.22 | D149: 0 | E149: 0 | H149: Sources of information to determine the monthly % LW of mature cows for the heifers. I assumed they would reach the LW of the mature cows by 2.5 years of age so tapered % from 24 to 30 months to match
B150: 5 | C150: 0.26 | D150: 0 | E150: 0
B151: 6 | C151: 0.3 | D151: 0 | E151: 0 | H151: Australia
B152: 7 | C152: 0.34 | D152: 0 | E152: 0 | H152: https://cdn-prod.dairyaustralia.com.au/-/media/project/dairy-australia-sites/national-home/resources/2020/07/09/a-guide-to-growing-more-productive-heifers/a-guide-to-growing-more-productive-heifers.pdf?rev=0b18b9d02cfb47c49a025b79946e971a#:~:text=Research%20has%20shown%20that%20the,the%20time%20of%20first%20calving
B153: 8 | C153: 0.38 | D153: 0 | E153: 0 | H153: Friesian: 100 kg at 3 mths, 150-175 kg at 6 mths, 270-300 kg at 12 mths, 330-360 kg at 15 mths, 520-550 kg at calving
B154: 9 | C154: 0.42 | D154: 0 | E154: 0 | H154: Jersey: 75 kg at 3 mths, 110-130 kg at 6 mths, 200-230 kg at 12 mths, 245-275 kg at 15 mths, 380-410 kg at 24 mths
B155: 10 | C155: 0.46 | D155: 0 | E155: 0
B156: 11 | C156: 0.5 | D156: 0 | E156: 0 | H156: New Zealand
B157: 12 | C157: 0.535 | D157: 0 | E157: 0 | H157: https://www.dairynz.co.nz/animal/heifers/lw-targets/
B158: 13 | C158: 0.57 | D158: 0 | E158: 0 | H158: Suggested 30% at 6 months of age, 60% at 15 months of age, 90% at 22 months of age
B159: 14 | C159: 0.605 | D159: 0 | E159: 0
B160: 15 | C160: 0.64 | D160: 0 | E160: 0 | H160: USA
B161: 16 | C161: 0.675 | D161: 0 | E161: 0 | H161: https://extension.psu.edu/growth-charts-for-dairy-heifers
B162: 17 | C162: 0.71 | D162: 0 | E162: 0 | H162: Converted the pounds to kgs for the Holstein-Friesians and the lower and higher Jersey values, and then averaged across the three to get monthly percentages
B163: 18 | C163: 0.74 | D163: 0 | E163: 0 | H163: Suggested 30% at 6 months of age, 53% at 12 months of age, 64% at 15 months of age and 89% at 24 months of age
B164: 19 | C164: 0.77 | D164: 0 | E164: 0
B165: 20 | C165: 0.8 | D165: 0 | E165: 0
B166: 21 | C166: 0.825 | D166: 0 | E166: 0 | H166: Cross-checking relative LW of steers vs heifers
B167: 22 | C167: 0.85 | D167: 0 | E167: 0 | H167: I ran several GrassGro simulations with selling all non-replacement stock at 24 months of age. Tried different LW of mature cows and multiple regions relatively close to dairy regions
B168: 23 | C168: 0.875 | D168: 0 | E168: 0 | H168: 0 to 1 yr old steers tended to be around 5% heavier while 1-2 yr olds tended to be around 15% heavier.
B169: 24 | C169: 0.9 | D169: 0 | E169: 0
B170: 25 | C170: 0.92 | D170: 0 | E170: 0
B171: 26 | C171: 0.94 | D171: 0 | E171: 0
B172: 27 | C172: 0.96 | D172: 0 | E172: 0
B173: 28 | C173: 0.98 | D173: 0 | E173: 0
B174: 29 | C174: 0.99 | D174: 0 | E174: 0
B175: 30 | C175: 1 | D175: 0 | E175: 0

Sheet Feed Quality Table
B1: Feed Quality Table
B4: Feed quality information | M4: Converting ME to DMD
B5: If you have no other information on dry matter digestibility and crude protein for the farm's feed sources, data in the table below could be used. | M5: Sometimes you may know the Metabolisable Energy (ME; MJ/kg DM) concentration of a feed source but not it's Dry Matter Digestibility (DMD %)
C6: Dry matter % | F6: Dry Matter Digestibility % | I6: Crude protein % | M6: To convert ME to DMD, we use the equation:
M7: DMD = (ME +1.037) / 0.1604 (Source: Aust. NGGI methodology)
B8: Grains/ concentrates | C8: Average | D8: Range | F8: Average | G8: Range | I8: Average | J8: Range
B9: Barley grain | C9: 88.7 | D9: 81.2 | E9: 97 | F9: 79.52057357 | G9: 55.59975062 | H9: 87.2786783 | I9: 10.8 | J9: 6.3 | K9: 19 | M9: Enter ME (MJ/kg DM) | O9: 12 | P9: MJ/kg DM
B10: Lupin seed | C10: 91.6 | D10: 86.1 | E10: 95.5 | F10: 81.46009975 | G10: 72.40897756 | H10: 96.3298005 | I10: 32 | J10: 21.3 | K10: 43.2
B11: Maize grain | C11: 84.2 | D11: 60.3 | E11: 96.4 | F11: 89.21820449 | G11: 79.52057357 | H11: 96.3298005 | I11: 10 | J11: 7.3 | K11: 21.9 | M11: Estimated DMD (%) | O11: =IF(O9="","",IF(O9=0,"",(O9+1.037)/0.1604)) -> 81.27805486 | P11: %
B12: Molasses | F12: 66.6 | I12: 4 | J12: 3 | K12: 5
B13: Oats | C13: 91.1 | D13: 80 | E13: 93.3 | F13: 66.590399 | G13: 38.14401496 | H13: 91.8042394 | I13: 9 | J13: 4 | K13: 15.4 | M13: Averaging feed inputs and concentrations
B14: Sorghum grain | C14: 89.6 | D14: 86.2 | E14: 94.4 | F14: 85.98566085 | G14: 80.81359102 | H14: 93.09725686 | I14: 10.6 | J14: 9.6 | K14: 13.2 | M14: Sometimes 2 or more feeds of the same type (e.g. silage or a day and night paddock for grazing) are fed. The carbon calculator needs to know the total amount fed and the average dry matter digestibility (%) and crude protein (%) of each feed type.
B15: Soyabean meal | C15: 85.4 | D15: 11.9 | E15: 93.7 | F15: 96.3298005 | G15: 85.98566085 | H15: 99 | I15: 43.5 | J15: 29.3 | K15: 53.7
B16: Sunflower meal | C16: 90.8 | D16: 86.4 | E16: 92 | F16: 64.00436409 | G16: 54.30673317 | H16: 90.51122195 | I16: 34.1 | J16: 20.4 | K16: 39.1
B17: Triticale grain | C17: 89.4 | D17: 80.3 | E17: 96.9 | F17: 84.04613466 | G17: 74.99501247 | H17: 87.2786783 | I17: 11.4 | J17: 6.6 | K17: 18.8 | M17: The first table below is an example of estimating intake and concentrations for grains.
B18: Turnip tops* | C18: 29.1 | D18: 8.5 | E18: 87.7 | F18: 86.63216958 | G18: 69.17643392 | H18: 93.74376559 | I18: 15.9 | J18: 7.2 | K18: 29.6
B19: Turnip bulbs* | C19: 23.7 | D19: 4.7 | E19: 87.4 | F19: 89.86471322 | G19: 75.6415212 | H19: 95.68329177 | I19: 14.8 | J19: 4.6 | K19: 26.7 | M19: Enter your farm's data in the green cells below. Choosing a feed from the drop-down menu in the Description column will copy in the default feed parameters. If you have your own values just overwrite them. Select the blank feed name at the bottom on the menu to clear the feed line.
B20: Wheat grain | C20: 89.4 | D20: 80.2 | E20: 92.9 | F20: 84.69264339 | G20: 67.88341646 | H20: 91.15773067 | I20: 12.9 | J20: 7.4 | K20: 22.7
B22: Silages | C22: Average | D22: Range | F22: Average | G22: Range | I22: Average | J22: Range | M22: Example table
B23: Barley silage | C23: 39 | D23: 20.9 | E23: 64.3 | F23: 58.83229426 | G23: 35.55798005 | H23: 74.34850374 | I23: 10.7 | J23: 5.5 | K23: 22.9 | O23: Description | P23: Amount (kg DM/cow.day) | Q23: Dry matter digestibility (%) | R23: Crude protein (%)
B24: Clover silage generic | C24: 41.9 | D24: 20.9 | E24: 79.5 | F24: 62.06483791 | G24: 52.36720698 | H24: 68.52992519 | I24: 19.3 | J24: 12.4 | K24: 27.2 | M24: Grain/concentrate 1 | O24: Wheat | P24: 2 | Q24: 80 | R24: 13
